Workbook

Sheet Main
B10: 2019-11-21
B12: Sheet No. | C12: Template Name | D12: Summary
B13: 1 | C13: Future Intra | D13: For Intraday trading in F&O segment
B14: 2 | C14: Cash Intra | D14: For Intraday trading in cash market segment
B15: 3 | C15: Mid-cap Intra | D15: For Intraday trading in Mid-cap stocks
B16: 4 | C16: Bulk Deals | D16: Reveals Bulk Deals carried on NSE & BSE
B17: 5 | C17: Call Tracker
K27: `

Sheet Future Intra
M5: Back to Main Page
A6: FOR INTRA DAY TRADING | L6: =Main!B10 -> 2019-11-21
A9: Sr.no | B9: Sector | C9: Scrip | D9: CLOSE RATE | E9: Pivot Point | F9: Supports | I9: Resistances
B10: Sector | D10: Point | E10: Point | F10: S1 | G10: S2 | H10: S3 | I10: R1 | J10: R2 | K10: R3 | L10: HIGH | M10: LOW | N10: OI | O10: % Change in OI
A11: 1 | B11: Index | C11: BANKNIFTY | D11: 31321.25 | E11: 31313.40 | F11: 31192.40 | G11: 31063.55 | H11: 30942.55 | I11: 31442.25 | J11: 31563.25 | K11: 31692.10 | L11: 31434.4 | M11: 31184.55 | N11: 2024980 | O11: -1.59%
A12: 2 | B12: Index | C12: NIFTY | D12: 12018.15 | E12: 12018.93 | F12: 11971.87 | G12: 11925.58 | H12: 11878.52 | I12: 12065.22 | J12: 12112.28 | K12: 12158.57 | L12: 12066 | M12: 11972.65 | N12: 16257450 | O12: -3.13%
A13: 3 | B13: Index | C13: NIFTYIT | D13: 15400.00 | E13: 15395.00 | F13: 15355.00 | G13: 15310.00 | H13: 15270.00 | I13: 15440.00 | J13: 15480.00 | K13: 15525.00 | L13: 15435 | M13: 15350 | N13: 8850 | O13: 2.91%
A14: 4 | B14: Cement | C14: ACC | D14: 1488.15 | E14: 1493.65 | F14: 1480.45 | G14: 1472.75 | H14: 1459.55 | I14: 1501.35 | J14: 1514.55 | K14: 1522.25 | L14: 1506.85 | M14: 1485.95 | N14: 2911600 | O14: 3.09%
A15: 5 | B15: Others | C15: ADANIENT | D15: 206.15 | E15: 204.15 | F15: 200.40 | G15: 194.65 | H15: 190.90 | I15: 209.90 | J15: 213.65 | K15: 219.40 | L15: 207.9 | M15: 198.4 | N15: 31228000 | O15: 0.22%
A16: 6 | B16: Others | C16: ADANIPORTS | D16: 367.85 | E16: 370.42 | F16: 362.13 | G16: 356.42 | H16: 348.13 | I16: 376.13 | J16: 384.42 | K16: 390.13 | L16: 378.7 | M16: 364.7 | N16: 19795000 | O16: 2.63%
A17: 7 | B17: Power | C17: ADANIPOWER | D17: 60.50 | E17: 60.38 | F17: 59.37 | G17: 58.23 | H17: 57.22 | I17: 61.52 | J17: 62.53 | K17: 63.67 | L17: 61.4 | M17: 59.25 | N17: 85610000 | O17: 1.81%
A18: 8 | B18: Automobile | C18: AMARAJABAT | D18: 748.60 | E18: 749.82 | F18: 741.83 | G18: 735.07 | H18: 727.08 | I18: 756.58 | J18: 764.57 | K18: 771.33 | L18: 757.8 | M18: 743.05 | N18: 1542300 | O18: -1.03%
A19: 9 | B19: Cement | C19: AMBUJACEM | D19: 201.95 | E19: 202.17 | F19: 201.08 | G19: 200.22 | H19: 199.13 | I19: 203.03 | J19: 204.12 | K19: 204.98 | L19: 203.25 | M19: 201.3 | N19: 18315000 | O19: -1.70%
A20: 10 | B20: Others | C20: APOLLOHOSP | D20: 1421.40 | E20: 1424.47 | F20: 1411.08 | G20: 1400.77 | H20: 1387.38 | I20: 1434.78 | J20: 1448.17 | K20: 1458.48 | L20: 1437.85 | M20: 1414.15 | N20: 1836000 | O20: -7.37%
A21: 11 | B21: Automobile | C21: APOLLOTYRE | D21: 167.60 | E21: 168.48 | F21: 165.82 | G21: 164.03 | H21: 161.37 | I21: 170.27 | J21: 172.93 | K21: 174.72 | L21: 171.15 | M21: 166.7 | N21: 12534000 | O21: 5.51%
A22: 12 | B22: Automobile | C22: ASHOKLEY | D22: 82.95 | E22: 82.70 | F22: 80.75 | G22: 78.55 | H22: 76.60 | I22: 84.90 | J22: 86.85 | K22: 89.05 | L22: 84.65 | M22: 80.5 | N22: 96744000 | O22: 1.85%
A23: 13 | B23: FMCG | C23: ASIANPAINT | D23: 1729.30 | E23: 1734.68 | F23: 1715.87 | G23: 1702.43 | H23: 1683.62 | I23: 1748.12 | J23: 1766.93 | K23: 1780.37 | L23: 1753.5 | M23: 1721.25 | N23: 8657400 | O23: 3.45%
A24: 14 | B24: Pharma | C24: AUROPHARMA | D24: 443.75 | E24: 441.75 | F24: 434.25 | G24: 424.75 | H24: 417.25 | I24: 451.25 | J24: 458.75 | K24: 468.25 | L24: 449.25 | M24: 432.25 | N24: 18319000 | O24: -2.38%
A25: 15 | B25: Banking | C25: AXISBANK | D25: 748.95 | E25: 748.45 | F25: 743.30 | G25: 737.65 | H25: 732.50 | I25: 754.10 | J25: 759.25 | K25: 764.90 | L25: 753.6 | M25: 742.8 | N25: 56031600 | O25: -2.08%
A26: 16 | B26: Automobile | C26: BAJAJ-AUTO | D26: 3170.60 | E26: 3162.42 | F26: 3145.63 | G26: 3120.67 | H26: 3103.88 | I26: 3187.38 | J26: 3204.17 | K26: 3229.13 | L26: 3179.2 | M26: 3137.45 | N26: 2231250 | O26: -1.45%
A27: 17 | B27: Finance | C27: BAJAJFINSV | D27: 9105.10 | E27: 9127.02 | F27: 9061.43 | G27: 9017.77 | H27: 8952.18 | I27: 9170.68 | J27: 9236.27 | K27: 9279.93 | L27: 9192.6 | M27: 9083.35 | N27: 1403250 | O27: -1.96%
A28: 18 | B28: Finance | C28: BAJFINANCE | D28: 4146.85 | E28: 4160.00 | F28: 4122.45 | G28: 4098.05 | H28: 4060.50 | I28: 4184.40 | J28: 4221.95 | K28: 4246.35 | L28: 4197.55 | M28: 4135.6 | N28: 7774750 | O28: 0.83%
A29: 19 | B29: Automobile | C29: BALKRISIND | D29: 839.50 | E29: 837.80 | F29: 831.75 | G29: 824.00 | H29: 817.95 | I29: 845.55 | J29: 851.60 | K29: 859.35 | L29: 843.85 | M29: 830.05 | N29: 1820800 | O29: -3.23%
A30: 20 | B30: Banking | C30: BANKBARODA | D30: 99.05 | E30: 99.62 | F30: 97.63 | G30: 96.22 | H30: 94.23 | I30: 101.03 | J30: 103.02 | K30: 104.43 | L30: 101.6 | M30: 98.2 | N30: 77878800 | O30: 1.15%
A31: 21 | B31: Banking | C31: BANKINDIA | D31: 73.80 | E31: 74.32 | F31: 72.43 | G31: 71.07 | H31: 69.18 | I31: 75.68 | J31: 77.57 | K31: 78.93 | L31: 76.2 | M31: 72.95 | N31: 16080000 | O31: -6.06%
A32: 22 | B32: FMCG | C32: BATAINDIA | D32: 1690.60 | E32: 1693.88 | F32: 1679.72 | G32: 1668.83 | H32: 1654.67 | I32: 1704.77 | J32: 1718.93 | K32: 1729.82 | L32: 1708.05 | M32: 1683 | N32: 2321000 | O32: 1.69%
A33: 23 | B33: Capital_Goods | C33: BEL | D33: 111.00 | E33: 111.33 | F33: 110.02 | G33: 109.03 | H33: 107.72 | I33: 112.32 | J33: 113.63 | K33: 114.62 | L33: 112.65 | M33: 110.35 | N33: 28098000 | O33: 1.39%
A34: 24 | B34: FMCG | C34: BERGEPAINT | D34: 479.20 | E34: 480.20 | F34: 475.75 | G34: 472.30 | H34: 467.85 | I34: 483.65 | J34: 488.10 | K34: 491.55 | L34: 484.65 | M34: 476.75 | N34: 8918800 | O34: 2.61%
A35: 25 | B35: Automobile | C35: BHARATFORG | D35: 453.55 | E35: 454.00 | F35: 449.20 | G35: 444.85 | H35: 440.05 | I35: 458.35 | J35: 463.15 | K35: 467.50 | L35: 458.8 | M35: 449.65 | N35: 8359400 | O35: -0.95%
A36: 26 | B36: Telecom | C36: BHARTIARTL | D36: 438.45 | E36: 441.83 | F36: 430.92 | G36: 423.38 | H36: 412.47 | I36: 449.37 | J36: 460.28 | K36: 467.82 | L36: 452.75 | M36: 434.3 | N36: 40274058 | O36: -8.68%
A37: 27 | B37: Capital_Goods | C37: BHEL | D37: 55.90 | E37: 55.68 | F37: 54.57 | G37: 53.23 | H37: 52.12 | I37: 57.02 | J37: 58.13 | K37: 59.47 | L37: 56.8 | M37: 54.35 | N37: 62480500 | O37: 2.53%
A38: 28 | B38: Pharma | C38: BIOCON | D38: 263.45 | E38: 261.98 | F38: 257.97 | G38: 252.48 | H38: 248.47 | I38: 267.47 | J38: 271.48 | K38: 276.97 | L38: 266 | M38: 256.5 | N38: 11618200 | O38: 2.16%
A39: 29 | B39: Automobile | C39: BOSCHLTD | D39: 15107.45 | E39: 15153.35 | F39: 14866.70 | G39: 14625.95 | H39: 14339.30 | I39: 15394.10 | J39: 15680.75 | K39: 15921.50 | L39: 15440 | M39: 14912.6 | N39: 148800 | O39: 1.66%
A40: 30 | B40: Oil_Gas | C40: BPCL | D40: 546.40 | E40: 539.63 | F40: 529.42 | G40: 512.43 | H40: 502.22 | I40: 556.62 | J40: 566.83 | K40: 583.82 | L40: 549.85 | M40: 522.65 | N40: 26132400 | O40: 8.31%
A41: 31 | B41: FMCG | C41: BRITANNIA | D41: 3124.90 | E41: 3113.28 | F41: 3081.67 | G41: 3038.43 | H41: 3006.82 | I41: 3156.52 | J41: 3188.13 | K41: 3231.37 | L41: 3144.9 | M41: 3070.05 | N41: 2033600 | O41: 1.57%
A42: 32 | B42: Pharma | C42: CADILAHC | D42: 250.45 | E42: 248.47 | F42: 243.98 | G42: 237.52 | H42: 233.03 | I42: 254.93 | J42: 259.42 | K42: 265.88 | L42: 252.95 | M42: 242 | N42: 9286000 | O42: 10.35%
A43: 33 | B43: Banking | C43: CANBK | D43: 222.85 | E43: 223.78 | F43: 219.12 | G43: 215.38 | H43: 210.72 | I43: 227.52 | J43: 232.18 | K43: 235.92 | L43: 228.45 | M43: 220.05 | N43: 14688400 | O43: -5.54%
A44: 34 | B44: Oil_Gas | C44: CASTROLIND | D44: 153.00 | E44: 153.30 | F44: 151.30 | G44: 149.60 | H44: 147.60 | I44: 155.00 | J44: 157.00 | K44: 158.70 | L44: 155.3 | M44: 151.6 | N44: 5125900 | O44: -5.49%
A45: 35 | B45: Textile | C45: CENTURYTEX | D45: 452.40 | E45: 455.63 | F45: 442.77 | G45: 433.13 | H45: 420.27 | I45: 465.27 | J45: 478.13 | K45: 487.77 | L45: 468.5 | M45: 446 | N45: 3189600 | O45: -0.49%
A46: 36 | B46: Power | C46: CESC | D46: 752.55 | E46: 755.77 | F46: 746.53 | G46: 740.52 | H46: 731.28 | I46: 761.78 | J46: 771.02 | K46: 777.03 | L46: 765 | M46: 749.75 | N46: 1211200 | O46: 10.43%
A47: 37 | B47: Finance | C47: CHOLAFIN | D47: 320.45 | E47: 321.25 | F47: 316.50 | G47: 312.55 | H47: 307.80 | I47: 325.20 | J47: 329.95 | K47: 333.90 | L47: 326 | M47: 317.3 | N47: 4492500 | O47: -4.82%
A48: 38 | B48: Pharma | C48: CIPLA | D48: 482.40 | E48: 478.43 | F48: 472.82 | G48: 463.23 | H48: 457.62 | I48: 488.02 | J48: 493.63 | K48: 503.22 | L48: 484.05 | M48: 468.85 | N48: 13605600 | O48: -1.17%
A49: 39 | B49: Others | C49: COALINDIA | D49: 203.20 | E49: 202.30 | F49: 200.40 | G49: 197.60 | H49: 195.70 | I49: 205.10 | J49: 207.00 | K49: 209.80 | L49: 204.2 | M49: 199.5 | N49: 23649800 | O49: -1.94%
A50: 40 | B50: FMCG | C50: COLPAL | D50: 1537.25 | E50: 1537.07 | F50: 1523.18 | G50: 1509.12 | H50: 1495.23 | I50: 1551.13 | J50: 1565.02 | K50: 1579.08 | L50: 1550.95 | M50: 1523 | N50: 2811900 | O50: 0.63%
A51: 41 | B51: Others | C51: CONCOR | D51: 580.45 | E51: 579.93 | F51: 572.67 | G51: 564.88 | H51: 557.62 | I51: 587.72 | J51: 594.98 | K51: 602.77 | L51: 587.2 | M51: 572.15 | N51: 8318286 | O51: 15.14%
A52: 42 | B52: Capital_Goods | C52: CUMMINSIND | D52: 571.35 | E52: 568.88 | F52: 565.07 | G52: 558.78 | H52: 554.97 | I52: 575.17 | J52: 578.98 | K52: 585.27 | L52: 572.7 | M52: 562.6 | N52: 1730600 | O52: 1.31%
A53: 43 | B53: FMCG | C53: DABUR | D53: 468.70 | E53: 464.73 | F53: 459.47 | G53: 450.23 | H53: 444.97 | I53: 473.97 | J53: 479.23 | K53: 488.47 | L53: 470 | M53: 455.5 | N53: 11398750 | O53: 0.39%
A54: 44 | B54: Media | C54: DISHTV | D54: 17.00 | E54: 16.55 | F54: 15.00 | G54: 13.00 | H54: 11.45 | I54: 18.55 | J54: 20.10 | K54: 22.10 | L54: 18.1 | M54: 14.55 | N54: 117742900 | O54: 23.55%
A55: 45 | B55: Pharma | C55: DIVISLAB | D55: 1769.45 | E55: 1768.60 | F55: 1732.20 | G55: 1694.95 | H55: 1658.55 | I55: 1805.85 | J55: 1842.25 | K55: 1879.50 | L55: 1805 | M55: 1731.35 | N55: 2616800 | O55: 6.10%
A56: 46 | B56: Realty | C56: DLF | D56: 212.40 | E56: 214.18 | F56: 209.62 | G56: 206.83 | H56: 202.27 | I56: 216.97 | J56: 221.53 | K56: 224.32 | L56: 218.75 | M56: 211.4 | N56: 32488000 | O56: -4.30%
A57: 47 | B57: Pharma | C57: DRREDDY | D57: 2843.55 | E57: 2823.17 | F57: 2773.93 | G57: 2704.32 | H57: 2655.08 | I57: 2892.78 | J57: 2942.02 | K57: 3011.63 | L57: 2872.4 | M57: 2753.55 | N57: 3615250 | O57: 0.52%
A58: 48 | B58: Automobile | C58: EICHERMOT | D58: 21536.20 | E58: 21551.80 | F58: 21379.40 | G58: 21222.60 | H58: 21050.20 | I58: 21708.60 | J58: 21881.00 | K58: 22037.80 | L58: 21724.2 | M58: 21395 | N58: 293080 | O58: -1.61%
A59: 49 | B59: Finance | C59: EQUITAS | D59: 89.90 | E59: 89.52 | F59: 88.43 | G59: 86.97 | H59: 85.88 | I59: 90.98 | J59: 92.07 | K59: 93.53 | L59: 90.6 | M59: 88.05 | N59: 10489000 | O59: 3.73%
A60: 50 | B60: Automobile | C60: ESCORTS | D60: 673.05 | E60: 674.50 | F60: 659.35 | G60: 645.65 | H60: 630.50 | I60: 688.20 | J60: 703.35 | K60: 717.05 | L60: 689.65 | M60: 660.8 | N60: 5253600 | O60: 7.33%
A61: 51 | B61: Automobile | C61: EXIDEIND | D61: 189.10 | E61: 189.70 | F61: 187.55 | G61: 186.00 | H61: 183.85 | I61: 191.25 | J61: 193.40 | K61: 194.95 | L61: 191.85 | M61: 188.15 | N61: 10239400 | O61: 0.04%
A62: 52 | B62: Banking | C62: FEDERALBNK | D62: 88.75 | E62: 88.67 | F62: 87.43 | G62: 86.12 | H62: 84.88 | I62: 89.98 | J62: 91.22 | K62: 92.53 | L62: 89.9 | M62: 87.35 | N62: 58590000 | O62: 0.89%
A63: 53 | B63: Oil_Gas | C63: GAIL | D63: 125.00 | E63: 124.93 | F63: 124.17 | G63: 123.33 | H63: 122.57 | I63: 125.77 | J63: 126.53 | K63: 127.37 | L63: 125.7 | M63: 124.1 | N63: 53601366 | O63: 1.93%
A64: 54 | B64: Pharma | C64: GLENMARK | D64: 359.35 | E64: 356.05 | F64: 347.75 | G64: 336.15 | H64: 327.85 | I64: 367.65 | J64: 375.95 | K64: 387.55 | L64: 364.35 | M64: 344.45 | N64: 6528600 | O64: -0.50%
A65: 55 | B65: Infrastructure | C65: GMRINFRA | D65: 20.85 | E65: 20.90 | F65: 20.55 | G65: 20.25 | H65: 19.90 | I65: 21.20 | J65: 21.55 | K65: 21.85 | L65: 21.25 | M65: 20.6 | N65: 140535000 | O65: 2.73%
A66: 56 | B66: FMCG | C66: GODREJCP | D66: 712.85 | E66: 707.58 | F66: 699.72 | G66: 686.58 | H66: 678.72 | I66: 720.72 | J66: 728.58 | K66: 741.72 | L66: 715.45 | M66: 694.45 | N66: 4353600 | O66: 0.48%
A67: 57 | B67: Cement | C67: GRASIM | D67: 793.10 | E67: 793.37 | F67: 783.23 | G67: 773.37 | H67: 763.23 | I67: 803.23 | J67: 813.37 | K67: 823.23 | L67: 803.5 | M67: 783.5 | N67: 21051000 | O67: 2.64%
A68: 58 | B68: Others | C68: HAVELLS | D68: 672.05 | E68: 670.67 | F68: 663.78 | G68: 655.52 | H68: 648.63 | I68: 678.93 | J68: 685.82 | K68: 694.08 | L68: 677.55 | M68: 662.4 | N68: 5763000 | O68: -0.47%
A69: 59 | B69: Technology | C69: HCLTECH | D69: 1136.25 | E69: 1135.18 | F69: 1130.07 | G69: 1123.88 | H69: 1118.77 | I69: 1141.37 | J69: 1146.48 | K69: 1152.67 | L69: 1140.3 | M69: 1129 | N69: 11414900 | O69: 0.65%
A70: 60 | B70: Finance | C70: HDFC | D70: 2202.50 | E70: 2208.03 | F70: 2192.52 | G70: 2182.53 | H70: 2167.02 | I70: 2218.02 | J70: 2233.53 | K70: 2243.52 | L70: 2223.55 | M70: 2198.05 | N70: 33843500 | O70: -0.22%
A71: 61 | B71: Banking | C71: HDFCBANK | D71: 1272.75 | E71: 1274.08 | F71: 1265.17 | G71: 1257.58 | H71: 1248.67 | I71: 1281.67 | J71: 1290.58 | K71: 1298.17 | L71: 1283 | M71: 1266.5 | N71: 23102000 | O71: -5.75%
A72: 62 | B72: Automobile | C72: HEROMOTOCO | D72: 2478.20 | E72: 2472.40 | F72: 2449.80 | G72: 2421.40 | H72: 2398.80 | I72: 2500.80 | J72: 2523.40 | K72: 2551.80 | L72: 2495 | M72: 2444 | N72: 4103800 | O72: 5.45%
A73: 63 | B73: Technology | C73: HEXAWARE | D73: 341.55 | E73: 340.82 | F73: 338.33 | G73: 335.12 | H73: 332.63 | I73: 344.03 | J73: 346.52 | K73: 349.73 | L73: 343.3 | M73: 337.6 | N73: 1422000 | O73: -1.76%
A74: 64 | B74: Metals | C74: HINDALCO | D74: 191.20 | E74: 191.92 | F74: 189.93 | G74: 188.67 | H74: 186.68 | I74: 193.18 | J74: 195.17 | K74: 196.43 | L74: 193.9 | M74: 190.65 | N74: 27769000 | O74: -0.11%
A75: 65 | B75: Oil_Gas | C75: HINDPETRO | D75: 297.00 | E75: 298.10 | F75: 292.90 | G75: 288.80 | H75: 283.60 | I75: 302.20 | J75: 307.40 | K75: 311.50 | L75: 303.3 | M75: 294 | N75: 23961000 | O75: 10.94%
A76: 66 | B76: FMCG | C76: HINDUNILVR | D76: 2033.35 | E76: 2038.87 | F76: 2018.03 | G76: 2002.72 | H76: 1981.88 | I76: 2054.18 | J76: 2075.02 | K76: 2090.33 | L76: 2059.7 | M76: 2023.55 | N76: 9268200 | O76: 0.80%
A77: 67 | B77: Finance | C77: IBULHSGFIN | D77: 206.45 | E77: 207.65 | F77: 202.45 | G77: 198.45 | H77: 193.25 | I77: 211.65 | J77: 216.85 | K77: 220.85 | L77: 212.85 | M77: 203.65 | N77: 31752400 | O77: 1.22%
A78: 68 | B78: Banking | C78: ICICIBANK | D78: 493.65 | E78: 494.22 | F78: 491.03 | G78: 488.42 | H78: 485.23 | I78: 496.83 | J78: 500.02 | K78: 502.63 | L78: 497.4 | M78: 491.6 | N78: 83514750 | O78: 1.25%
A79: 69 | B79: Finance | C79: ICICIPRULI | D79: 503.45 | E79: 505.33 | F79: 500.17 | G79: 496.88 | H79: 491.72 | I79: 508.62 | J79: 513.78 | K79: 517.07 | L79: 510.5 | M79: 502.05 | N79: 7483500 | O79: 1.90%
A80: 70 | B80: Telecom | C80: IDEA | D80: 7.05 | E80: 7.22 | F80: 6.53 | G80: 6.02 | H80: 5.33 | I80: 7.73 | J80: 8.42 | K80: 8.93 | L80: 7.9 | M80: 6.7 | N80: 600866000 | O80: -19.87%
A81: 71 | B81: Banking | C81: IDFCFIRSTB | D81: 43.20 | E81: 43.23 | F81: 42.72 | G81: 42.23 | H81: 41.72 | I81: 43.72 | J81: 44.23 | K81: 44.72 | L81: 43.75 | M81: 42.75 | N81: 258108000 | O81: 1.47%
A82: 72 | B82: Oil_Gas | C82: IGL | D82: 423.35 | E82: 423.38 | F82: 418.47 | G82: 413.58 | H82: 408.67 | I82: 428.27 | J82: 433.18 | K82: 438.07 | L82: 428.3 | M82: 418.5 | N82: 5436750 | O82: -1.98%
A83: 73 | B83: Others | C83: INDIGO | D83: 1431.80 | E83: 1435.62 | F83: 1418.23 | G83: 1404.67 | H83: 1387.28 | I83: 1449.18 | J83: 1466.57 | K83: 1480.13 | L83: 1453 | M83: 1422.05 | N83: 3223500 | O83: -0.36%
A84: 74 | B84: Banking | C84: INDUSINDBK | D84: 1468.75 | E84: 1450.15 | F84: 1422.00 | G84: 1375.25 | H84: 1347.10 | I84: 1496.90 | J84: 1525.05 | K84: 1571.80 | L84: 1478.3 | M84: 1403.4 | N84: 10828800 | O84: -3.51%
A85: 75 | B85: Telecom | C85: INFRATEL | D85: 240.35 | E85: 245.40 | F85: 231.65 | G85: 222.95 | H85: 209.20 | I85: 254.10 | J85: 267.85 | K85: 276.55 | L85: 259.15 | M85: 236.7 | N85: 15990000 | O85: -0.88%
A86: 76 | B86: Technology | C86: INFY | D86: 712.95 | E86: 711.52 | F86: 707.48 | G86: 702.02 | H86: 697.98 | I86: 716.98 | J86: 721.02 | K86: 726.48 | L86: 715.55 | M86: 706.05 | N86: 56677200 | O86: -0.84%
A87: 77 | B87: Oil_Gas | C87: IOC | D87: 131.30 | E87: 132.00 | F87: 129.50 | G87: 127.70 | H87: 125.20 | I87: 133.80 | J87: 136.30 | K87: 138.10 | L87: 134.5 | M87: 130.2 | N87: 37058000 | O87: 10.01%
A88: 78 | B88: FMCG | C88: ITC | D88: 250.80 | E88: 249.93 | F88: 247.92 | G88: 245.03 | H88: 243.02 | I88: 252.82 | J88: 254.83 | K88: 257.72 | L88: 251.95 | M88: 247.05 | N88: 108124800 | O88: 0.86%
A89: 79 | B89: Metals | C89: JINDALSTEL | D89: 140.55 | E89: 140.97 | F89: 137.83 | G89: 135.12 | H89: 131.98 | I89: 143.68 | J89: 146.82 | K89: 149.53 | L89: 144.1 | M89: 138.25 | N89: 40207000 | O89: 1.37%
A90: 80 | B90: Metals | C90: JSWSTEEL | D90: 249.20 | E90: 249.55 | F90: 245.95 | G90: 242.70 | H90: 239.10 | I90: 252.80 | J90: 256.40 | K90: 259.65 | L90: 253.15 | M90: 246.3 | N90: 51743200 | O90: -0.72%
A91: 81 | B91: Others | C91: JUBLFOOD | D91: 1596.40 | E91: 1595.43 | F91: 1583.47 | G91: 1570.53 | H91: 1558.57 | I91: 1608.37 | J91: 1620.33 | K91: 1633.27 | L91: 1607.4 | M91: 1582.5 | N91: 2409000 | O91: 1.03%
A92: 82 | B92: Others | C92: JUSTDIAL | D92: 564.95 | E92: 560.68 | F92: 547.72 | G92: 530.48 | H92: 517.52 | I92: 577.92 | J92: 590.88 | K92: 608.12 | L92: 573.65 | M92: 543.45 | N92: 2891000 | O92: -3.32%
A93: 83 | B93: Banking | C93: KOTAKBANK | D93: 1602.35 | E93: 1608.10 | F93: 1592.30 | G93: 1582.25 | H93: 1566.45 | I93: 1618.15 | J93: 1633.95 | K93: 1644.00 | L93: 1623.9 | M93: 1598.05 | N93: 8335600 | O93: 1.34%
A94: 84 | B94: Finance | C94: L&TFH | D94: 99.25 | E94: 99.47 | F94: 98.28 | G94: 97.32 | H94: 96.13 | I94: 100.43 | J94: 101.62 | K94: 102.58 | L94: 100.65 | M94: 98.5 | N94: 35132400 | O94: -1.01%
A95: 85 | B95: Finance | C95: LICHSGFIN | D95: 419.30 | E95: 420.80 | F95: 414.95 | G95: 410.60 | H95: 404.75 | I95: 425.15 | J95: 431.00 | K95: 435.35 | L95: 426.65 | M95: 416.45 | N95: 9508300 | O95: 0.86%
A96: 86 | B96: Capital_Goods | C96: LT | D96: 1381.50 | E96: 1380.85 | F96: 1367.70 | G96: 1353.90 | H96: 1340.75 | I96: 1394.65 | J96: 1407.80 | K96: 1421.60 | L96: 1394 | M96: 1367.05 | N96: 14321625 | O96: 0.34%
A97: 87 | B97: Pharma | C97: LUPIN | D97: 780.15 | E97: 771.77 | F97: 759.83 | G97: 739.52 | H97: 727.58 | I97: 792.08 | J97: 804.02 | K97: 824.33 | L97: 783.7 | M97: 751.45 | N97: 7857500 | O97: 4.01%
A98: 88 | B98: Automobile | C98: M&M | D98: 562.05 | E98: 563.38 | F98: 556.77 | G98: 551.48 | H98: 544.87 | I98: 568.67 | J98: 575.28 | K98: 580.57 | L98: 570 | M98: 558.1 | N98: 21852000 | O98: 0.12%
A99: 89 | B99: Finance | C99: M&MFIN | D99: 329.30 | E99: 330.55 | F99: 326.40 | G99: 323.50 | H99: 319.35 | I99: 333.45 | J99: 337.60 | K99: 340.50 | L99: 334.7 | M99: 327.65 | N99: 12160350 | O99: -1.45%
A100: 90 | B100: Finance | C100: MANAPPURAM | D100: 166.80 | E100: 167.97 | F100: 165.03 | G100: 163.27 | H100: 160.33 | I100: 169.73 | J100: 172.67 | K100: 174.43 | L100: 170.9 | M100: 166.2 | N100: 16638000 | O100: -1.84%
A101: 91 | B101: FMCG | C101: MARICO | D101: 356.50 | E101: 358.00 | F101: 354.20 | G101: 351.90 | H101: 348.10 | I101: 360.30 | J101: 364.10 | K101: 366.40 | L101: 361.8 | M101: 355.7 | N101: 11462100 | O101: 1.36%
A102: 92 | B102: Automobile | C102: MARUTI | D102: 7170.15 | E102: 7155.05 | F102: 7066.10 | G102: 6962.05 | H102: 6873.10 | I102: 7259.10 | J102: 7348.05 | K102: 7452.10 | L102: 7244 | M102: 7051 | N102: 3060125 | O102: 6.37%
A103: 93 | B103: FMCG | C103: MCDOWELL-N | D103: 613.65 | E103: 615.00 | F103: 608.65 | G103: 603.65 | H103: 597.30 | I103: 620.00 | J103: 626.35 | K103: 631.35 | L103: 621.35 | M103: 610 | N103: 10867500 | O103: 1.70%
A104: 94 | B104: Finance | C104: MFSL | D104: 508.15 | E104: 500.87 | F104: 490.28 | G104: 472.42 | H104: 461.83 | I104: 518.73 | J104: 529.32 | K104: 547.18 | L104: 511.45 | M104: 483 | N104: 6242700 | O104: 6.29%
A105: 95 | B105: Oil_Gas | C105: MGL | D105: 1039.95 | E105: 1043.20 | F105: 1030.30 | G105: 1020.65 | H105: 1007.75 | I105: 1052.85 | J105: 1065.75 | K105: 1075.40 | L105: 1056.1 | M105: 1033.55 | N105: 2241000 | O105: -0.13%
A106: 96 | B106: Technology | C106: MINDTREE | D106: 719.15 | E106: 714.18 | F106: 706.97 | G106: 694.78 | H106: 687.57 | I106: 726.37 | J106: 733.58 | K106: 745.77 | L106: 721.4 | M106: 702 | N106: 1279200 | O106: -4.48%
A107: 97 | B107: Automobile | C107: MOTHERSUMI | D107: 132.75 | E107: 133.45 | F107: 131.60 | G107: 130.45 | H107: 128.60 | I107: 134.60 | J107: 136.45 | K107: 137.60 | L107: 135.3 | M107: 132.3 | N107: 27986300 | O107: -2.08%
A108: 98 | B108: Automobile | C108: MRF | D108: 63239.70 | E108: 63460.53 | F108: 62923.52 | G108: 62607.33 | H108: 62070.32 | I108: 63776.72 | J108: 64313.73 | K108: 64629.92 | L108: 63997.55 | M108: 63144.35 | N108: 18360 | O108: -0.86%
A109: 99 | B109: Finance | C109: MUTHOOTFIN | D109: 698.85 | E109: 699.58 | F109: 692.27 | G109: 685.68 | H109: 678.37 | I109: 706.17 | J109: 713.48 | K109: 720.07 | L109: 706.9 | M109: 693 | N109: 3663000 | O109: 0.29%
A110: 100 | B110: Metals | C110: NATIONALUM | D110: 42.15 | E110: 42.32 | F110: 41.73 | G110: 41.32 | H110: 40.73 | I110: 42.73 | J110: 43.32 | K110: 43.73 | L110: 42.9 | M110: 41.9 | N110: 55861400 | O110: 1.90%
A111: 101 | B111: Infrastructure | C111: NBCC | D111: 37.45 | E111: 37.35 | F111: 37.00 | G111: 36.55 | H111: 36.20 | I111: 37.80 | J111: 38.15 | K111: 38.60 | L111: 37.7 | M111: 36.9 | N111: 41694500 | O111: 1.57%
A112: 102 | B112: Infrastructure | C112: NCC | D112: 61.45 | E112: 60.10 | F112: 58.30 | G112: 55.15 | H112: 53.35 | I112: 63.25 | J112: 65.05 | K112: 68.20 | L112: 61.9 | M112: 56.95 | N112: 46416000 | O112: 7.73%
A113: 103 | B113: FMCG | C113: NESTLEIND | D113: 14251.05 | E113: 14194.22 | F113: 14049.53 | G113: 13848.02 | H113: 13703.33 | I113: 14395.73 | J113: 14540.42 | K113: 14741.93 | L113: 14338.9 | M113: 13992.7 | N113: 474750 | O113: -1.55%
A114: 104 | B114: Technology | C114: NIITTECH | D114: 1515.15 | E114: 1523.45 | F114: 1493.90 | G114: 1472.65 | H114: 1443.10 | I114: 1544.70 | J114: 1574.25 | K114: 1595.50 | L114: 1553 | M114: 1502.2 | N114: 581625 | O114: 7.34%
A115: 105 | B115: Metals | C115: NMDC | D115: 102.10 | E115: 102.33 | F115: 100.12 | G115: 98.13 | H115: 95.92 | I115: 104.32 | J115: 106.53 | K115: 108.52 | L115: 104.55 | M115: 100.35 | N115: 21624000 | O115: -0.25%
A116: 106 | B116: Power | C116: NTPC | D116: 117.50 | E116: 117.20 | F116: 116.65 | G116: 115.80 | H116: 115.25 | I116: 118.05 | J116: 118.60 | K116: 119.45 | L116: 117.75 | M116: 116.35 | N116: 52041600 | O116: 0.67%
A117: 107 | B117: Oil_Gas | C117: OIL | D117: 159.05 | E117: 161.90 | F117: 154.80 | G117: 150.55 | H117: 143.45 | I117: 166.15 | J117: 173.25 | K117: 177.50 | L117: 169 | M117: 157.65 | N117: 9357447 | O117: 3.42%
A118: 108 | B118: Oil_Gas | C118: ONGC | D118: 134.15 | E118: 134.18 | F118: 132.62 | G118: 131.08 | H118: 129.52 | I118: 135.72 | J118: 137.28 | K118: 138.82 | L118: 135.75 | M118: 132.65 | N118: 23914500 | O118: 4.48%
A119: 109 | B119: Textile | C119: PAGEIND | D119: 23082.55 | E119: 23062.32 | F119: 22820.23 | G119: 22557.92 | H119: 22315.83 | I119: 23324.63 | J119: 23566.72 | K119: 23829.03 | L119: 23304.4 | M119: 22800 | N119: 169275 | O119: 2.00%
A120: 110 | B120: Pharma | C120: PEL | D120: 1775.70 | E120: 1786.38 | F120: 1747.42 | G120: 1719.13 | H120: 1680.17 | I120: 1814.67 | J120: 1853.63 | K120: 1881.92 | L120: 1825.35 | M120: 1758.1 | N120: 4449668 | O120: -0.24%
A121: 111 | B121: Oil_Gas | C121: PETRONET | D121: 275.85 | E121: 274.85 | F121: 273.40 | G121: 270.95 | H121: 269.50 | I121: 277.30 | J121: 278.75 | K121: 281.20 | L121: 276.3 | M121: 272.4 | N121: 20448000 | O121: -0.53%
A122: 112 | B122: Finance | C122: PFC | D122: 118.40 | E122: 118.83 | F122: 117.32 | G122: 116.23 | H122: 114.72 | I122: 119.92 | J122: 121.43 | K122: 122.52 | L122: 120.35 | M122: 117.75 | N122: 30764400 | O122: 2.90%
A123: 113 | B123: FMCG | C123: PIDILITIND | D123: 1328.85 | E123: 1323.18 | F123: 1312.87 | G123: 1296.88 | H123: 1286.57 | I123: 1339.17 | J123: 1349.48 | K123: 1365.47 | L123: 1333.5 | M123: 1307.2 | N123: 3420500 | O123: -1.86%
A124: 114 | B124: Banking | C124: PNB | D124: 64.05 | E124: 64.28 | F124: 63.22 | G124: 62.38 | H124: 61.32 | I124: 65.12 | J124: 66.18 | K124: 67.02 | L124: 65.35 | M124: 63.45 | N124: 114798700 | O124: 0.83%
A125: 115 | B125: Power | C125: POWERGRID | D125: 196.30 | E125: 195.75 | F125: 194.50 | G125: 192.70 | H125: 191.45 | I125: 197.55 | J125: 198.80 | K125: 200.60 | L125: 197 | M125: 193.95 | N125: 31132000 | O125: -4.34%
A126: 116 | B126: Media | C126: PVR | D126: 1771.35 | E126: 1760.05 | F126: 1744.30 | G126: 1717.25 | H126: 1701.50 | I126: 1787.10 | J126: 1802.85 | K126: 1829.90 | L126: 1775.8 | M126: 1733 | N126: 1252400 | O126: -1.32%
A127: 117 | B127: Cement | C127: RAMCOCEM | D127: 804.35 | E127: 804.65 | F127: 794.90 | G127: 785.45 | H127: 775.70 | I127: 814.10 | J127: 823.85 | K127: 833.30 | L127: 814.4 | M127: 795.2 | N127: 1014400 | O127: -3.35%
A128: 118 | B128: Banking | C128: RBLBANK | D128: 345.55 | E128: 339.83 | F128: 329.97 | G128: 314.38 | H128: 304.52 | I128: 355.42 | J128: 365.28 | K128: 380.87 | L128: 349.7 | M128: 324.25 | N128: 13508400 | O128: 2.49%
A129: 119 | B129: Power | C129: RECLTD | D129: 145.10 | E129: 144.93 | F129: 143.22 | G129: 141.33 | H129: 139.62 | I129: 146.82 | J129: 148.53 | K129: 150.42 | L129: 146.65 | M129: 143.05 | N129: 21438000 | O129: -3.61%
A130: 120 | B130: Oil_Gas | C130: RELIANCE | D130: 1547.35 | E130: 1554.57 | F130: 1536.38 | G130: 1525.42 | H130: 1507.23 | I130: 1565.53 | J130: 1583.72 | K130: 1594.68 | L130: 1572.75 | M130: 1543.6 | N130: 50383000 | O130: -2.60%
A131: 121 | B131: Metals | C131: SAIL | D131: 38.00 | E131: 37.88 | F131: 37.27 | G131: 36.53 | H131: 35.92 | I131: 38.62 | J131: 39.23 | K131: 39.97 | L131: 38.5 | M131: 37.15 | N131: 84517100 | O131: -1.62%
A132: 122 | B132: Banking | C132: SBIN | D132: 328.85 | E132: 328.92 | F132: 324.98 | G132: 321.12 | H132: 317.18 | I132: 332.78 | J132: 336.72 | K132: 340.58 | L132: 332.85 | M132: 325.05 | N132: 98877000 | O132: -3.29%
A133: 123 | B133: Cement | C133: SHREECEM | D133: 20378.30 | E133: 20389.05 | F133: 20069.30 | G133: 19760.30 | H133: 19440.55 | I133: 20698.05 | J133: 21017.80 | K133: 21326.80 | L133: 20708.8 | M133: 20080.05 | N133: 167800 | O133: 9.07%
A134: 124 | B134: Capital_Goods | C134: SIEMENS | D134: 1543.75 | E134: 1550.07 | F134: 1501.33 | G134: 1458.92 | H134: 1410.18 | I134: 1592.48 | J134: 1641.22 | K134: 1683.63 | L134: 1598.8 | M134: 1507.65 | N134: 2510750 | O134: 3.05%
A135: 125 | B135: Textile | C135: SRF | D135: 3230.80 | E135: 3235.98 | F135: 3195.77 | G135: 3160.73 | H135: 3120.52 | I135: 3271.02 | J135: 3311.23 | K135: 3346.27 | L135: 3276.2 | M135: 3200.95 | N135: 950500 | O135: 4.74%
A136: 126 | B136: Finance | C136: SRTRANSFIN | D136: 1130.25 | E136: 1131.47 | F136: 1120.68 | G136: 1111.12 | H136: 1100.33 | I136: 1141.03 | J136: 1151.82 | K136: 1161.38 | L136: 1142.25 | M136: 1121.9 | N136: 4240800 | O136: -0.95%
A137: 127 | B137: Pharma | C137: SUNPHARMA | D137: 451.15 | E137: 445.73 | F137: 430.02 | G137: 408.88 | H137: 393.17 | I137: 466.87 | J137: 482.58 | K137: 503.72 | L137: 461.45 | M137: 424.6 | N137: 65111600 | O137: 1.03%
A138: 128 | B138: Media | C138: SUNTV | D138: 497.25 | E138: 494.63 | F138: 488.72 | G138: 480.18 | H138: 474.27 | I138: 503.17 | J138: 509.08 | K138: 517.62 | L138: 500.55 | M138: 486.1 | N138: 3207800 | O138: 1.52%
A139: 129 | B139: Fertilisers | C139: TATACHEM | D139: 649.95 | E139: 649.87 | F139: 644.33 | G139: 638.72 | H139: 633.18 | I139: 655.48 | J139: 661.02 | K139: 666.63 | L139: 655.4 | M139: 644.25 | N139: 2271600 | O139: 0.60%
A140: 130 | B140: Technology | C140: TATAELXSI | D140: 816.00 | E140: 810.23 | F140: 802.47 | G140: 788.93 | H140: 781.17 | I140: 823.77 | J140: 831.53 | K140: 845.07 | L140: 818 | M140: 796.7 | N140: 1047000 | O140: -3.22%
A141: 131 | B141: FMCG | C141: TATAGLOBAL | D141: 306.80 | E141: 305.48 | F141: 303.07 | G141: 299.33 | H141: 296.92 | I141: 309.22 | J141: 311.63 | K141: 315.37 | L141: 307.9 | M141: 301.75 | N141: 13103100 | O141: -1.94%
A142: 132 | B142: Automobile | C142: TATAMOTORS | D142: 167.95 | E142: 168.43 | F142: 166.17 | G142: 164.38 | H142: 162.12 | I142: 170.22 | J142: 172.48 | K142: 174.27 | L142: 170.7 | M142: 166.65 | N142: 60138200 | O142: 1.64%
A143: 133 | B143: Automobile | C143: TATAMTRDVR | D143: 77.20 | E143: 77.50 | F143: 76.10 | G143: 75.00 | H143: 73.60 | I143: 78.60 | J143: 80.00 | K143: 81.10 | L143: 78.9 | M143: 76.4 | N143: 38078000 | O143: 4.01%
A144: 134 | B144: Power | C144: TATAPOWER | D144: 55.65 | E144: 55.62 | F144: 55.23 | G144: 54.82 | H144: 54.43 | I144: 56.03 | J144: 56.42 | K144: 56.83 | L144: 56 | M144: 55.2 | N144: 76572000 | O144: 1.23%
A145: 135 | B145: Metals | C145: TATASTEEL | D145: 399.70 | E145: 402.40 | F145: 395.40 | G145: 391.10 | H145: 384.10 | I145: 406.70 | J145: 413.70 | K145: 418.00 | L145: 409.4 | M145: 398.1 | N145: 22979357 | O145: -0.28%
A146: 136 | B146: Technology | C146: TCS | D146: 2114.45 | E146: 2116.30 | F146: 2095.60 | G146: 2076.75 | H146: 2056.05 | I146: 2135.15 | J146: 2155.85 | K146: 2174.70 | L146: 2137 | M146: 2097.45 | N146: 19929250 | O146: 0.91%
A147: 137 | B147: Technology | C147: TECHM | D147: 771.15 | E147: 766.95 | F147: 761.30 | G147: 751.45 | H147: 745.80 | I147: 776.80 | J147: 782.45 | K147: 792.30 | L147: 772.6 | M147: 757.1 | N147: 15537600 | O147: -1.08%
A148: 138 | B148: FMCG | C148: TITAN | D148: 1163.10 | E148: 1162.90 | F148: 1158.00 | G148: 1152.90 | H148: 1148.00 | I148: 1168.00 | J148: 1172.90 | K148: 1178.00 | L148: 1167.8 | M148: 1157.8 | N148: 11966250 | O148: -1.05%
A149: 139 | B149: Pharma | C149: TORNTPHARM | D149: 1747.95 | E149: 1750.30 | F149: 1718.65 | G149: 1689.35 | H149: 1657.70 | I149: 1779.60 | J149: 1811.25 | K149: 1840.55 | L149: 1781.95 | M149: 1721 | N149: 354000 | O149: 13.28%
A150: 140 | B150: Power | C150: TORNTPOWER | D150: 288.95 | E150: 289.82 | F150: 287.13 | G150: 285.32 | H150: 282.63 | I150: 291.63 | J150: 294.32 | K150: 296.13 | L150: 292.5 | M150: 288 | N150: 4647000 | O150: 0.91%
A151: 141 | B151: Automobile | C151: TVSMOTOR | D151: 444.60 | E151: 443.40 | F151: 440.00 | G151: 435.40 | H151: 432.00 | I151: 448.00 | J151: 451.40 | K151: 456.00 | L151: 446.8 | M151: 438.8 | N151: 9083600 | O151: 2.60%
A152: 142 | B152: FMCG | C152: UBL | D152: 1226.25 | E152: 1226.78 | F152: 1216.52 | G152: 1206.78 | H152: 1196.52 | I152: 1236.52 | J152: 1246.78 | K152: 1256.52 | L152: 1237.05 | M152: 1217.05 | N152: 1794100 | O152: 4.44%
A153: 143 | B153: Finance | C153: UJJIVAN | D153: 297.00 | E153: 294.57 | F153: 289.83 | G153: 282.67 | H153: 277.93 | I153: 301.73 | J153: 306.47 | K153: 313.63 | L153: 299.3 | M153: 287.4 | N153: 8738100 | O153: 0.89%
A154: 144 | B154: Cement | C154: ULTRACEMCO | D154: 4125.35 | E154: 4119.47 | F154: 4093.93 | G154: 4062.52 | H154: 4036.98 | I154: 4150.88 | J154: 4176.42 | K154: 4207.83 | L154: 4145 | M154: 4088.05 | N154: 2861800 | O154: 1.81%
A155: 145 | B155: Banking | C155: UNIONBANK | D155: 58.50 | E155: 59.05 | F155: 57.30 | G155: 56.10 | H155: 54.35 | I155: 60.25 | J155: 62.00 | K155: 63.20 | L155: 60.8 | M155: 57.85 | N155: 33593000 | O155: -1.96%
A156: 146 | B156: Fertilisers | C156: UPL | D156: 552.70 | E156: 552.32 | F156: 547.43 | G156: 542.17 | H156: 537.28 | I156: 557.58 | J156: 562.47 | K156: 567.73 | L156: 557.2 | M156: 547.05 | N156: 15589800 | O156: -0.98%
A157: 147 | B157: Metals | C157: VEDL | D157: 141.65 | E157: 142.13 | F157: 140.07 | G157: 138.48 | H157: 136.42 | I157: 143.72 | J157: 145.78 | K157: 147.37 | L157: 144.2 | M157: 140.55 | N157: 64254500 | O157: 1.36%
A158: 148 | B158: Capital_Goods | C158: VOLTAS | D158: 710.80 | E158: 712.43 | F158: 704.87 | G158: 698.93 | H158: 691.37 | I158: 718.37 | J158: 725.93 | K158: 731.87 | L158: 720 | M158: 706.5 | N158: 2883000 | O158: -0.62%
A159: 149 | B159: Technology | C159: WIPRO | D159: 249.70 | E159: 249.88 | F159: 248.82 | G159: 247.93 | H159: 246.87 | I159: 250.77 | J159: 251.83 | K159: 252.72 | L159: 250.95 | M159: 249 | N159: 25427200 | O159: 0.00%
A160: 150 | B160: Banking | C160: YESBANK | D160: 66.00 | E160: 64.80 | F160: 63.00 | G160: 60.00 | H160: 58.20 | I160: 67.80 | J160: 69.60 | K160: 72.60 | L160: 66.6 | M160: 61.8 | N160: 187242000 | O160: -1.04%
A161: 151 | B161: Media | C161: ZEEL | D161: 308.05 | E161: 300.75 | F161: 290.35 | G161: 272.65 | H161: 262.25 | I161: 318.45 | J161: 328.85 | K161: 346.55 | L161: 311.15 | M161: 283.05 | N161: 37726100 | O161: 10.84%
A178: Pivot Point: This is trigger point for intra day buy/sell based on the price range of the previous day
A179: As per the tool,the trader should take BUY position just above Pivot and keep the stop loss of pivot point and the first target would be Resistance 1(R1)
A180: If R1 is crossed then R2 becomes the next target with stop loss of at R1
A181: Similarly if price goes below pivot point then the trader should sell and keep a stop loss of pivot point and the first target would be S1
A182: If S1 is crossed then S2 becomes the next target with stop loss of at S1
A184: Disclaimer:
A185: This document has been prepared by the Retail Research Desk of Asit C Mehta
A186: Investment Intermediates Ltd. and is meant for use of the recipient only
A187: and is not for circulation. This document is not to be reported or
A188: copied or made available to others. It should not be considered to be
A189: taken as an offer to sell or a solicitation to buy any security. The
A190: information contained herein is from sources believed reliable. We do
A191: not represent that it is accurate or complete and it should not be
A192: relied upon as such. We may from time to time have positions in and buy
A193: and sell securities referred to herein

Sheet Cash Intra
M5: Back to Main Page
A6: FOR INTRA DAY TRADING | K6: =Main!B10 -> 2019-11-21
A8: Sr.no | B8: Scrip | C8: CLOSE RATE | D8: Pivot Point | E8: Supports | H8: Resistances
C9: Point | E9: S1 | F9: S2 | G9: S3 | H9: R1 | I9: R2 | J9: R3 | K9: HIGH | L9: LOW | M9: Total Trade Quanity in Lakhs
A10: 1 | B10: Nifty 50 | C10: 11999.1 | D10: 12001.25 | E10: 11963.90 | F10: 11928.70 | G10: 11891.35 | H10: 12036.45 | I10: 12073.80 | J10: 12109.00 | K10: 12038.6 | L10: 11966.05
A11: 2 | B11: Nifty Bank | C11: 31353.85 | D11: 31343.68 | E11: 31215.72 | F11: 31077.58 | G11: 30949.62 | H11: 31481.82 | I11: 31609.78 | J11: 31747.92 | K11: 31471.65 | L11: 31205.55
A12: 3 | B12: Nifty CPSE | C12: 1959.9 | D12: 1963.40 | E12: 1947.60 | F12: 1935.30 | G12: 1919.50 | H12: 1975.70 | I12: 1991.50 | J12: 2003.80 | K12: 1979.2 | L12: 1951.1
A13: 4 | B13: Nifty Infra | C13: 3325.35 | D13: 3330.37 | E13: 3313.23 | F13: 3301.12 | G13: 3283.98 | H13: 3342.48 | I13: 3359.62 | J13: 3371.73 | K13: 3347.5 | L13: 3318.25
A14: 5 | B14: Nifty IT | C14: 15318.5 | D14: 15300.85 | E14: 15252.65 | F14: 15186.80 | G14: 15138.60 | H14: 15366.70 | I14: 15414.90 | J14: 15480.75 | K14: 15349.05 | L14: 15235
A15: 6 | B15: Nifty PSE | C15: 3310.65 | D15: 3305.45 | E15: 3295.05 | F15: 3279.45 | G15: 3269.05 | H15: 3321.05 | I15: 3331.45 | J15: 3347.05 | K15: 3315.85 | L15: 3289.85
A16: 7 | B16: Nifty Midcap 50 | C16: 4668.9 | D16: 4672.13 | E16: 4651.67 | F16: 4634.43 | G16: 4613.97 | H16: 4689.37 | I16: 4709.83 | J16: 4727.07 | K16: 4692.6 | L16: 4654.9
A17: 8 | B17: ACC | C17: 1483.75 | D17: 1489.77 | E17: 1474.98 | F17: 1466.22 | G17: 1451.43 | H17: 1498.53 | I17: 1513.32 | J17: 1522.08 | K17: 1504.55 | L17: 1481 | M17: 5.36347
A18: 9 | B18: AUBANK | C18: 816.4 | D18: 814.17 | E18: 798.33 | F18: 780.27 | G18: 764.43 | H18: 832.23 | I18: 848.07 | J18: 866.13 | K18: 830 | L18: 796.1 | M18: 2.42179
A19: 10 | B19: ADANIPORTS | C19: 366.7 | D19: 369.27 | E19: 361.43 | F19: 356.17 | G19: 348.33 | H19: 374.53 | I19: 382.37 | J19: 387.63 | K19: 377.1 | L19: 364 | M19: 63.85953
A20: 11 | B20: ADANIPOWER | C20: 60.35 | D20: 60.37 | E20: 59.28 | F20: 58.22 | G20: 57.13 | H20: 61.43 | I20: 62.52 | J20: 63.58 | K20: 61.45 | L20: 59.3 | M20: 91.65116
A21: 12 | B21: ABCAPITAL | C21: 85.6 | D21: 85.17 | E21: 84.43 | F21: 83.27 | G21: 82.53 | H21: 86.33 | I21: 87.07 | J21: 88.23 | K21: 85.9 | L21: 84 | M21: 22.69017
A22: 13 | B22: ABFRL | C22: 216.05 | D22: 216.17 | E22: 213.28 | F22: 210.52 | G22: 207.63 | H22: 218.93 | I22: 221.82 | J22: 224.58 | K22: 219.05 | L22: 213.4 | M22: 4.00831
A23: 14 | B23: AJANTPHARM | C23: 1004 | D23: 994.70 | E23: 981.45 | F23: 958.90 | G23: 945.65 | H23: 1017.25 | I23: 1030.50 | J23: 1053.05 | K23: 1007.95 | L23: 972.15 | M23: 2.46468
A24: 15 | B24: ALKEM | C24: 2083.55 | D24: 2088.45 | E24: 2056.65 | F24: 2029.75 | G24: 1997.95 | H24: 2115.35 | I24: 2147.15 | J24: 2174.05 | K24: 2120.25 | L24: 2061.55 | M24: 0.26567
A25: 16 | B25: ALBK | C25: 24.85 | D25: 25.27 | E25: 24.28 | F25: 23.72 | G25: 22.73 | H25: 25.83 | I25: 26.82 | J25: 27.38 | K25: 26.25 | L25: 24.7 | M25: 71.55982
A26: 17 | B26: AMARAJABAT | C26: 753 | D26: 754.42 | E26: 745.58 | F26: 738.17 | G26: 729.33 | H26: 761.83 | I26: 770.67 | J26: 778.08 | K26: 763.25 | L26: 747 | M26: 4.26255
A27: 18 | B27: AMBUJACEM | C27: 201.6 | D27: 201.87 | E27: 200.73 | F27: 199.87 | G27: 198.73 | H27: 202.73 | I27: 203.87 | J27: 204.73 | K27: 203 | L27: 201 | M27: 19.06946
A28: 19 | B28: APOLLOHOSP | C28: 1421.55 | D28: 1424.55 | E28: 1412.00 | F28: 1402.45 | G28: 1389.90 | H28: 1434.10 | I28: 1446.65 | J28: 1456.20 | K28: 1437.1 | L28: 1415 | M28: 6.60964
A29: 20 | B29: APOLLOTYRE | C29: 167.65 | D29: 168.30 | E29: 165.85 | F29: 164.05 | G29: 161.60 | H29: 170.10 | I29: 172.55 | J29: 174.35 | K29: 170.75 | L29: 166.5 | M29: 22.12021
A30: 21 | B30: ASHOKLEY | C30: 83 | D30: 82.90 | E30: 81.10 | F30: 79.20 | G30: 77.40 | H30: 84.80 | I30: 86.60 | J30: 88.50 | K30: 84.7 | L30: 81 | M30: 322.59341
A31: 22 | B31: ASIANPAINT | C31: 1723.5 | D31: 1729.27 | E31: 1709.68 | F31: 1695.87 | G31: 1676.28 | H31: 1743.08 | I31: 1762.67 | J31: 1776.48 | K31: 1748.85 | L31: 1715.45 | M31: 13.74382
A32: 23 | B32: AUROPHARMA | C32: 444.8 | D32: 441.93 | E32: 434.87 | F32: 424.93 | G32: 417.87 | H32: 451.87 | I32: 458.93 | J32: 468.87 | K32: 449 | L32: 432 | M32: 50.09429
A33: 24 | B33: DMART | C33: 1826.2 | D33: 1837.02 | E33: 1806.03 | F33: 1785.87 | G33: 1754.88 | H33: 1857.18 | I33: 1888.17 | J33: 1908.33 | K33: 1868 | L33: 1816.85 | M33: 3.63662
A34: 25 | B34: AXISBANK | C34: 748.75 | D34: 747.95 | E34: 742.05 | F34: 735.35 | G34: 729.45 | H34: 754.65 | I34: 760.55 | J34: 767.25 | K34: 753.85 | L34: 741.25 | M34: 87.98051
A35: 26 | B35: BAJAJ-AUTO | C35: 3162.4 | D35: 3153.93 | E35: 3138.97 | F35: 3115.53 | G35: 3100.57 | H35: 3177.37 | I35: 3192.33 | J35: 3215.77 | K35: 3168.9 | L35: 3130.5 | M35: 2.38889
A36: 27 | B36: BAJFINANCE | C36: 4138.55 | D36: 4149.32 | E36: 4116.63 | F36: 4094.72 | G36: 4062.03 | H36: 4171.23 | I36: 4203.92 | J36: 4225.83 | K36: 4182 | L36: 4127.4 | M36: 8.13879
A37: 28 | B37: BAJAJFINSV | C37: 9079.25 | D37: 9108.08 | E37: 9031.17 | F37: 8983.08 | G37: 8906.17 | H37: 9156.17 | I37: 9233.08 | J37: 9281.17 | K37: 9185 | L37: 9060 | M37: 2.43993
A38: 29 | B38: BAJAJHLDNG | C38: 3702.05 | D38: 3717.02 | E38: 3677.03 | F38: 3652.02 | G38: 3612.03 | H38: 3742.03 | I38: 3782.02 | J38: 3807.03 | K38: 3757 | L38: 3692 | M38: 0.11041
A39: 30 | B39: BALKRISIND | C39: 840.6 | D39: 838.10 | E39: 832.75 | F39: 824.90 | G39: 819.55 | H39: 845.95 | I39: 851.30 | J39: 859.15 | K39: 843.45 | L39: 830.25 | M39: 5.17114
A40: 31 | B40: BANDHANBNK | C40: 525.7 | D40: 524.75 | E40: 506.00 | F40: 486.30 | G40: 467.55 | H40: 544.45 | I40: 563.20 | J40: 582.90 | K40: 543.5 | L40: 505.05 | M40: 52.87905
A41: 32 | B41: BANKBARODA | C41: 98.9 | D41: 99.43 | E41: 97.52 | F41: 96.13 | G41: 94.22 | H41: 100.82 | I41: 102.73 | J41: 104.12 | K41: 101.35 | L41: 98.05 | M41: 343.25824
A42: 33 | B42: BANKINDIA | C42: 73.6 | D42: 74.18 | E42: 72.22 | F42: 70.83 | G42: 68.87 | H42: 75.57 | I42: 77.53 | J42: 78.92 | K42: 76.15 | L42: 72.8 | M42: 163.56384
A43: 34 | B43: BATAINDIA | C43: 1683.95 | D43: 1687.45 | E43: 1673.70 | F43: 1663.45 | G43: 1649.70 | H43: 1697.70 | I43: 1711.45 | J43: 1721.70 | K43: 1701.2 | L43: 1677.2 | M43: 3.99565
A44: 35 | B44: BERGEPAINT | C44: 485.2 | D44: 486.52 | E44: 481.68 | F44: 478.17 | G44: 473.33 | H44: 490.03 | I44: 494.87 | J44: 498.38 | K44: 491.35 | L44: 483 | M44: 10.09511
A45: 36 | B45: BEL | C45: 110.8 | D45: 111.32 | E45: 109.88 | F45: 108.97 | G45: 107.53 | H45: 112.23 | I45: 113.67 | J45: 114.58 | K45: 112.75 | L45: 110.4 | M45: 69.44846
A46: 37 | B46: BHARATFORG | C46: 458.25 | D46: 458.98 | E46: 453.27 | F46: 448.28 | G46: 442.57 | H46: 463.97 | I46: 469.68 | J46: 474.67 | K46: 464.7 | L46: 454 | M46: 17.11834
A47: 38 | B47: BHEL | C47: 55.8 | D47: 55.55 | E47: 54.50 | F47: 53.20 | G47: 52.15 | H47: 56.85 | I47: 57.90 | J47: 59.20 | K47: 56.6 | L47: 54.25 | M47: 243.5217
A48: 39 | B48: BPCL | C48: 544.6 | D48: 538.22 | E48: 528.43 | F48: 512.27 | G48: 502.48 | H48: 554.38 | I48: 564.17 | J48: 580.33 | K48: 548 | L48: 522.05 | M48: 188.44498
A49: 40 | B49: BHARTIARTL | C49: 437.3 | D49: 441.12 | E49: 429.28 | F49: 421.27 | G49: 409.43 | H49: 449.13 | I49: 460.97 | J49: 468.98 | K49: 452.95 | L49: 433.1 | M49: 556.44344
A50: 41 | B50: INFRATEL | C50: 240.9 | D50: 246.23 | E50: 232.17 | F50: 223.43 | G50: 209.37 | H50: 254.97 | I50: 269.03 | J50: 277.77 | K50: 260.3 | L50: 237.5 | M50: 240.39955
A51: 42 | B51: BIOCON | C51: 262.8 | D51: 261.18 | E51: 257.12 | F51: 251.43 | G51: 247.37 | H51: 266.87 | I51: 270.93 | J51: 276.62 | K51: 265.25 | L51: 255.5 | M51: 33.61132
A52: 43 | B52: BBTC | C52: 1113.65 | D52: 1113.47 | E52: 1088.28 | F52: 1062.92 | G52: 1037.73 | H52: 1138.83 | I52: 1164.02 | J52: 1189.38 | K52: 1138.65 | L52: 1088.1 | M52: 1.50941
A53: 44 | B53: BOSCHLTD | C53: 15059.7 | D53: 15112.25 | E53: 14829.45 | F53: 14599.20 | G53: 14316.40 | H53: 15342.50 | I53: 15625.30 | J53: 15855.55 | K53: 15395.05 | L53: 14882 | M53: 0.13794
A54: 45 | B54: BRITANNIA | C54: 3116.3 | D54: 3103.77 | E54: 3072.53 | F54: 3028.77 | G54: 2997.53 | H54: 3147.53 | I54: 3178.77 | J54: 3222.53 | K54: 3135 | L54: 3060 | M54: 5.04339
A55: 46 | B55: CESC | C55: 749.7 | D55: 753.47 | E55: 743.93 | F55: 738.17 | G55: 728.63 | H55: 759.23 | I55: 768.77 | J55: 774.53 | K55: 763 | L55: 747.7 | M55: 2.72348
A56: 47 | B56: CADILAHC | C56: 249.45 | D56: 247.63 | E56: 243.32 | F56: 237.18 | G56: 232.87 | H56: 253.77 | I56: 258.08 | J56: 264.22 | K56: 251.95 | L56: 241.5 | M56: 25.80699
A57: 48 | B57: CANBK | C57: 222.5 | D57: 223.62 | E57: 219.08 | F57: 215.67 | G57: 211.13 | H57: 227.03 | I57: 231.57 | J57: 234.98 | K57: 228.15 | L57: 220.2 | M57: 163.73708
A58: 49 | B58: CASTROLIND | C58: 152.6 | D58: 152.98 | E58: 150.97 | F58: 149.33 | G58: 147.32 | H58: 154.62 | I58: 156.63 | J58: 158.27 | K58: 155 | L58: 151.35 | M58: 22.44106
A59: 50 | B59: CHOLAFIN | C59: 319.9 | D59: 321.08 | E59: 315.32 | F59: 310.73 | G59: 304.97 | H59: 325.67 | I59: 331.43 | J59: 336.02 | K59: 326.85 | L59: 316.5 | M59: 15.6894
A60: 51 | B60: CIPLA | C60: 482.6 | D60: 478.32 | E60: 472.93 | F60: 463.27 | G60: 457.88 | H60: 487.98 | I60: 493.37 | J60: 503.03 | K60: 483.7 | L60: 468.65 | M60: 40.80054
A61: 52 | B61: CUB | C61: 214.65 | D61: 214.32 | E61: 212.73 | F61: 210.82 | G61: 209.23 | H61: 216.23 | I61: 217.82 | J61: 219.73 | K61: 215.9 | L61: 212.4 | M61: 3.28109
A62: 53 | B62: COALINDIA | C62: 203.05 | D62: 202.17 | E62: 200.33 | F62: 197.62 | G62: 195.78 | H62: 204.88 | I62: 206.72 | J62: 209.43 | K62: 204 | L62: 199.45 | M62: 44.56738
A63: 54 | B63: COLPAL | C63: 1542.25 | D63: 1539.22 | E63: 1526.08 | F63: 1509.92 | G63: 1496.78 | H63: 1555.38 | I63: 1568.52 | J63: 1584.68 | K63: 1552.35 | L63: 1523.05 | M63: 6.73815
A64: 55 | B64: CONCOR | C64: 578.15 | D64: 578.12 | E64: 571.63 | F64: 565.12 | G64: 558.63 | H64: 584.63 | I64: 591.12 | J64: 597.63 | K64: 584.6 | L64: 571.6 | M64: 53.06743
A65: 56 | B65: COROMANDEL | C65: 469.55 | D65: 470.70 | E65: 466.10 | F65: 462.65 | G65: 458.05 | H65: 474.15 | I65: 478.75 | J65: 482.20 | K65: 475.3 | L65: 467.25 | M65: 0.68751
A66: 57 | B66: CROMPTON | C66: 257.15 | D66: 258.97 | E66: 252.68 | F66: 248.22 | G66: 241.93 | H66: 263.43 | I66: 269.72 | J66: 274.18 | K66: 265.25 | L66: 254.5 | M66: 21.27892
A67: 58 | B67: CUMMINSIND | C67: 569.55 | D67: 567.60 | E67: 564.20 | F67: 558.85 | G67: 555.45 | H67: 572.95 | I67: 576.35 | J67: 581.70 | K67: 571 | L67: 562.25 | M67: 4.18796
A68: 59 | B68: DLF | C68: 212.1 | D68: 214.05 | E68: 209.40 | F68: 206.70 | G68: 202.05 | H68: 216.75 | I68: 221.40 | J68: 224.10 | K68: 218.7 | L68: 211.35 | M68: 99.6307
A69: 60 | B69: DABUR | C69: 468.8 | D69: 465.07 | E69: 459.23 | F69: 449.67 | G69: 443.83 | H69: 474.63 | I69: 480.47 | J69: 490.03 | K69: 470.9 | L69: 455.5 | M69: 23.89925
A70: 61 | B70: DALBHARAT | C70: 841 | D70: 843.87 | E70: 835.23 | F70: 829.47 | G70: 820.83 | H70: 849.63 | I70: 858.27 | J70: 864.03 | K70: 852.5 | L70: 838.1 | M70: 0.53124
A71: 62 | B71: DIVISLAB | C71: 1763.6 | D71: 1762.68 | E71: 1727.57 | F71: 1691.53 | G71: 1656.42 | H71: 1798.72 | I71: 1833.83 | J71: 1869.87 | K71: 1797.8 | L71: 1726.65 | M71: 10.47192
A72: 63 | B72: DRREDDY | C72: 2838.65 | D72: 2815.87 | E72: 2767.78 | F72: 2696.92 | G72: 2648.83 | H72: 2886.73 | I72: 2934.82 | J72: 3005.68 | K72: 2863.95 | L72: 2745 | M72: 9.97976
A73: 64 | B73: EDELWEISS | C73: 125.1 | D73: 123.88 | E73: 118.87 | F73: 112.63 | G73: 107.62 | H73: 130.12 | I73: 135.13 | J73: 141.37 | K73: 128.9 | L73: 117.65 | M73: 12.27575
A74: 65 | B74: EICHERMOT | C74: 21489.8 | D74: 21543.93 | E74: 21340.87 | F74: 21191.93 | G74: 20988.87 | H74: 21692.87 | I74: 21895.93 | J74: 22044.87 | K74: 21747 | L74: 21395 | M74: 0.73575
A75: 66 | B75: EMAMILTD | C75: 320.15 | D75: 319.38 | E75: 313.77 | F75: 307.38 | G75: 301.77 | H75: 325.77 | I75: 331.38 | J75: 337.77 | K75: 325 | L75: 313 | M75: 1.02519
A76: 67 | B76: ENDURANCE | C76: 1112.05 | D76: 1113.98 | E76: 1094.67 | F76: 1077.28 | G76: 1057.97 | H76: 1131.37 | I76: 1150.68 | J76: 1168.07 | K76: 1133.3 | L76: 1096.6 | M76: 0.4654
A77: 68 | B77: ENGINERSIN | C77: 104.4 | D77: 104.53 | E77: 103.42 | F77: 102.43 | G77: 101.32 | H77: 105.52 | I77: 106.63 | J77: 107.62 | K77: 105.65 | L77: 103.55 | M77: 8.99657
A78: 69 | B78: ESCORTS | C78: 670.6 | D78: 672.80 | E78: 657.80 | F78: 645.00 | G78: 630.00 | H78: 685.60 | I78: 700.60 | J78: 713.40 | K78: 687.8 | L78: 660 | M78: 37.12448
A79: 70 | B79: EXIDEIND | C79: 188.7 | D79: 189.48 | E79: 187.22 | F79: 185.73 | G79: 183.47 | H79: 190.97 | I79: 193.23 | J79: 194.72 | K79: 191.75 | L79: 188 | M79: 12.38989
A80: 71 | B80: FEDERALBNK | C80: 88.65 | D80: 88.50 | E80: 87.40 | F80: 86.15 | G80: 85.05 | H80: 89.75 | I80: 90.85 | J80: 92.10 | K80: 89.6 | L80: 87.25 | M80: 171.32882
A81: 72 | B81: FCONSUMER | C81: 23 | D81: 23.02 | E81: 22.63 | F81: 22.27 | G81: 21.88 | H81: 23.38 | I81: 23.77 | J81: 24.13 | K81: 23.4 | L81: 22.65 | M81: 6.52856
A82: 73 | B82: FRETAIL | C82: 328.05 | D82: 329.15 | E82: 323.50 | F82: 318.95 | G82: 313.30 | H82: 333.70 | I82: 339.35 | J82: 343.90 | K82: 334.8 | L82: 324.6 | M82: 11.93623
A83: 74 | B83: GAIL | C83: 124.5 | D83: 124.55 | E83: 123.75 | F83: 123.00 | G83: 122.20 | H83: 125.30 | I83: 126.10 | J83: 126.85 | K83: 125.35 | L83: 123.8 | M83: 95.42169
A84: 75 | B84: GMRINFRA | C84: 20.7 | D84: 20.80 | E84: 20.40 | F84: 20.10 | G84: 19.70 | H84: 21.10 | I84: 21.50 | J84: 21.80 | K84: 21.2 | L84: 20.5 | M84: 142.35135
A85: 76 | B85: GICRE | C85: 247.1 | D85: 250.53 | E85: 242.57 | F85: 238.03 | G85: 230.07 | H85: 255.07 | I85: 263.03 | J85: 267.57 | K85: 258.5 | L85: 246 | M85: 3.60448
A86: 77 | B86: GLENMARK | C86: 359.35 | D86: 356.23 | E86: 347.77 | F86: 336.18 | G86: 327.72 | H86: 367.82 | I86: 376.28 | J86: 387.87 | K86: 364.7 | L86: 344.65 | M86: 92.06098
A87: 78 | B87: GODREJAGRO | C87: 468.85 | D87: 470.15 | E87: 465.40 | F87: 461.95 | G87: 457.20 | H87: 473.60 | I87: 478.35 | J87: 481.80 | K87: 474.9 | L87: 466.7 | M87: 0.3399
A88: 79 | B88: GODREJCP | C88: 713.25 | D88: 708.63 | E88: 696.42 | F88: 679.58 | G88: 667.37 | H88: 725.47 | I88: 737.68 | J88: 754.52 | K88: 720.85 | L88: 691.8 | M88: 6.98332
A89: 80 | B89: GODREJIND | C89: 445.5 | D89: 447.40 | E89: 440.10 | F89: 434.70 | G89: 427.40 | H89: 452.80 | I89: 460.10 | J89: 465.50 | K89: 454.7 | L89: 442 | M89: 0.85017
A90: 81 | B90: GODREJPROP | C90: 861 | D90: 866.63 | E90: 845.37 | F90: 829.73 | G90: 808.47 | H90: 882.27 | I90: 903.53 | J90: 919.17 | K90: 887.9 | L90: 851 | M90: 4.74504
A91: 82 | B91: GRAPHITE | C91: 303.65 | D91: 303.92 | E91: 298.88 | F91: 294.12 | G91: 289.08 | H91: 308.68 | I91: 313.72 | J91: 318.48 | K91: 308.95 | L91: 299.15 | M91: 10.01838
A92: 83 | B92: GRASIM | C92: 789.65 | D92: 790.55 | E92: 780.10 | F92: 770.55 | G92: 760.10 | H92: 800.10 | I92: 810.55 | J92: 820.10 | K92: 801 | L92: 781 | M92: 31.57623
A93: 84 | B93: GSPL | C93: 219.9 | D93: 219.20 | E93: 217.95 | F93: 216.00 | G93: 214.75 | H93: 221.15 | I93: 222.40 | J93: 224.35 | K93: 220.45 | L93: 217.25 | M93: 3.14366
A94: 85 | B94: HEG | C94: 1010.15 | D94: 1014.75 | E94: 999.50 | F94: 988.85 | G94: 973.60 | H94: 1025.40 | I94: 1040.65 | J94: 1051.30 | K94: 1030 | L94: 1004.1 | M94: 2.60631
A95: 86 | B95: HCLTECH | C95: 1132.8 | D95: 1132.00 | E95: 1126.30 | F95: 1119.80 | G95: 1114.10 | H95: 1138.50 | I95: 1144.20 | J95: 1150.70 | K95: 1137.7 | L95: 1125.5 | M95: 11.12518
A96: 87 | B96: HDFCAMC | C96: 3626.05 | D96: 3618.13 | E96: 3582.92 | F96: 3539.78 | G96: 3504.57 | H96: 3661.27 | I96: 3696.48 | J96: 3739.62 | K96: 3653.35 | L96: 3575 | M96: 6.07075
A97: 88 | B97: HDFCBANK | C97: 1273.35 | D97: 1274.43 | E97: 1265.92 | F97: 1258.48 | G97: 1249.97 | H97: 1281.87 | I97: 1290.38 | J97: 1297.82 | K97: 1282.95 | L97: 1267 | M97: 55.27129
A98: 89 | B98: HDFCLIFE | C98: 574.7 | D98: 574.23 | E98: 568.97 | F98: 563.23 | G98: 557.97 | H98: 579.97 | I98: 585.23 | J98: 590.97 | K98: 579.5 | L98: 568.5 | M98: 38.22519
A99: 90 | B99: HAVELLS | C99: 671.65 | D99: 669.23 | E99: 662.87 | F99: 654.08 | G99: 647.72 | H99: 678.02 | I99: 684.38 | J99: 693.17 | K99: 675.6 | L99: 660.45 | M99: 11.11197
A100: 91 | B100: HEROMOTOCO | C100: 2470.5 | D100: 2463.93 | E100: 2442.87 | F100: 2415.23 | G100: 2394.17 | H100: 2491.57 | I100: 2512.63 | J100: 2540.27 | K100: 2485 | L100: 2436.3 | M100: 9.18063
A101: 92 | B101: HEXAWARE | C101: 340.15 | D101: 339.73 | E101: 337.57 | F101: 334.98 | G101: 332.82 | H101: 342.32 | I101: 344.48 | J101: 347.07 | K101: 341.9 | L101: 337.15 | M101: 4.12651
A102: 93 | B102: HINDALCO | C102: 190.75 | D102: 191.62 | E102: 189.38 | F102: 188.02 | G102: 185.78 | H102: 192.98 | I102: 195.22 | J102: 196.58 | K102: 193.85 | L102: 190.25 | M102: 44.37118
A103: 94 | B103: HINDPETRO | C103: 295.9 | D103: 297.23 | E103: 291.97 | F103: 288.03 | G103: 282.77 | H103: 301.17 | I103: 306.43 | J103: 310.37 | K103: 302.5 | L103: 293.3 | M103: 77.46295
A104: 95 | B104: HINDUNILVR | C104: 2026.5 | D104: 2032.13 | E104: 2011.42 | F104: 1996.33 | G104: 1975.62 | H104: 2047.22 | I104: 2067.93 | J104: 2083.02 | K104: 2052.85 | L104: 2017.05 | M104: 9.89673
A105: 96 | B105: HINDZINC | C105: 213.6 | D105: 214.52 | E105: 212.08 | F105: 210.57 | G105: 208.13 | H105: 216.03 | I105: 218.47 | J105: 219.98 | K105: 216.95 | L105: 213 | M105: 3.82508
A106: 97 | B106: HUDCO | C106: 43.15 | D106: 43.22 | E106: 42.53 | F106: 41.92 | G106: 41.23 | H106: 43.83 | I106: 44.52 | J106: 45.13 | K106: 43.9 | L106: 42.6 | M106: 22.44329
A107: 98 | B107: HDFC | C107: 2200.95 | D107: 2205.23 | E107: 2189.47 | F107: 2177.98 | G107: 2162.22 | H107: 2216.72 | I107: 2232.48 | J107: 2243.97 | K107: 2221 | L107: 2193.75 | M107: 17.72677
A108: 99 | B108: ICICIBANK | C108: 495 | D108: 495.17 | E108: 492.33 | F108: 489.67 | G108: 486.83 | H108: 497.83 | I108: 500.67 | J108: 503.33 | K108: 498 | L108: 492.5 | M108: 226.06112
A109: 100 | B109: ICICIGI | C109: 1357 | D109: 1354.20 | E109: 1338.40 | F109: 1319.80 | G109: 1304.00 | H109: 1372.80 | I109: 1388.60 | J109: 1407.20 | K109: 1370 | L109: 1335.6 | M109: 9.69878
A110: 101 | B110: ICICIPRULI | C110: 503.3 | D110: 505.17 | E110: 499.68 | F110: 496.07 | G110: 490.58 | H110: 508.78 | I110: 514.27 | J110: 517.88 | K110: 510.65 | L110: 501.55 | M110: 24.40249
A111: 102 | B111: IDBI | C111: 33.9 | D111: 34.05 | E111: 33.30 | F111: 32.70 | G111: 31.95 | H111: 34.65 | I111: 35.40 | J111: 36.00 | K111: 34.8 | L111: 33.45 | M111: 35.24746
A112: 103 | B112: IDFCFIRSTB | C112: 43.15 | D112: 43.20 | E112: 42.70 | F112: 42.25 | G112: 41.75 | H112: 43.65 | I112: 44.15 | J112: 44.60 | K112: 43.7 | L112: 42.75 | M112: 197.38032
A113: 104 | B113: ITC | C113: 250.7 | D113: 249.57 | E113: 247.83 | F113: 244.97 | G113: 243.23 | H113: 252.43 | I113: 254.17 | J113: 257.03 | K113: 251.3 | L113: 246.7 | M113: 99.78073
A114: 105 | B114: IBULHSGFIN | C114: 208.2 | D114: 210.27 | E114: 204.53 | F114: 200.87 | G114: 195.13 | H114: 213.93 | I114: 219.67 | J114: 223.33 | K114: 216 | L114: 206.6 | M114: 228.49941
A115: 106 | B115: IBVENTURES | C115: 143.55 | D115: 145.02 | E115: 141.53 | F115: 139.52 | G115: 136.03 | H115: 147.03 | I115: 150.52 | J115: 152.53 | K115: 148.5 | L115: 143 | M115: 2.14566
A116: 107 | B116: INDIANB | C116: 122.4 | D116: 123.77 | E116: 119.88 | F116: 117.37 | G116: 113.48 | H116: 126.28 | I116: 130.17 | J116: 132.68 | K116: 127.65 | L116: 121.25 | M116: 25.29996
A117: 108 | B117: INDHOTEL | C117: 152.2 | D117: 152.65 | E117: 151.40 | F117: 150.60 | G117: 149.35 | H117: 153.45 | I117: 154.70 | J117: 155.50 | K117: 153.9 | L117: 151.85 | M117: 7.87051
A118: 109 | B118: IOC | C118: 130.9 | D118: 131.65 | E118: 129.05 | F118: 127.20 | G118: 124.60 | H118: 133.50 | I118: 136.10 | J118: 137.95 | K118: 134.25 | L118: 129.8 | M118: 180.09295
A119: 110 | B119: IGL | C119: 421.9 | D119: 422.38 | E119: 417.57 | F119: 413.23 | G119: 408.42 | H119: 426.72 | I119: 431.53 | J119: 435.87 | K119: 427.2 | L119: 418.05 | M119: 14.52197
A120: 111 | B120: INDUSINDBK | C120: 1469.3 | D120: 1450.02 | E120: 1421.28 | F120: 1373.27 | G120: 1344.53 | H120: 1498.03 | I120: 1526.77 | J120: 1574.78 | K120: 1478.75 | L120: 1402 | M120: 73.34715
A121: 112 | B121: NAUKRI | C121: 2591.2 | D121: 2598.65 | E121: 2523.55 | F121: 2455.90 | G121: 2380.80 | H121: 2666.30 | I121: 2741.40 | J121: 2809.05 | K121: 2673.75 | L121: 2531 | M121: 4.72792
A122: 113 | B122: INFY | C122: 713 | D122: 711.00 | E122: 707.00 | F122: 701.00 | G122: 697.00 | H122: 717.00 | I122: 721.00 | J122: 727.00 | K122: 715 | L122: 705 | M122: 61.42171
A123: 114 | B123: INDIGO | C123: 1426.65 | D123: 1431.25 | E123: 1412.90 | F123: 1399.15 | G123: 1380.80 | H123: 1445.00 | I123: 1463.35 | J123: 1477.10 | K123: 1449.6 | L123: 1417.5 | M123: 9.62616
A124: 115 | B124: IPCALAB | C124: 1151.85 | D124: 1149.30 | E124: 1139.60 | F124: 1127.35 | G124: 1117.65 | H124: 1161.55 | I124: 1171.25 | J124: 1183.50 | K124: 1159 | L124: 1137.05 | M124: 1.15183
A125: 116 | B125: JSWENERGY | C125: 71.75 | D125: 72.25 | E125: 70.60 | F125: 69.45 | G125: 67.80 | H125: 73.40 | I125: 75.05 | J125: 76.20 | K125: 73.9 | L125: 71.1 | M125: 5.96636
A126: 117 | B126: JSWSTEEL | C126: 248.7 | D126: 248.98 | E126: 245.67 | F126: 242.63 | G126: 239.32 | H126: 252.02 | I126: 255.33 | J126: 258.37 | K126: 252.3 | L126: 245.95 | M126: 47.99567
A127: 118 | B127: JINDALSTEL | C127: 140.15 | D127: 140.53 | E127: 137.47 | F127: 134.78 | G127: 131.72 | H127: 143.22 | I127: 146.28 | J127: 148.97 | K127: 143.6 | L127: 137.85 | M127: 160.7141
A128: 119 | B128: JUBLFOOD | C128: 1590.9 | D128: 1591.97 | E128: 1578.93 | F128: 1566.97 | G128: 1553.93 | H128: 1603.93 | I128: 1616.97 | J128: 1628.93 | K128: 1605 | L128: 1580 | M128: 5.08109
A129: 120 | B129: JUBILANT | C129: 503.55 | D129: 503.87 | E129: 494.73 | F129: 485.92 | G129: 476.78 | H129: 512.68 | I129: 521.82 | J129: 530.63 | K129: 513 | L129: 495.05 | M129: 2.71462
A130: 121 | B130: KOTAKBANK | C130: 1599.45 | D130: 1606.48 | E130: 1589.17 | F130: 1578.88 | G130: 1561.57 | H130: 1616.77 | I130: 1634.08 | J130: 1644.37 | K130: 1623.8 | L130: 1596.2 | M130: 15.62436
A131: 122 | B131: L&TFH | C131: 99.05 | D131: 99.35 | E131: 98.25 | F131: 97.45 | G131: 96.35 | H131: 100.15 | I131: 101.25 | J131: 102.05 | K131: 100.45 | L131: 98.55 | M131: 60.48314
A132: 123 | B132: LTTS | C132: 1437 | D132: 1432.03 | E132: 1416.07 | F132: 1395.13 | G132: 1379.17 | H132: 1452.97 | I132: 1468.93 | J132: 1489.87 | K132: 1448 | L132: 1411.1 | M132: 1.20332
A133: 124 | B133: LICHSGFIN | C133: 417.85 | D133: 419.80 | E133: 413.70 | F133: 409.55 | G133: 403.45 | H133: 423.95 | I133: 430.05 | J133: 434.20 | K133: 425.9 | L133: 415.65 | M133: 19.85846
A134: 125 | B134: LTI | C134: 1728.4 | D134: 1718.88 | E134: 1702.77 | F134: 1677.13 | G134: 1661.02 | H134: 1744.52 | I134: 1760.63 | J134: 1786.27 | K134: 1735 | L134: 1693.25 | M134: 0.84857
A135: 126 | B135: LT | C135: 1380.8 | D135: 1379.83 | E135: 1366.32 | F135: 1351.83 | G135: 1338.32 | H135: 1394.32 | I135: 1407.83 | J135: 1422.32 | K135: 1393.35 | L135: 1365.35 | M135: 39.14075
A136: 127 | B136: LUPIN | C136: 777.85 | D136: 769.32 | E136: 757.63 | F136: 737.42 | G136: 725.73 | H136: 789.53 | I136: 801.22 | J136: 821.43 | K136: 781 | L136: 749.1 | M136: 28.81427
A137: 128 | B137: MRF | C137: 63058.45 | D137: 63306.87 | E137: 62501.78 | F137: 61945.12 | G137: 61140.03 | H137: 63863.53 | I137: 64668.62 | J137: 65225.28 | K137: 64111.95 | L137: 62750.2 | M137: 0.02999
A138: 129 | B138: MGL | C138: 1035.35 | D138: 1040.00 | E138: 1024.55 | F138: 1013.75 | G138: 998.30 | H138: 1050.80 | I138: 1066.25 | J138: 1077.05 | K138: 1055.45 | L138: 1029.2 | M138: 4.93992
A139: 130 | B139: M&MFIN | C139: 329.3 | D139: 330.30 | E139: 326.60 | F139: 323.90 | G139: 320.20 | H139: 333.00 | I139: 336.70 | J139: 339.40 | K139: 334 | L139: 327.6 | M139: 6.41306
A140: 131 | B140: M&M | C140: 560.45 | D140: 562.13 | E140: 555.82 | F140: 551.18 | G140: 544.87 | H140: 566.77 | I140: 573.08 | J140: 577.72 | K140: 568.45 | L140: 557.5 | M140: 28.76499
A141: 132 | B141: MANAPPURAM | C141: 166.25 | D141: 167.60 | E141: 164.35 | F141: 162.45 | G141: 159.20 | H141: 169.50 | I141: 172.75 | J141: 174.65 | K141: 170.85 | L141: 165.7 | M141: 29.5082
A142: 133 | B142: MRPL | C142: 48.5 | D142: 48.67 | E142: 47.83 | F142: 47.17 | G142: 46.33 | H142: 49.33 | I142: 50.17 | J142: 50.83 | K142: 49.5 | L142: 48 | M142: 2.78045
A143: 134 | B143: MARICO | C143: 355.35 | D143: 357.22 | E143: 353.13 | F143: 350.92 | G143: 346.83 | H143: 359.43 | I143: 363.52 | J143: 365.73 | K143: 361.3 | L143: 355 | M143: 12.58477
A144: 135 | B144: MARUTI | C144: 7152.75 | D144: 7138.25 | E144: 7058.50 | F144: 6964.25 | G144: 6884.50 | H144: 7232.50 | I144: 7312.25 | J144: 7406.50 | K144: 7218 | L144: 7044 | M144: 12.89948
A145: 136 | B145: MFSL | C145: 506.85 | D145: 499.55 | E145: 488.70 | F145: 470.55 | G145: 459.70 | H145: 517.70 | I145: 528.55 | J145: 546.70 | K145: 510.4 | L145: 481.4 | M145: 30.70849
A146: 137 | B146: MINDTREE | C146: 716.25 | D146: 711.32 | E146: 703.63 | F146: 691.02 | G146: 683.33 | H146: 723.93 | I146: 731.62 | J146: 744.23 | K146: 719 | L146: 698.7 | M146: 3.44328
A147: 138 | B147: MOTHERSUMI | C147: 132.3 | D147: 133.02 | E147: 131.08 | F147: 129.87 | G147: 127.93 | H147: 134.23 | I147: 136.17 | J147: 137.38 | K147: 134.95 | L147: 131.8 | M147: 58.40922
A148: 139 | B148: MPHASIS | C148: 910.6 | D148: 910.82 | E148: 903.78 | F148: 896.97 | G148: 889.93 | H148: 917.63 | I148: 924.67 | J148: 931.48 | K148: 917.85 | L148: 904 | M148: 1.11307
A149: 140 | B149: MUTHOOTFIN | C149: 696.4 | D149: 697.38 | E149: 689.42 | F149: 682.43 | G149: 674.47 | H149: 704.37 | I149: 712.33 | J149: 719.32 | K149: 705.35 | L149: 690.4 | M149: 12.08865
A150: 141 | B150: NATCOPHARM | C150: 554.65 | D150: 554.22 | E150: 550.53 | F150: 546.42 | G150: 542.73 | H150: 558.33 | I150: 562.02 | J150: 566.13 | K150: 557.9 | L150: 550.1 | M150: 0.59346
A151: 142 | B151: NBCC | C151: 37.3 | D151: 37.28 | E151: 36.92 | F151: 36.53 | G151: 36.17 | H151: 37.67 | I151: 38.03 | J151: 38.42 | K151: 37.65 | L151: 36.9 | M151: 164.23602
A152: 143 | B152: NHPC | C152: 23.5 | D152: 23.48 | E152: 23.32 | F152: 23.13 | G152: 22.97 | H152: 23.67 | I152: 23.83 | J152: 24.02 | K152: 23.65 | L152: 23.3 | M152: 18.14111
A153: 144 | B153: NMDC | C153: 101.8 | D153: 102.18 | E153: 100.12 | F153: 98.43 | G153: 96.37 | H153: 103.87 | I153: 105.93 | J153: 107.62 | K153: 104.25 | L153: 100.5 | M153: 41.53659
A154: 145 | B154: NTPC | C154: 117.05 | D154: 116.90 | E154: 116.20 | F154: 115.35 | G154: 114.65 | H154: 117.75 | I154: 118.45 | J154: 119.30 | K154: 117.6 | L154: 116.05 | M154: 100.33434
A155: 146 | B155: NATIONALUM | C155: 42.05 | D155: 42.32 | E155: 41.73 | F155: 41.42 | G155: 40.83 | H155: 42.63 | I155: 43.22 | J155: 43.53 | K155: 42.9 | L155: 42 | M155: 70.127
A156: 147 | B156: NESTLEIND | C156: 14228.65 | D156: 14166.72 | E156: 14044.43 | F156: 13860.22 | G156: 13737.93 | H156: 14350.93 | I156: 14473.22 | J156: 14657.43 | K156: 14289 | L156: 13982.5 | M156: 0.79418
A157: 148 | B157: OBEROIRLTY | C157: 515.4 | D157: 520.80 | E157: 505.60 | F157: 495.80 | G157: 480.60 | H157: 530.60 | I157: 545.80 | J157: 555.60 | K157: 536 | L157: 511 | M157: 4.13941
A158: 149 | B158: ONGC | C158: 133.7 | D158: 133.73 | E158: 132.22 | F158: 130.73 | G158: 129.22 | H158: 135.22 | I158: 136.73 | J158: 138.22 | K158: 135.25 | L158: 132.25 | M158: 76.57346
A159: 150 | B159: OIL | C159: 158.45 | D159: 161.68 | E159: 153.82 | F159: 149.18 | G159: 141.32 | H159: 166.32 | I159: 174.18 | J159: 178.82 | K159: 169.55 | L159: 157.05 | M159: 28.95076
A160: 151 | B160: OFSS | C160: 3064.55 | D160: 3065.35 | E160: 3032.70 | F160: 3000.85 | G160: 2968.20 | H160: 3097.20 | I160: 3129.85 | J160: 3161.70 | K160: 3098 | L160: 3033.5 | M160: 0.14701
A161: 152 | B161: ORIENTBANK | C161: 59.05 | D161: 60.27 | E161: 56.43 | F161: 53.82 | G161: 49.98 | H161: 62.88 | I161: 66.72 | J161: 69.33 | K161: 64.1 | L161: 57.65 | M161: 76.65145
A162: 153 | B162: PIIND | C162: 1449.05 | D162: 1453.53 | E162: 1439.07 | F162: 1429.08 | G162: 1414.62 | H162: 1463.52 | I162: 1477.98 | J162: 1487.97 | K162: 1468 | L162: 1443.55 | M162: 0.50464
A163: 154 | B163: PNBHOUSING | C163: 571.1 | D163: 565.37 | E163: 552.73 | F163: 534.37 | G163: 521.73 | H163: 583.73 | I163: 596.37 | J163: 614.73 | K163: 578 | L163: 547 | M163: 7.39279
A164: 155 | B164: PAGEIND | C164: 23047.55 | D164: 23061.83 | E164: 22823.67 | F164: 22599.78 | G164: 22361.62 | H164: 23285.72 | I164: 23523.88 | J164: 23747.77 | K164: 23300 | L164: 22837.95 | M164: 0.17981
A165: 156 | B165: PETRONET | C165: 275.35 | D165: 274.55 | E165: 273.05 | F165: 270.75 | G165: 269.25 | H165: 276.85 | I165: 278.35 | J165: 280.65 | K165: 276.05 | L165: 272.25 | M165: 12.83157
A166: 157 | B166: PFIZER | C166: 4065.55 | D166: 4068.18 | E166: 4037.37 | F166: 4009.18 | G166: 3978.37 | H166: 4096.37 | I166: 4127.18 | J166: 4155.37 | K166: 4099 | L166: 4040 | M166: 0.12778
A167: 158 | B167: PIDILITIND | C167: 1328.1 | D167: 1320.40 | E167: 1307.80 | F167: 1287.50 | G167: 1274.90 | H167: 1340.70 | I167: 1353.30 | J167: 1373.60 | K167: 1333 | L167: 1300.1 | M167: 8.67482
A168: 159 | B168: PEL | C168: 1774.3 | D168: 1785.53 | E168: 1748.77 | F168: 1723.23 | G168: 1686.47 | H168: 1811.07 | I168: 1847.83 | J168: 1873.37 | K168: 1822.3 | L168: 1760 | M168: 11.42022
A169: 160 | B169: PFC | C169: 117.95 | D169: 118.42 | E169: 116.93 | F169: 115.92 | G169: 114.43 | H169: 119.43 | I169: 120.92 | J169: 121.93 | K169: 119.9 | L169: 117.4 | M169: 56.93791
A170: 161 | B170: POWERGRID | C170: 196.1 | D170: 195.75 | E170: 194.35 | F170: 192.60 | G170: 191.20 | H170: 197.50 | I170: 198.90 | J170: 200.65 | K170: 197.15 | L170: 194 | M170: 53.98646
A171: 162 | B171: PRESTIGE | C171: 297.45 | D171: 296.90 | E171: 294.85 | F171: 292.25 | G171: 290.20 | H171: 299.50 | I171: 301.55 | J171: 304.15 | K171: 298.95 | L171: 294.3 | M171: 0.4861
A172: 163 | B172: PGHH | C172: 11016.65 | D172: 11040.55 | E172: 10956.10 | F172: 10895.55 | G172: 10811.10 | H172: 11101.10 | I172: 11185.55 | J172: 11246.10 | K172: 11125 | L172: 10980 | M172: 0.01962
A173: 164 | B173: PNB | C173: 63.9 | D173: 64.18 | E173: 63.12 | F173: 62.33 | G173: 61.27 | H173: 64.97 | I173: 66.03 | J173: 66.82 | K173: 65.25 | L173: 63.4 | M173: 212.68472
A174: 165 | B174: QUESS | C174: 528.1 | D174: 534.95 | E174: 518.35 | F174: 508.60 | G174: 492.00 | H174: 544.70 | I174: 561.30 | J174: 571.05 | K174: 551.55 | L174: 525.2 | M174: 1.31435
A175: 166 | B175: RBLBANK | C175: 344.65 | D175: 339.00 | E175: 329.65 | F175: 314.65 | G175: 305.30 | H175: 354.00 | I175: 363.35 | J175: 378.35 | K175: 348.35 | L175: 324 | M175: 215.15989
A176: 167 | B176: RECLTD | C176: 145 | D176: 144.95 | E176: 143.20 | F176: 141.40 | G176: 139.65 | H176: 146.75 | I176: 148.50 | J176: 150.30 | K176: 146.7 | L176: 143.15 | M176: 72.2189
A177: 168 | B177: RAJESHEXPO | C177: 698.5 | D177: 700.63 | E177: 691.87 | F177: 685.23 | G177: 676.47 | H177: 707.27 | I177: 716.03 | J177: 722.67 | K177: 709.4 | L177: 694 | M177: 0.90305
A178: 169 | B178: RELIANCE | C178: 1547.65 | D178: 1554.42 | E178: 1536.43 | F178: 1525.22 | G178: 1507.23 | H178: 1565.63 | I178: 1583.62 | J178: 1594.83 | K178: 1572.4 | L178: 1543.2 | M178: 199.04164
A179: 170 | B179: RNAM | C179: 361.55 | D179: 364.20 | E179: 356.60 | F179: 351.65 | G179: 344.05 | H179: 369.15 | I179: 376.75 | J179: 381.70 | K179: 371.8 | L179: 359.25 | M179: 27.60461
A180: 171 | B180: SBILIFE | C180: 939.7 | D180: 941.50 | E180: 934.30 | F180: 928.90 | G180: 921.70 | H180: 946.90 | I180: 954.10 | J180: 959.50 | K180: 948.7 | L180: 936.1 | M180: 29.76893
A181: 172 | B181: SRF | C181: 3220.35 | D181: 3231.08 | E181: 3189.27 | F181: 3158.18 | G181: 3116.37 | H181: 3262.17 | I181: 3303.98 | J181: 3335.07 | K181: 3272.9 | L181: 3200 | M181: 3.79707
A182: 173 | B182: SHREECEM | C182: 20289.95 | D182: 20324.45 | E182: 19968.90 | F182: 19647.85 | G182: 19292.30 | H182: 20645.50 | I182: 21001.05 | J182: 21322.10 | K182: 20680 | L182: 20003.4 | M182: 0.46837
A183: 174 | B183: SRTRANSFIN | C183: 1126.5 | D183: 1128.65 | E183: 1118.85 | F183: 1111.20 | G183: 1101.40 | H183: 1136.30 | I183: 1146.10 | J183: 1153.75 | K183: 1138.45 | L183: 1121 | M183: 3.95206
A184: 175 | B184: SIEMENS | C184: 1543.2 | D184: 1549.05 | E184: 1500.15 | F184: 1457.10 | G184: 1408.20 | H184: 1592.10 | I184: 1641.00 | J184: 1684.05 | K184: 1597.95 | L184: 1506 | M184: 22.67097
A185: 176 | B185: SBIN | C185: 328.8 | D185: 328.80 | E185: 325.10 | F185: 321.40 | G185: 317.70 | H185: 332.50 | I185: 336.20 | J185: 339.90 | K185: 332.5 | L185: 325.1 | M185: 299.72583
A186: 177 | B186: SAIL | C186: 37.9 | D186: 37.82 | E186: 37.23 | F186: 36.57 | G186: 35.98 | H186: 38.48 | I186: 39.07 | J186: 39.73 | K186: 38.4 | L186: 37.15 | M186: 269.63527
A187: 178 | B187: STRTECH | C187: 123.35 | D187: 123.72 | E187: 122.03 | F187: 120.72 | G187: 119.03 | H187: 125.03 | I187: 126.72 | J187: 128.03 | K187: 125.4 | L187: 122.4 | M187: 7.7586
A188: 179 | B188: SUNPHARMA | C188: 450 | D188: 444.82 | E188: 429.03 | F188: 408.07 | G188: 392.28 | H188: 465.78 | I188: 481.57 | J188: 502.53 | K188: 460.6 | L188: 423.85 | M188: 231.07507
A189: 180 | B189: SUNTV | C189: 498.15 | D189: 495.48 | E189: 489.97 | F189: 481.78 | G189: 476.27 | H189: 503.67 | I189: 509.18 | J189: 517.37 | K189: 501 | L189: 487.3 | M189: 13.05786
A190: 181 | B190: SYNGENE | C190: 329.5 | D190: 328.40 | E190: 325.10 | F190: 320.70 | G190: 317.40 | H190: 332.80 | I190: 336.10 | J190: 340.50 | K190: 331.7 | L190: 324 | M190: 0.57685
A191: 182 | B191: TVSMOTOR | C191: 448.05 | D191: 447.75 | E191: 443.10 | F191: 438.15 | G191: 433.50 | H191: 452.70 | I191: 457.35 | J191: 462.30 | K191: 452.4 | L191: 442.8 | M191: 9.11015
A192: 183 | B192: TATACHEM | C192: 647.95 | D192: 647.88 | E192: 641.47 | F192: 634.98 | G192: 628.57 | H192: 654.37 | I192: 660.78 | J192: 667.27 | K192: 654.3 | L192: 641.4 | M192: 5.72551
A193: 184 | B193: TCS | C193: 2108.55 | D193: 2112.68 | E193: 2090.37 | F193: 2072.18 | G193: 2049.87 | H193: 2130.87 | I193: 2153.18 | J193: 2171.37 | K193: 2135 | L193: 2094.5 | M193: 28.94129
A194: 185 | B194: TATAGLOBAL | C194: 306.8 | D194: 305.23 | E194: 302.57 | F194: 298.33 | G194: 295.67 | H194: 309.47 | I194: 312.13 | J194: 316.37 | K194: 307.9 | L194: 301 | M194: 20.4455
A195: 186 | B195: TATAMTRDVR | C195: 76.9 | D195: 77.30 | E195: 75.90 | F195: 74.90 | G195: 73.50 | H195: 78.30 | I195: 79.70 | J195: 80.70 | K195: 78.7 | L195: 76.3 | M195: 46.91198
A196: 187 | B196: TATAMOTORS | C196: 167.4 | D196: 167.93 | E196: 165.67 | F196: 163.93 | G196: 161.67 | H196: 169.67 | I196: 171.93 | J196: 173.67 | K196: 170.2 | L196: 166.2 | M196: 195.04078
A197: 188 | B197: TATAPOWER | C197: 55.4 | D197: 55.45 | E197: 55.05 | F197: 54.70 | G197: 54.30 | H197: 55.80 | I197: 56.20 | J197: 56.55 | K197: 55.85 | L197: 55.1 | M197: 47.5892
A198: 189 | B198: TATASTEEL | C198: 398.7 | D198: 401.50 | E198: 394.50 | F198: 390.30 | G198: 383.30 | H198: 405.70 | I198: 412.70 | J198: 416.90 | K198: 408.5 | L198: 397.3 | M198: 122.55602
A199: 190 | B199: TECHM | C199: 771.4 | D199: 766.78 | E199: 760.57 | F199: 749.73 | G199: 743.52 | H199: 777.62 | I199: 783.83 | J199: 794.67 | K199: 773 | L199: 755.95 | M199: 23.4375
A200: 191 | B200: NIACL | C200: 148.05 | D200: 150.03 | E200: 145.57 | F200: 143.08 | G200: 138.62 | H200: 152.52 | I200: 156.98 | J200: 159.47 | K200: 154.5 | L200: 147.55 | M200: 2.13514
A201: 192 | B201: RAMCOCEM | C201: 803.45 | D201: 804.20 | E201: 793.05 | F201: 782.65 | G201: 771.50 | H201: 814.60 | I201: 825.75 | J201: 836.15 | K201: 815.35 | L201: 793.8 | M201: 3.48221
A202: 193 | B202: TITAN | C202: 1162.85 | D202: 1162.25 | E202: 1157.00 | F202: 1151.15 | G202: 1145.90 | H202: 1168.10 | I202: 1173.35 | J202: 1179.20 | K202: 1167.5 | L202: 1156.4 | M202: 9.20219
A203: 194 | B203: TORNTPHARM | C203: 1742.2 | D203: 1746.62 | E203: 1714.98 | F203: 1687.77 | G203: 1656.13 | H203: 1773.83 | I203: 1805.47 | J203: 1832.68 | K203: 1778.25 | L203: 1719.4 | M203: 3.29981
A204: 195 | B204: TORNTPOWER | C204: 287.85 | D204: 289.05 | E204: 285.90 | F204: 283.95 | G204: 280.80 | H204: 291.00 | I204: 294.15 | J204: 296.10 | K204: 292.2 | L204: 287.1 | M204: 7.83735
A205: 196 | B205: UPL | C205: 552.85 | D205: 551.92 | E205: 547.33 | F205: 541.82 | G205: 537.23 | H205: 557.43 | I205: 562.02 | J205: 567.53 | K205: 556.5 | L205: 546.4 | M205: 18.35821
... 30 more rows

Sheet MidCap Intra
L5: Back To Main Page
A6: FOR INTRA DAY TRADING | K6: =Main!B10 -> 2019-11-21
A9: Sr.no | B9: Scrip | C9: CLOSE RATE | D9: Pivot Point | E9: Supports | H9: Resistances
C10: Point | E10: S1 | F10: S2 | G10: S3 | H10: R1 | I10: R2 | J10: R3 | K10: HIGH | L10: LOW | M10: Total Trade Quanity in Lakhs
A11: 1 | B11: 3MINDIA | C11: 22372.85 | D11: 22375.93 | E11: 22271.92 | F11: 22170.98 | G11: 22066.97 | H11: 22476.87 | I11: 22580.88 | J11: 22681.82 | K11: 22479.95 | L11: 22275 | M11: 0.00624
A12: 2 | B12: ACC | C12: 1483.75 | D12: 1489.77 | E12: 1474.98 | F12: 1466.22 | G12: 1451.43 | H12: 1498.53 | I12: 1513.32 | J12: 1522.08 | K12: 1504.55 | L12: 1481 | M12: 5.36347
A13: 3 | B13: AIAENG | C13: 1648.75 | D13: 1648.58 | E13: 1632.17 | F13: 1615.58 | G13: 1599.17 | H13: 1665.17 | I13: 1681.58 | J13: 1698.17 | K13: 1665 | L13: 1632 | M13: 0.07453
A14: 4 | B14: APLAPOLLO | C14: 1542.5 | D14: 1534.18 | E14: 1518.37 | F14: 1494.23 | G14: 1478.42 | H14: 1558.32 | I14: 1574.13 | J14: 1598.27 | K14: 1550 | L14: 1510.05 | M14: 0.18906
A15: 5 | B15: AUBANK | C15: 816.4 | D15: 814.17 | E15: 798.33 | F15: 780.27 | G15: 764.43 | H15: 832.23 | I15: 848.07 | J15: 866.13 | K15: 830 | L15: 796.1 | M15: 2.42179
A16: 6 | B16: AAVAS | C16: 1695.3 | D16: 1701.72 | E16: 1683.63 | F16: 1671.97 | G16: 1653.88 | H16: 1713.38 | I16: 1731.47 | J16: 1743.13 | K16: 1719.8 | L16: 1690.05 | M16: 0.16187
A17: 7 | B17: ABBOTINDIA | C17: 12578.95 | D17: 12655.88 | E17: 12413.77 | F17: 12248.58 | G17: 12006.47 | H17: 12821.07 | I17: 13063.18 | J17: 13228.37 | K17: 12898 | L17: 12490.7 | M17: 0.0889
A18: 8 | B18: ADANIGAS | C18: 146.55 | D18: 147.03 | E18: 145.67 | F18: 144.78 | G18: 143.42 | H18: 147.92 | I18: 149.28 | J18: 150.17 | K18: 148.4 | L18: 146.15 | M18: 5.27163
A19: 9 | B19: ADANIGREEN | C19: 98.75 | D19: 98.42 | E19: 95.93 | F19: 93.12 | G19: 90.63 | H19: 101.23 | I19: 103.72 | J19: 106.53 | K19: 100.9 | L19: 95.6 | M19: 22.79188
A20: 10 | B20: ADANIPORTS | C20: 366.7 | D20: 369.27 | E20: 361.43 | F20: 356.17 | G20: 348.33 | H20: 374.53 | I20: 382.37 | J20: 387.63 | K20: 377.1 | L20: 364 | M20: 63.85953
A21: 11 | B21: ADANIPOWER | C21: 60.35 | D21: 60.37 | E21: 59.28 | F21: 58.22 | G21: 57.13 | H21: 61.43 | I21: 62.52 | J21: 63.58 | K21: 61.45 | L21: 59.3 | M21: 91.65116
A22: 12 | B22: ADANITRANS | C22: 267.1 | D22: 269.75 | E22: 262.50 | F22: 257.90 | G22: 250.65 | H22: 274.35 | I22: 281.60 | J22: 286.20 | K22: 277 | L22: 265.15 | M22: 2.46911
A23: 13 | B23: ABCAPITAL | C23: 85.6 | D23: 85.17 | E23: 84.43 | F23: 83.27 | G23: 82.53 | H23: 86.33 | I23: 87.07 | J23: 88.23 | K23: 85.9 | L23: 84 | M23: 22.69017
A24: 14 | B24: ABFRL | C24: 216.05 | D24: 216.17 | E24: 213.28 | F24: 210.52 | G24: 207.63 | H24: 218.93 | I24: 221.82 | J24: 224.58 | K24: 219.05 | L24: 213.4 | M24: 4.00831
A25: 15 | B25: ADVENZYMES | C25: 178.2 | D25: 174.63 | E25: 165.57 | F25: 152.93 | G25: 143.87 | H25: 187.27 | I25: 196.33 | J25: 208.97 | K25: 183.7 | L25: 162 | M25: 4.5427
A26: 16 | B26: AEGISCHEM | C26: 179.35 | D26: 178.95 | E26: 175.50 | F26: 171.65 | G26: 168.20 | H26: 182.80 | I26: 186.25 | J26: 190.10 | K26: 182.4 | L26: 175.1 | M26: 1.45915
A27: 17 | B27: AJANTPHARM | C27: 1004 | D27: 994.70 | E27: 981.45 | F27: 958.90 | G27: 945.65 | H27: 1017.25 | I27: 1030.50 | J27: 1053.05 | K27: 1007.95 | L27: 972.15 | M27: 2.46468
A28: 18 | B28: AKZOINDIA | C28: 1936.1 | D28: 1932.93 | E28: 1905.87 | F28: 1875.63 | G28: 1848.57 | H28: 1963.17 | I28: 1990.23 | J28: 2020.47 | K28: 1960 | L28: 1902.7 | M28: 0.20883
A29: 19 | B29: APLLTD | C29: 547.85 | D29: 548.67 | E29: 541.33 | F29: 534.82 | G29: 527.48 | H29: 555.18 | I29: 562.52 | J29: 569.03 | K29: 556 | L29: 542.15 | M29: 0.28179
A30: 20 | B30: ALKEM | C30: 2083.55 | D30: 2088.45 | E30: 2056.65 | F30: 2029.75 | G30: 1997.95 | H30: 2115.35 | I30: 2147.15 | J30: 2174.05 | K30: 2120.25 | L30: 2061.55 | M30: 0.26567
A31: 21 | B31: ALBK | C31: 24.85 | D31: 25.27 | E31: 24.28 | F31: 23.72 | G31: 22.73 | H31: 25.83 | I31: 26.82 | J31: 27.38 | K31: 26.25 | L31: 24.7 | M31: 71.55982
A32: 22 | B32: ALLCARGO | C32: 93.3 | D32: 93.63 | E32: 92.32 | F32: 91.33 | G32: 90.02 | H32: 94.62 | I32: 95.93 | J32: 96.92 | K32: 94.95 | L32: 92.65 | M32: 1.50265
A33: 23 | B33: AMARAJABAT | C33: 753 | D33: 754.42 | E33: 745.58 | F33: 738.17 | G33: 729.33 | H33: 761.83 | I33: 770.67 | J33: 778.08 | K33: 763.25 | L33: 747 | M33: 4.26255
A34: 24 | B34: AMBER | C34: 997.35 | D34: 994.48 | E34: 983.02 | F34: 968.68 | G34: 957.22 | H34: 1008.82 | I34: 1020.28 | J34: 1034.62 | K34: 1005.95 | L34: 980.15 | M34: 0.22704
A35: 25 | B35: AMBUJACEM | C35: 201.6 | D35: 201.87 | E35: 200.73 | F35: 199.87 | G35: 198.73 | H35: 202.73 | I35: 203.87 | J35: 204.73 | K35: 203 | L35: 201 | M35: 19.06946
A36: 26 | B36: ANDHRABANK | C36: 19.65 | D36: 20.00 | E36: 19.15 | F36: 18.65 | G36: 17.80 | H36: 20.50 | I36: 21.35 | J36: 21.85 | K36: 20.85 | L36: 19.5 | M36: 52.87165
A37: 27 | B37: APOLLOHOSP | C37: 1421.55 | D37: 1424.55 | E37: 1412.00 | F37: 1402.45 | G37: 1389.90 | H37: 1434.10 | I37: 1446.65 | J37: 1456.20 | K37: 1437.1 | L37: 1415 | M37: 6.60964
A38: 28 | B38: APOLLOTYRE | C38: 167.65 | D38: 168.30 | E38: 165.85 | F38: 164.05 | G38: 161.60 | H38: 170.10 | I38: 172.55 | J38: 174.35 | K38: 170.75 | L38: 166.5 | M38: 22.12021
A39: 29 | B39: ARVINDFASN | C39: 355.5 | D39: 355.95 | E39: 349.55 | F39: 343.60 | G39: 337.20 | H39: 361.90 | I39: 368.30 | J39: 374.25 | K39: 362.35 | L39: 350 | M39: 1.05616
A40: 30 | B40: ASHOKLEY | C40: 83 | D40: 82.90 | E40: 81.10 | F40: 79.20 | G40: 77.40 | H40: 84.80 | I40: 86.60 | J40: 88.50 | K40: 84.7 | L40: 81 | M40: 322.59341
A41: 31 | B41: ASHOKA | C41: 92.65 | D41: 93.45 | E41: 91.40 | F41: 90.15 | G41: 88.10 | H41: 94.70 | I41: 96.75 | J41: 98.00 | K41: 95.5 | L41: 92.2 | M41: 4.29066
A42: 32 | B42: ASIANPAINT | C42: 1723.5 | D42: 1729.27 | E42: 1709.68 | F42: 1695.87 | G42: 1676.28 | H42: 1743.08 | I42: 1762.67 | J42: 1776.48 | K42: 1748.85 | L42: 1715.45 | M42: 13.74382
A43: 33 | B43: ASTERDM | C43: 149.3 | D43: 150.73 | E43: 146.57 | F43: 143.83 | G43: 139.67 | H43: 153.47 | I43: 157.63 | J43: 160.37 | K43: 154.9 | L43: 148 | M43: 2.77413
A44: 34 | B44: ASTRAZEN | C44: 2675.55 | D44: 2652.53 | E44: 2605.07 | F44: 2534.58 | G44: 2487.12 | H44: 2723.02 | I44: 2770.48 | J44: 2840.97 | K44: 2700 | L44: 2582.05 | M44: 0.72123
A45: 35 | B45: ASTRAL | C45: 1084.3 | D45: 1078.98 | E45: 1071.02 | F45: 1057.73 | G45: 1049.77 | H45: 1092.27 | I45: 1100.23 | J45: 1113.52 | K45: 1086.95 | L45: 1065.7 | M45: 0.84108
A46: 36 | B46: ATUL | C46: 4132.95 | D46: 4118.13 | E46: 4051.77 | F46: 3970.58 | G46: 3904.22 | H46: 4199.32 | I46: 4265.68 | J46: 4346.87 | K46: 4184.5 | L46: 4036.95 | M46: 0.09402
A47: 37 | B47: AUROPHARMA | C47: 444.8 | D47: 441.93 | E47: 434.87 | F47: 424.93 | G47: 417.87 | H47: 451.87 | I47: 458.93 | J47: 468.87 | K47: 449 | L47: 432 | M47: 50.09429
A48: 38 | B48: AVANTIFEED | C48: 524.05 | D48: 520.88 | E48: 512.92 | F48: 501.78 | G48: 493.82 | H48: 532.02 | I48: 539.98 | J48: 551.12 | K48: 528.85 | L48: 509.75 | M48: 4.83193
A49: 39 | B49: DMART | C49: 1826.2 | D49: 1837.02 | E49: 1806.03 | F49: 1785.87 | G49: 1754.88 | H49: 1857.18 | I49: 1888.17 | J49: 1908.33 | K49: 1868 | L49: 1816.85 | M49: 3.63662
A50: 40 | B50: AXISBANK | C50: 748.75 | D50: 747.95 | E50: 742.05 | F50: 735.35 | G50: 729.45 | H50: 754.65 | I50: 760.55 | J50: 767.25 | K50: 753.85 | L50: 741.25 | M50: 87.98051
A51: 41 | B51: BASF | C51: 945.75 | D51: 950.15 | E51: 936.30 | F51: 926.85 | G51: 913.00 | H51: 959.60 | I51: 973.45 | J51: 982.90 | K51: 964 | L51: 940.7 | M51: 0.12508
A52: 42 | B52: BEML | C52: 997.9 | D52: 986.23 | E52: 961.12 | F52: 924.33 | G52: 899.22 | H52: 1023.02 | I52: 1048.13 | J52: 1084.92 | K52: 1011.35 | L52: 949.45 | M52: 24.06763
A53: 43 | B53: BSE | C53: 496.95 | D53: 498.57 | E53: 493.53 | F53: 490.12 | G53: 485.08 | H53: 501.98 | I53: 507.02 | J53: 510.43 | K53: 503.6 | L53: 495.15 | M53: 0.57323
A54: 44 | B54: BAJAJ-AUTO | C54: 3162.4 | D54: 3153.93 | E54: 3138.97 | F54: 3115.53 | G54: 3100.57 | H54: 3177.37 | I54: 3192.33 | J54: 3215.77 | K54: 3168.9 | L54: 3130.5 | M54: 2.38889
A55: 45 | B55: BAJAJCON | C55: 240.55 | D55: 239.47 | E55: 237.13 | F55: 233.72 | G55: 231.38 | H55: 242.88 | I55: 245.22 | J55: 248.63 | K55: 241.8 | L55: 236.05 | M55: 0.847
A56: 46 | B56: BAJAJELEC | C56: 310.6 | D56: 309.98 | E56: 307.32 | F56: 304.03 | G56: 301.37 | H56: 313.27 | I56: 315.93 | J56: 319.22 | K56: 312.65 | L56: 306.7 | M56: 1.58387
A57: 47 | B57: BAJFINANCE | C57: 4138.55 | D57: 4149.32 | E57: 4116.63 | F57: 4094.72 | G57: 4062.03 | H57: 4171.23 | I57: 4203.92 | J57: 4225.83 | K57: 4182 | L57: 4127.4 | M57: 8.13879
A58: 48 | B58: BAJAJFINSV | C58: 9079.25 | D58: 9108.08 | E58: 9031.17 | F58: 8983.08 | G58: 8906.17 | H58: 9156.17 | I58: 9233.08 | J58: 9281.17 | K58: 9185 | L58: 9060 | M58: 2.43993
A59: 49 | B59: BAJAJHLDNG | C59: 3702.05 | D59: 3717.02 | E59: 3677.03 | F59: 3652.02 | G59: 3612.03 | H59: 3742.03 | I59: 3782.02 | J59: 3807.03 | K59: 3757 | L59: 3692 | M59: 0.11041
A60: 50 | B60: BALKRISIND | C60: 840.6 | D60: 838.10 | E60: 832.75 | F60: 824.90 | G60: 819.55 | H60: 845.95 | I60: 851.30 | J60: 859.15 | K60: 843.45 | L60: 830.25 | M60: 5.17114
A61: 51 | B61: BALMLAWRIE | C61: 197.3 | D61: 195.80 | E61: 192.60 | F61: 187.90 | G61: 184.70 | H61: 200.50 | I61: 203.70 | J61: 208.40 | K61: 199 | L61: 191.1 | M61: 2.55164
A62: 52 | B62: BALRAMCHIN | C62: 146.8 | D62: 146.43 | E62: 144.97 | F62: 143.13 | G62: 141.67 | H62: 148.27 | I62: 149.73 | J62: 151.57 | K62: 147.9 | L62: 144.6 | M62: 4.53088
A63: 53 | B63: BANDHANBNK | C63: 525.7 | D63: 524.75 | E63: 506.00 | F63: 486.30 | G63: 467.55 | H63: 544.45 | I63: 563.20 | J63: 582.90 | K63: 543.5 | L63: 505.05 | M63: 52.87905
A64: 54 | B64: BANKBARODA | C64: 98.9 | D64: 99.43 | E64: 97.52 | F64: 96.13 | G64: 94.22 | H64: 100.82 | I64: 102.73 | J64: 104.12 | K64: 101.35 | L64: 98.05 | M64: 343.25824
A65: 55 | B65: BANKINDIA | C65: 73.6 | D65: 74.18 | E65: 72.22 | F65: 70.83 | G65: 68.87 | H65: 75.57 | I65: 77.53 | J65: 78.92 | K65: 76.15 | L65: 72.8 | M65: 163.56384
A66: 56 | B66: MAHABANK | C66: 12.8 | D66: 12.92 | E66: 12.43 | F66: 12.07 | G66: 11.58 | H66: 13.28 | I66: 13.77 | J66: 14.13 | K66: 13.4 | L66: 12.55 | M66: 19.02828
A67: 57 | B67: BATAINDIA | C67: 1683.95 | D67: 1687.45 | E67: 1673.70 | F67: 1663.45 | G67: 1649.70 | H67: 1697.70 | I67: 1711.45 | J67: 1721.70 | K67: 1701.2 | L67: 1677.2 | M67: 3.99565
A68: 58 | B68: BAYERCROP | C68: 3760.85 | D68: 3751.00 | E68: 3702.00 | F68: 3643.15 | G68: 3594.15 | H68: 3809.85 | I68: 3858.85 | J68: 3917.70 | K68: 3800 | L68: 3692.15 | M68: 0.08997
A69: 59 | B69: BERGEPAINT | C69: 485.2 | D69: 486.52 | E69: 481.68 | F69: 478.17 | G69: 473.33 | H69: 490.03 | I69: 494.87 | J69: 498.38 | K69: 491.35 | L69: 483 | M69: 10.09511
A70: 60 | B70: BDL | C70: 342.75 | D70: 342.40 | E70: 330.35 | F70: 317.95 | G70: 305.90 | H70: 354.80 | I70: 366.85 | J70: 379.25 | K70: 354.45 | L70: 330 | M70: 2.86593
A71: 61 | B71: BEL | C71: 110.8 | D71: 111.32 | E71: 109.88 | F71: 108.97 | G71: 107.53 | H71: 112.23 | I71: 113.67 | J71: 114.58 | K71: 112.75 | L71: 110.4 | M71: 69.44846
A72: 62 | B72: BHARATFORG | C72: 458.25 | D72: 458.98 | E72: 453.27 | F72: 448.28 | G72: 442.57 | H72: 463.97 | I72: 469.68 | J72: 474.67 | K72: 464.7 | L72: 454 | M72: 17.11834
A73: 63 | B73: BHEL | C73: 55.8 | D73: 55.55 | E73: 54.50 | F73: 53.20 | G73: 52.15 | H73: 56.85 | I73: 57.90 | J73: 59.20 | K73: 56.6 | L73: 54.25 | M73: 243.5217
A74: 64 | B74: BPCL | C74: 544.6 | D74: 538.22 | E74: 528.43 | F74: 512.27 | G74: 502.48 | H74: 554.38 | I74: 564.17 | J74: 580.33 | K74: 548 | L74: 522.05 | M74: 188.44498
A75: 65 | B75: BHARTIARTL | C75: 437.3 | D75: 441.12 | E75: 429.28 | F75: 421.27 | G75: 409.43 | H75: 449.13 | I75: 460.97 | J75: 468.98 | K75: 452.95 | L75: 433.1 | M75: 556.44344
A76: 66 | B76: INFRATEL | C76: 240.9 | D76: 246.23 | E76: 232.17 | F76: 223.43 | G76: 209.37 | H76: 254.97 | I76: 269.03 | J76: 277.77 | K76: 260.3 | L76: 237.5 | M76: 240.39955
A77: 67 | B77: BIOCON | C77: 262.8 | D77: 261.18 | E77: 257.12 | F77: 251.43 | G77: 247.37 | H77: 266.87 | I77: 270.93 | J77: 276.62 | K77: 265.25 | L77: 255.5 | M77: 33.61132
A78: 68 | B78: BIRLACORPN | C78: 640.3 | D78: 642.10 | E78: 634.20 | F78: 628.10 | G78: 620.20 | H78: 648.20 | I78: 656.10 | J78: 662.20 | K78: 650 | L78: 636 | M78: 0.7793
A79: 69 | B79: BSOFT | C79: 69 | D79: 70.12 | E79: 64.23 | F79: 59.47 | G79: 53.58 | H79: 74.88 | I79: 80.77 | J79: 85.53 | K79: 76 | L79: 65.35 | M79: 23.49662
A80: 70 | B80: BLISSGVS | C80: 137.35 | D80: 137.27 | E80: 134.53 | F80: 131.72 | G80: 128.98 | H80: 140.08 | I80: 142.82 | J80: 145.63 | K80: 140 | L80: 134.45 | M80: 0.76923
A81: 71 | B81: BLUEDART | C81: 2121.7 | D81: 2140.55 | E81: 2091.15 | F81: 2060.60 | G81: 2011.20 | H81: 2171.10 | I81: 2220.50 | J81: 2251.05 | K81: 2189.95 | L81: 2110 | M81: 0.04139
A82: 72 | B82: BLUESTARCO | C82: 791.2 | D82: 794.23 | E82: 782.97 | F82: 774.73 | G82: 763.47 | H82: 802.47 | I82: 813.73 | J82: 821.97 | K82: 805.5 | L82: 786 | M82: 0.55972
A83: 73 | B83: BBTC | C83: 1113.65 | D83: 1113.47 | E83: 1088.28 | F83: 1062.92 | G83: 1037.73 | H83: 1138.83 | I83: 1164.02 | J83: 1189.38 | K83: 1138.65 | L83: 1088.1 | M83: 1.50941
A84: 74 | B84: BOMDYEING | C84: 78.4 | D84: 78.88 | E84: 77.12 | F84: 75.83 | G84: 74.07 | H84: 80.17 | I84: 81.93 | J84: 83.22 | K84: 80.65 | L84: 77.6 | M84: 17.78509
A85: 75 | B85: BOSCHLTD | C85: 15059.7 | D85: 15112.25 | E85: 14829.45 | F85: 14599.20 | G85: 14316.40 | H85: 15342.50 | I85: 15625.30 | J85: 15855.55 | K85: 15395.05 | L85: 14882 | M85: 0.13794
A86: 76 | B86: BRIGADE | C86: 209 | D86: 210.32 | E86: 206.13 | F86: 203.27 | G86: 199.08 | H86: 213.18 | I86: 217.37 | J86: 220.23 | K86: 214.5 | L86: 207.45 | M86: 0.52009
A87: 77 | B87: BRITANNIA | C87: 3116.3 | D87: 3103.77 | E87: 3072.53 | F87: 3028.77 | G87: 2997.53 | H87: 3147.53 | I87: 3178.77 | J87: 3222.53 | K87: 3135 | L87: 3060 | M87: 5.04339
A88: 78 | B88: CARERATING | C88: 480.85 | D88: 481.28 | E88: 473.57 | F88: 466.28 | G88: 458.57 | H88: 488.57 | I88: 496.28 | J88: 503.57 | K88: 489 | L88: 474 | M88: 0.81356
A89: 79 | B89: CCL | C89: 207.25 | D89: 208.40 | E89: 203.90 | F89: 200.55 | G89: 196.05 | H89: 211.75 | I89: 216.25 | J89: 219.60 | K89: 212.9 | L89: 205.05 | M89: 1.05337
A90: 80 | B90: CESC | C90: 749.7 | D90: 753.47 | E90: 743.93 | F90: 738.17 | G90: 728.63 | H90: 759.23 | I90: 768.77 | J90: 774.53 | K90: 763 | L90: 747.7 | M90: 2.72348
A91: 81 | B91: CGPOWER | C91: 14.1 | D91: 14.25 | E91: 13.85 | F91: 13.60 | G91: 13.20 | H91: 14.50 | I91: 14.90 | J91: 15.15 | K91: 14.65 | L91: 14 | M91: 7.99728
A92: 82 | B92: CRISIL | C92: 1519.65 | D92: 1514.62 | E92: 1505.03 | F92: 1490.42 | G92: 1480.83 | H92: 1529.23 | I92: 1538.82 | J92: 1553.43 | K92: 1524.2 | L92: 1500 | M92: 0.09736
A93: 83 | B93: CADILAHC | C93: 249.45 | D93: 247.63 | E93: 243.32 | F93: 237.18 | G93: 232.87 | H93: 253.77 | I93: 258.08 | J93: 264.22 | K93: 251.95 | L93: 241.5 | M93: 25.80699
A94: 84 | B94: CANFINHOME | C94: 395.9 | D94: 398.30 | E94: 391.60 | F94: 387.30 | G94: 380.60 | H94: 402.60 | I94: 409.30 | J94: 413.60 | K94: 405 | L94: 394 | M94: 2.45151
A95: 85 | B95: CANBK | C95: 222.5 | D95: 223.62 | E95: 219.08 | F95: 215.67 | G95: 211.13 | H95: 227.03 | I95: 231.57 | J95: 234.98 | K95: 228.15 | L95: 220.2 | M95: 163.73708
A96: 86 | B96: CAPLIPOINT | C96: 343.15 | D96: 345.63 | E96: 337.52 | F96: 331.88 | G96: 323.77 | H96: 351.27 | I96: 359.38 | J96: 365.02 | K96: 353.75 | L96: 340 | M96: 0.67374
A97: 87 | B97: CGCL | C97: 199.25 | D97: 199.18 | E97: 197.07 | F97: 194.88 | G97: 192.77 | H97: 201.37 | I97: 203.48 | J97: 205.67 | K97: 201.3 | L97: 197 | M97: 3.41361
A98: 88 | B98: CARBORUNIV | C98: 306.5 | D98: 307.02 | E98: 304.43 | F98: 302.37 | G98: 299.78 | H98: 309.08 | I98: 311.67 | J98: 313.73 | K98: 309.6 | L98: 304.95 | M98: 0.37193
A99: 89 | B99: CASTROLIND | C99: 152.6 | D99: 152.98 | E99: 150.97 | F99: 149.33 | G99: 147.32 | H99: 154.62 | I99: 156.63 | J99: 158.27 | K99: 155 | L99: 151.35 | M99: 22.44106
A100: 90 | B100: CEATLTD | C100: 962.5 | D100: 960.20 | E100: 949.50 | F100: 936.50 | G100: 925.80 | H100: 973.20 | I100: 983.90 | J100: 996.90 | K100: 970.9 | L100: 947.2 | M100: 1.20033
A101: 91 | B101: CENTRALBK | C101: 21.95 | D101: 22.18 | E101: 21.07 | F101: 20.18 | G101: 19.07 | H101: 23.07 | I101: 24.18 | J101: 25.07 | K101: 23.3 | L101: 21.3 | M101: 24.08681
A102: 92 | B102: CDSL | C102: 230.45 | D102: 229.28 | E102: 223.67 | F102: 216.88 | G102: 211.27 | H102: 236.07 | I102: 241.68 | J102: 248.47 | K102: 234.9 | L102: 222.5 | M102: 5.38873
A103: 93 | B103: CENTURYPLY | C103: 171.9 | D103: 171.68 | E103: 170.22 | F103: 168.53 | G103: 167.07 | H103: 173.37 | I103: 174.83 | J103: 176.52 | K103: 173.15 | L103: 170 | M103: 1.13365
A104: 94 | B104: CERA | C104: 2434.45 | D104: 2429.93 | E104: 2409.82 | F104: 2385.18 | G104: 2365.07 | H104: 2454.57 | I104: 2474.68 | J104: 2499.32 | K104: 2450.05 | L104: 2405.3 | M104: 0.02954
A105: 95 | B105: CHALET | C105: 352.15 | D105: 354.48 | E105: 343.92 | F105: 335.68 | G105: 325.12 | H105: 362.72 | I105: 373.28 | J105: 381.52 | K105: 365.05 | L105: 346.25 | M105: 0.04529
A106: 96 | B106: CHAMBLFERT | C106: 159.1 | D106: 158.45 | E106: 156.90 | F106: 154.70 | G106: 153.15 | H106: 160.65 | I106: 162.20 | J106: 164.40 | K106: 160 | L106: 156.25 | M106: 2.8077
A107: 97 | B107: CHENNPETRO | C107: 136.35 | D107: 136.73 | E107: 134.27 | F107: 132.18 | G107: 129.72 | H107: 138.82 | I107: 141.28 | J107: 143.37 | K107: 139.2 | L107: 134.65 | M107: 1.38225
A108: 98 | B108: CHOLAHLDNG | C108: 499.9 | D108: 495.62 | E108: 489.73 | F108: 479.57 | G108: 473.68 | H108: 505.78 | I108: 511.67 | J108: 521.83 | K108: 501.5 | L108: 485.45 | M108: 1.12176
A109: 99 | B109: CHOLAFIN | C109: 319.9 | D109: 321.08 | E109: 315.32 | F109: 310.73 | G109: 304.97 | H109: 325.67 | I109: 331.43 | J109: 336.02 | K109: 326.85 | L109: 316.5 | M109: 15.6894
A110: 100 | B110: CIPLA | C110: 482.6 | D110: 478.32 | E110: 472.93 | F110: 463.27 | G110: 457.88 | H110: 487.98 | I110: 493.37 | J110: 503.03 | K110: 483.7 | L110: 468.65 | M110: 40.80054
A111: 101 | B111: CUB | C111: 214.65 | D111: 214.32 | E111: 212.73 | F111: 210.82 | G111: 209.23 | H111: 216.23 | I111: 217.82 | J111: 219.73 | K111: 215.9 | L111: 212.4 | M111: 3.28109
A112: 102 | B112: COALINDIA | C112: 203.05 | D112: 202.17 | E112: 200.33 | F112: 197.62 | G112: 195.78 | H112: 204.88 | I112: 206.72 | J112: 209.43 | K112: 204 | L112: 199.45 | M112: 44.56738
A113: 103 | B113: COCHINSHIP | C113: 410.9 | D113: 411.55 | E113: 407.30 | F113: 403.70 | G113: 399.45 | H113: 415.15 | I113: 419.40 | J113: 423.00 | K113: 415.8 | L113: 407.95 | M113: 0.89584
A114: 104 | B114: COFFEEDAY | C114: 52.8 | D114: 52.03 | E114: 51.27 | F114: 49.73 | G114: 48.97 | H114: 53.57 | I114: 54.33 | J114: 55.87 | K114: 52.8 | L114: 50.5 | M114: 19.94274
A115: 105 | B115: COLPAL | C115: 1542.25 | D115: 1539.22 | E115: 1526.08 | F115: 1509.92 | G115: 1496.78 | H115: 1555.38 | I115: 1568.52 | J115: 1584.68 | K115: 1552.35 | L115: 1523.05 | M115: 6.73815
A116: 106 | B116: CONCOR | C116: 578.15 | D116: 578.12 | E116: 571.63 | F116: 565.12 | G116: 558.63 | H116: 584.63 | I116: 591.12 | J116: 597.63 | K116: 584.6 | L116: 571.6 | M116: 53.06743
A117: 107 | B117: COROMANDEL | C117: 469.55 | D117: 470.70 | E117: 466.10 | F117: 462.65 | G117: 458.05 | H117: 474.15 | I117: 478.75 | J117: 482.20 | K117: 475.3 | L117: 467.25 | M117: 0.68751
A118: 108 | B118: CORPBANK | C118: 27.65 | D118: 27.75 | E118: 26.45 | F118: 25.25 | G118: 23.95 | H118: 28.95 | I118: 30.25 | J118: 31.45 | K118: 29.05 | L118: 26.55 | M118: 159.55399
A119: 109 | B119: COX&KINGS | C119: 1.6 | D119: 1.58 | E119: 1.57 | F119: 1.53 | G119: 1.52 | H119: 1.62 | I119: 1.63 | J119: 1.67 | K119: 1.6 | L119: 1.55 | M119: 29.0086
A120: 110 | B120: CREDITACC | C120: 788.35 | D120: 791.85 | E120: 768.70 | F120: 749.05 | G120: 725.90 | H120: 811.50 | I120: 834.65 | J120: 854.30 | K120: 815 | L120: 772.2 | M120: 1.33894
A121: 111 | B121: CROMPTON | C121: 257.15 | D121: 258.97 | E121: 252.68 | F121: 248.22 | G121: 241.93 | H121: 263.43 | I121: 269.72 | J121: 274.18 | K121: 265.25 | L121: 254.5 | M121: 21.27892
A122: 112 | B122: CUMMINSIND | C122: 569.55 | D122: 567.60 | E122: 564.20 | F122: 558.85 | G122: 555.45 | H122: 572.95 | I122: 576.35 | J122: 581.70 | K122: 571 | L122: 562.25 | M122: 4.18796
A123: 113 | B123: CYIENT | C123: 398.5 | D123: 397.52 | E123: 395.03 | F123: 391.57 | G123: 389.08 | H123: 400.98 | I123: 403.47 | J123: 406.93 | K123: 400 | L123: 394.05 | M123: 0.34634
A124: 114 | B124: DBCORP | C124: 141.75 | D124: 139.63 | E124: 132.52 | F124: 123.28 | G124: 116.17 | H124: 148.87 | I124: 155.98 | J124: 165.22 | K124: 146.75 | L124: 130.4 | M124: 0.28361
A125: 115 | B125: DCBBANK | C125: 176.85 | D125: 178.00 | E125: 175.10 | F125: 173.35 | G125: 170.45 | H125: 179.75 | I125: 182.65 | J125: 184.40 | K125: 180.9 | L125: 176.25 | M125: 7.90505
A126: 116 | B126: DCMSHRIRAM | C126: 317.05 | D126: 318.25 | E126: 315.00 | F126: 312.95 | G126: 309.70 | H126: 320.30 | I126: 323.55 | J126: 325.60 | K126: 321.5 | L126: 316.2 | M126: 0.32703
A127: 117 | B127: DLF | C127: 212.1 | D127: 214.05 | E127: 209.40 | F127: 206.70 | G127: 202.05 | H127: 216.75 | I127: 221.40 | J127: 224.10 | K127: 218.7 | L127: 211.35 | M127: 99.6307
A128: 118 | B128: DABUR | C128: 468.8 | D128: 465.07 | E128: 459.23 | F128: 449.67 | G128: 443.83 | H128: 474.63 | I128: 480.47 | J128: 490.03 | K128: 470.9 | L128: 455.5 | M128: 23.89925
A129: 119 | B129: DALBHARAT | C129: 841 | D129: 843.87 | E129: 835.23 | F129: 829.47 | G129: 820.83 | H129: 849.63 | I129: 858.27 | J129: 864.03 | K129: 852.5 | L129: 838.1 | M129: 0.53124
A130: 120 | B130: DEEPAKNTR | C130: 348.5 | D130: 350.40 | E130: 345.00 | F130: 341.50 | G130: 336.10 | H130: 353.90 | I130: 359.30 | J130: 362.80 | K130: 355.8 | L130: 346.9 | M130: 2.10922
A131: 121 | B131: DELTACORP | C131: 197.6 | D131: 196.67 | E131: 193.93 | F131: 190.27 | G131: 187.53 | H131: 200.33 | I131: 203.07 | J131: 206.73 | K131: 199.4 | L131: 193 | M131: 12.06077
A132: 122 | B132: DEN | C132: 36.55 | D132: 37.22 | E132: 35.43 | F132: 34.32 | G132: 32.53 | H132: 38.33 | I132: 40.12 | J132: 41.23 | K132: 39 | L132: 36.1 | M132: 1.89911
A133: 123 | B133: DHFL | C133: 20.15 | D133: 20.68 | E133: 19.42 | F133: 18.68 | G133: 17.42 | H133: 21.42 | I133: 22.68 | J133: 23.42 | K133: 21.95 | L133: 19.95 | M133: 90.77572
A134: 124 | B134: DBL | C134: 406.7 | D134: 409.90 | E134: 401.80 | F134: 396.90 | G134: 388.80 | H134: 414.80 | I134: 422.90 | J134: 427.80 | K134: 418 | L134: 405 | M134: 1.60336
A135: 125 | B135: DISHTV | C135: 16.85 | D135: 16.45 | E135: 14.90 | F135: 12.95 | G135: 11.40 | H135: 18.40 | I135: 19.95 | J135: 21.90 | K135: 18 | L135: 14.5 | M135: 1622.6271
A136: 126 | B136: DCAL | C136: 120.4 | D136: 121.88 | E136: 118.27 | F136: 116.13 | G136: 112.52 | H136: 124.02 | I136: 127.63 | J136: 129.77 | K136: 125.5 | L136: 119.75 | M136: 3.31003
A137: 127 | B137: DIVISLAB | C137: 1763.6 | D137: 1762.68 | E137: 1727.57 | F137: 1691.53 | G137: 1656.42 | H137: 1798.72 | I137: 1833.83 | J137: 1869.87 | K137: 1797.8 | L137: 1726.65 | M137: 10.47192
A138: 128 | B138: DIXON | C138: 3103.55 | D138: 3179.32 | E138: 2960.63 | F138: 2817.72 | G138: 2599.03 | H138: 3322.23 | I138: 3540.92 | J138: 3683.83 | K138: 3398 | L138: 3036.4 | M138: 1.32428
A139: 129 | B139: LALPATHLAB | C139: 1594.95 | D139: 1615.65 | E139: 1564.45 | F139: 1533.95 | G139: 1482.75 | H139: 1646.15 | I139: 1697.35 | J139: 1727.85 | K139: 1666.85 | L139: 1585.15 | M139: 1.28206
A140: 130 | B140: DRREDDY | C140: 2838.65 | D140: 2815.87 | E140: 2767.78 | F140: 2696.92 | G140: 2648.83 | H140: 2886.73 | I140: 2934.82 | J140: 3005.68 | K140: 2863.95 | L140: 2745 | M140: 9.97976
A141: 131 | B141: EIDPARRY | C141: 190.4 | D141: 192.15 | E141: 187.25 | F141: 184.10 | G141: 179.20 | H141: 195.30 | I141: 200.20 | J141: 203.35 | K141: 197.05 | L141: 189 | M141: 2.00035
A142: 132 | B142: EIHOTEL | C142: 149.4 | D142: 149.52 | E142: 148.38 | F142: 147.37 | G142: 146.23 | H142: 150.53 | I142: 151.67 | J142: 152.68 | K142: 150.65 | L142: 148.5 | M142: 1.07289
A143: 133 | B143: EDELWEISS | C143: 125.1 | D143: 123.88 | E143: 118.87 | F143: 112.63 | G143: 107.62 | H143: 130.12 | I143: 135.13 | J143: 141.37 | K143: 128.9 | L143: 117.65 | M143: 12.27575
A144: 134 | B144: EICHERMOT | C144: 21489.8 | D144: 21543.93 | E144: 21340.87 | F144: 21191.93 | G144: 20988.87 | H144: 21692.87 | I144: 21895.93 | J144: 22044.87 | K144: 21747 | L144: 21395 | M144: 0.73575
A145: 135 | B145: ELGIEQUIP | C145: 255 | D145: 255.60 | E145: 251.45 | F145: 247.90 | G145: 243.75 | H145: 259.15 | I145: 263.30 | J145: 266.85 | K145: 259.75 | L145: 252.05 | M145: 0.1736
A146: 136 | B146: EMAMILTD | C146: 320.15 | D146: 319.38 | E146: 313.77 | F146: 307.38 | G146: 301.77 | H146: 325.77 | I146: 331.38 | J146: 337.77 | K146: 325 | L146: 313 | M146: 1.02519
A147: 137 | B147: ENDURANCE | C147: 1112.05 | D147: 1113.98 | E147: 1094.67 | F147: 1077.28 | G147: 1057.97 | H147: 1131.37 | I147: 1150.68 | J147: 1168.07 | K147: 1133.3 | L147: 1096.6 | M147: 0.4654
A148: 138 | B148: ENGINERSIN | C148: 104.4 | D148: 104.53 | E148: 103.42 | F148: 102.43 | G148: 101.32 | H148: 105.52 | I148: 106.63 | J148: 107.62 | K148: 105.65 | L148: 103.55 | M148: 8.99657
A149: 139 | B149: EQUITAS | C149: 89.5 | D149: 89.25 | E149: 88.25 | F149: 87.00 | G149: 86.00 | H149: 90.50 | I149: 91.50 | J149: 92.75 | K149: 90.25 | L149: 88 | M149: 32.33966
A150: 140 | B150: ERIS | C150: 415.05 | D150: 417.52 | E150: 406.63 | F150: 398.22 | G150: 387.33 | H150: 425.93 | I150: 436.82 | J150: 445.23 | K150: 428.4 | L150: 409.1 | M150: 10.75195
A151: 141 | B151: ESCORTS | C151: 670.6 | D151: 672.80 | E151: 657.80 | F151: 645.00 | G151: 630.00 | H151: 685.60 | I151: 700.60 | J151: 713.40 | K151: 687.8 | L151: 660 | M151: 37.12448
A152: 142 | B152: ESSELPACK | C152: 149.6 | D152: 149.90 | E152: 144.80 | F152: 140.00 | G152: 134.90 | H152: 154.70 | I152: 159.80 | J152: 164.60 | K152: 155 | L152: 145.1 | M152: 4.21219
A153: 143 | B153: EXIDEIND | C153: 188.7 | D153: 189.48 | E153: 187.22 | F153: 185.73 | G153: 183.47 | H153: 190.97 | I153: 193.23 | J153: 194.72 | K153: 191.75 | L153: 188 | M153: 12.38989
A154: 144 | B154: FDC | C154: 200.6 | D154: 200.73 | E154: 197.47 | F154: 194.33 | G154: 191.07 | H154: 203.87 | I154: 207.13 | J154: 210.27 | K154: 204 | L154: 197.6 | M154: 2.17997
A155: 145 | B155: FEDERALBNK | C155: 88.65 | D155: 88.50 | E155: 87.40 | F155: 86.15 | G155: 85.05 | H155: 89.75 | I155: 90.85 | J155: 92.10 | K155: 89.6 | L155: 87.25 | M155: 171.32882
A156: 146 | B156: FMGOETZE | C156: 592.8 | D156: 590.25 | E156: 582.65 | F156: 572.50 | G156: 564.90 | H156: 600.40 | I156: 608.00 | J156: 618.15 | K156: 597.85 | L156: 580.1 | M156: 0.11488
A157: 147 | B157: FINEORG | C157: 2048.8 | D157: 2049.05 | E157: 2027.10 | F157: 2005.40 | G157: 1983.45 | H157: 2070.75 | I157: 2092.70 | J157: 2114.40 | K157: 2071 | L157: 2027.35 | M157: 0.08387
A158: 148 | B158: FINCABLES | C158: 357 | D158: 358.62 | E158: 353.43 | F158: 349.87 | G158: 344.68 | H158: 362.18 | I158: 367.37 | J158: 370.93 | K158: 363.8 | L158: 355.05 | M158: 0.23246
A159: 149 | B159: FINPIPE | C159: 568.25 | D159: 567.75 | E159: 563.50 | F159: 558.75 | G159: 554.50 | H159: 572.50 | I159: 576.75 | J159: 581.50 | K159: 572 | L159: 563 | M159: 0.25445
A160: 150 | B160: FSL | C160: 41.15 | D160: 41.07 | E160: 40.63 | F160: 40.12 | G160: 39.68 | H160: 41.58 | I160: 42.02 | J160: 42.53 | K160: 41.5 | L160: 40.55 | M160: 12.63734
A161: 151 | B161: FORTIS | C161: 142.5 | D161: 142.68 | E161: 141.57 | F161: 140.63 | G161: 139.52 | H161: 143.62 | I161: 144.73 | J161: 145.67 | K161: 143.8 | L161: 141.75 | M161: 10.68567
A162: 152 | B162: FCONSUMER | C162: 23 | D162: 23.02 | E162: 22.63 | F162: 22.27 | G162: 21.88 | H162: 23.38 | I162: 23.77 | J162: 24.13 | K162: 23.4 | L162: 22.65 | M162: 6.52856
A163: 153 | B163: FLFL | C163: 399.85 | D163: 401.10 | E163: 393.75 | F163: 387.65 | G163: 380.30 | H163: 407.20 | I163: 414.55 | J163: 420.65 | K163: 408.45 | L163: 395 | M163: 0.458
A164: 154 | B164: FRETAIL | C164: 328.05 | D164: 329.15 | E164: 323.50 | F164: 318.95 | G164: 313.30 | H164: 333.70 | I164: 339.35 | J164: 343.90 | K164: 334.8 | L164: 324.6 | M164: 11.93623
A165: 155 | B165: GAIL | C165: 124.5 | D165: 124.55 | E165: 123.75 | F165: 123.00 | G165: 122.20 | H165: 125.30 | I165: 126.10 | J165: 126.85 | K165: 125.35 | L165: 123.8 | M165: 95.42169
A166: 156 | B166: GEPIL | C166: 707.65 | D166: 708.32 | E166: 698.33 | F166: 689.02 | G166: 679.03 | H166: 717.63 | I166: 727.62 | J166: 736.93 | K166: 718.3 | L166: 699 | M166: 0.93208
A167: 157 | B167: GET&D | C167: 173.45 | D167: 174.35 | E167: 171.70 | F167: 169.95 | G167: 167.30 | H167: 176.10 | I167: 178.75 | J167: 180.50 | K167: 177 | L167: 172.6 | M167: 0.22442
A168: 158 | B168: GHCL | C168: 205.05 | D168: 205.85 | E168: 203.70 | F168: 202.35 | G168: 200.20 | H168: 207.20 | I168: 209.35 | J168: 210.70 | K168: 208 | L168: 204.5 | M168: 0.39808
A169: 159 | B169: GMRINFRA | C169: 20.7 | D169: 20.80 | E169: 20.40 | F169: 20.10 | G169: 19.70 | H169: 21.10 | I169: 21.50 | J169: 21.80 | K169: 21.2 | L169: 20.5 | M169: 142.35135
A170: 160 | B170: GALAXYSURF | C170: 1534 | D170: 1539.68 | E170: 1509.37 | F170: 1484.73 | G170: 1454.42 | H170: 1564.32 | I170: 1594.63 | J170: 1619.27 | K170: 1570 | L170: 1515.05 | M170: 0.17993
A171: 161 | B171: GARFIBRES | C171: 1162.25 | D171: 1165.73 | E171: 1148.47 | F171: 1134.68 | G171: 1117.42 | H171: 1179.52 | I171: 1196.78 | J171: 1210.57 | K171: 1183 | L171: 1151.95 | M171: 0.02271
A172: 162 | B172: GAYAPROJ | C172: 86.9 | D172: 86.95 | E172: 85.85 | F172: 84.80 | G172: 83.70 | H172: 88.00 | I172: 89.10 | J172: 90.15 | K172: 88.05 | L172: 85.9 | M172: 5.85419
A173: 163 | B173: GICRE | C173: 247.1 | D173: 250.53 | E173: 242.57 | F173: 238.03 | G173: 230.07 | H173: 255.07 | I173: 263.03 | J173: 267.57 | K173: 258.5 | L173: 246 | M173: 3.60448
A174: 164 | B174: GILLETTE | C174: 7016.5 | D174: 7054.83 | E174: 6961.67 | F174: 6906.83 | G174: 6813.67 | H174: 7109.67 | I174: 7202.83 | J174: 7257.67 | K174: 7148 | L174: 7000 | M174: 0.03879
A175: 165 | B175: GLAXO | C175: 1660.15 | D175: 1651.75 | E175: 1640.25 | F175: 1620.35 | G175: 1608.85 | H175: 1671.65 | I175: 1683.15 | J175: 1703.05 | K175: 1663.25 | L175: 1631.85 | M175: 0.44173
A176: 166 | B176: GLENMARK | C176: 359.35 | D176: 356.23 | E176: 347.77 | F176: 336.18 | G176: 327.72 | H176: 367.82 | I176: 376.28 | J176: 387.87 | K176: 364.7 | L176: 344.65 | M176: 92.06098
A177: 167 | B177: GODFRYPHLP | C177: 1146.3 | D177: 1165.63 | E177: 1106.22 | F177: 1066.13 | G177: 1006.72 | H177: 1205.72 | I177: 1265.13 | J177: 1305.22 | K177: 1225.05 | L177: 1125.55 | M177: 1.82018
A178: 168 | B178: GODREJAGRO | C178: 468.85 | D178: 470.15 | E178: 465.40 | F178: 461.95 | G178: 457.20 | H178: 473.60 | I178: 478.35 | J178: 481.80 | K178: 474.9 | L178: 466.7 | M178: 0.3399
A179: 169 | B179: GODREJCP | C179: 713.25 | D179: 708.63 | E179: 696.42 | F179: 679.58 | G179: 667.37 | H179: 725.47 | I179: 737.68 | J179: 754.52 | K179: 720.85 | L179: 691.8 | M179: 6.98332
A180: 170 | B180: GODREJIND | C180: 445.5 | D180: 447.40 | E180: 440.10 | F180: 434.70 | G180: 427.40 | H180: 452.80 | I180: 460.10 | J180: 465.50 | K180: 454.7 | L180: 442 | M180: 0.85017
A181: 171 | B181: GODREJPROP | C181: 861 | D181: 866.63 | E181: 845.37 | F181: 829.73 | G181: 808.47 | H181: 882.27 | I181: 903.53 | J181: 919.17 | K181: 887.9 | L181: 851 | M181: 4.74504
A182: 172 | B182: GRANULES | C182: 129.15 | D182: 130.58 | E182: 127.27 | F182: 125.38 | G182: 122.07 | H182: 132.47 | I182: 135.78 | J182: 137.67 | K182: 133.9 | L182: 128.7 | M182: 21.7162
A183: 173 | B183: GRAPHITE | C183: 303.65 | D183: 303.92 | E183: 298.88 | F183: 294.12 | G183: 289.08 | H183: 308.68 | I183: 313.72 | J183: 318.48 | K183: 308.95 | L183: 299.15 | M183: 10.01838
A184: 174 | B184: GRASIM | C184: 789.65 | D184: 790.55 | E184: 780.10 | F184: 770.55 | G184: 760.10 | H184: 800.10 | I184: 810.55 | J184: 820.10 | K184: 801 | L184: 781 | M184: 31.57623
A185: 175 | B185: GESHIP | C185: 299.6 | D185: 298.58 | E185: 295.67 | F185: 291.73 | G185: 288.82 | H185: 302.52 | I185: 305.43 | J185: 309.37 | K185: 301.5 | L185: 294.65 | M185: 5.54801
A186: 176 | B186: GREAVESCOT | C186: 137.7 | D186: 138.05 | E186: 136.50 | F186: 135.30 | G186: 133.75 | H186: 139.25 | I186: 140.80 | J186: 142.00 | K186: 139.6 | L186: 136.85 | M186: 0.96133
A187: 177 | B187: GRINDWELL | C187: 597.5 | D187: 598.08 | E187: 594.57 | F187: 591.63 | G187: 588.12 | H187: 601.02 | I187: 604.53 | J187: 607.47 | K187: 601.6 | L187: 595.15 | M187: 0.04343
A188: 178 | B188: GUJALKALI | C188: 406.25 | D188: 407.00 | E188: 402.25 | F188: 398.25 | G188: 393.50 | H188: 411.00 | I188: 415.75 | J188: 419.75 | K188: 411.75 | L188: 403 | M188: 0.29549
A189: 179 | B189: GUJGASLTD | C189: 193.75 | D189: 193.68 | E189: 192.57 | F189: 191.38 | G189: 190.27 | H189: 194.87 | I189: 195.98 | J189: 197.17 | K189: 194.8 | L189: 192.5 | M189: 1.70211
A190: 180 | B190: GMDCLTD | C190: 58.95 | D190: 58.93 | E190: 58.32 | F190: 57.68 | G190: 57.07 | H190: 59.57 | I190: 60.18 | J190: 60.82 | K190: 59.55 | L190: 58.3 | M190: 1.10368
A191: 181 | B191: GNFC | C191: 193.7 | D191: 194.50 | E191: 192.10 | F191: 190.50 | G191: 188.10 | H191: 196.10 | I191: 198.50 | J191: 200.10 | K191: 196.9 | L191: 192.9 | M191: 1.76258
A192: 182 | B192: GPPL | C192: 85.35 | D192: 85.37 | E192: 83.98 | F192: 82.62 | G192: 81.23 | H192: 86.73 | I192: 88.12 | J192: 89.48 | K192: 86.75 | L192: 84 | M192: 27.21859
A193: 183 | B193: GSFC | C193: 70.95 | D193: 71.10 | E193: 70.15 | F193: 69.35 | G193: 68.40 | H193: 71.90 | I193: 72.85 | J193: 73.65 | K193: 72.05 | L193: 70.3 | M193: 3.20401
A194: 184 | B194: GSPL | C194: 219.9 | D194: 219.20 | E194: 217.95 | F194: 216.00 | G194: 214.75 | H194: 221.15 | I194: 222.40 | J194: 224.35 | K194: 220.45 | L194: 217.25 | M194: 3.14366
A195: 185 | B195: GULFOILLUB | C195: 874 | D195: 871.47 | E195: 860.68 | F195: 847.37 | G195: 836.58 | H195: 884.78 | I195: 895.57 | J195: 908.88 | K195: 882.25 | L195: 858.15 | M195: 0.04827
A196: 186 | B196: HEG | C196: 1010.15 | D196: 1014.75 | E196: 999.50 | F196: 988.85 | G196: 973.60 | H196: 1025.40 | I196: 1040.65 | J196: 1051.30 | K196: 1030 | L196: 1004.1 | M196: 2.60631
A197: 187 | B197: HCLTECH | C197: 1132.8 | D197: 1132.00 | E197: 1126.30 | F197: 1119.80 | G197: 1114.10 | H197: 1138.50 | I197: 1144.20 | J197: 1150.70 | K197: 1137.7 | L197: 1125.5 | M197: 11.12518
A198: 188 | B198: HDFCAMC | C198: 3626.05 | D198: 3618.13 | E198: 3582.92 | F198: 3539.78 | G198: 3504.57 | H198: 3661.27 | I198: 3696.48 | J198: 3739.62 | K198: 3653.35 | L198: 3575 | M198: 6.07075
A199: 189 | B199: HDFCBANK | C199: 1273.35 | D199: 1274.43 | E199: 1265.92 | F199: 1258.48 | G199: 1249.97 | H199: 1281.87 | I199: 1290.38 | J199: 1297.82 | K199: 1282.95 | L199: 1267 | M199: 55.27129
A200: 190 | B200: HDFCLIFE | C200: 574.7 | D200: 574.23 | E200: 568.97 | F200: 563.23 | G200: 557.97 | H200: 579.97 | I200: 585.23 | J200: 590.97 | K200: 579.5 | L200: 568.5 | M200: 38.22519
A201: 191 | B201: HATHWAY | C201: 19.9 | D201: 20.08 | E201: 19.42 | F201: 18.93 | G201: 18.27 | H201: 20.57 | I201: 21.23 | J201: 21.72 | K201: 20.75 | L201: 19.6 | M201: 1.7319
A202: 192 | B202: HATSUN | C202: 581.95 | D202: 586.60 | E202: 575.35 | F202: 568.75 | G202: 557.50 | H202: 593.20 | I202: 604.45 | J202: 611.05 | K202: 597.85 | L202: 580 | M202: 0.05694
A203: 193 | B203: HAVELLS | C203: 671.65 | D203: 669.23 | E203: 662.87 | F203: 654.08 | G203: 647.72 | H203: 678.02 | I203: 684.38 | J203: 693.17 | K203: 675.6 | L203: 660.45 | M203: 11.11197
A204: 194 | B204: HEIDELBERG | C204: 188.45 | D204: 190.55 | E204: 186.10 | F204: 183.75 | G204: 179.30 | H204: 192.90 | I204: 197.35 | J204: 199.70 | K204: 195 | L204: 188.2 | M204: 3.4758
A205: 195 | B205: HERITGFOOD | C205: 317.6 | D205: 318.45 | E205: 315.35 | F205: 313.10 | G205: 310.00 | H205: 320.70 | I205: 323.80 | J205: 326.05 | K205: 321.55 | L205: 316.2 | M205: 0.87376
A206: 196 | B206: HEROMOTOCO | C206: 2470.5 | D206: 2463.93 | E206: 2442.87 | F206: 2415.23 | G206: 2394.17 | H206: 2491.57 | I206: 2512.63 | J206: 2540.27 | K206: 2485 | L206: 2436.3 | M206: 9.18063
... 320 more rows

Sheet Bulk Deals
E6: Back To Main Page
A7: Subject : | B7: BULK DEAL | D7: =Main!B10 -> 2019-11-21
A9: Date | B9: Scrip code | C9: Scrip Name | D9: Client Name | E9: Buy / Sell | F9: Quantity Traded | G9: Trade Price / Wt.Avg.trade price | H9: Exchange
A10: 2019-11-20 | B10: 538812 | C10: AANCHALISP | D10: DURGA ALLOY AND STEEL PRIVATE LIMITED | E10: SELL | F10: 166,000 | G10: 16.40 | H10: BSE
A11: 2019-11-20 | B11: 538812 | C11: AANCHALISP | D11: PREMILABEN MAHESHKUMAR CHAUHAN | E11: BUY | F11: 125,005 | G11: 16.06 | H11: BSE
A12: 2019-11-20 | B12: 538812 | C12: AANCHALISP | D12: PREMILABEN MAHESHKUMAR CHAUHAN | E12: SELL | F12: 125,005 | G12: 16.11 | H12: BSE
A13: 2019-11-20 | B13: 538812 | C13: AANCHALISP | D13: NEETA SETHIA | E13: BUY | F13: 213,000 | G13: 16.39 | H13: BSE
A14: 2019-11-20 | B14: 538812 | C14: AANCHALISP | D14: NIMESHKUMAR BALDEVBHAI PARMAR | E14: BUY | F14: 125,005 | G14: 16.04 | H14: BSE
A15: 2019-11-20 | B15: 538812 | C15: AANCHALISP | D15: NIMESHKUMAR BALDEVBHAI PARMAR | E15: SELL | F15: 125,005 | G15: 15.98 | H15: BSE
A16: 2019-11-20 | B16: 540205 | C16: AVL | D16: YASHOVARDHAN SINHA | E16: BUY | F16: 96,000 | G16: 23.94 | H16: BSE
A17: 2019-11-20 | B17: 542727 | C17: CPML | D17: VIJETA BROKING INDIA PRIVATE LIMITED | E17: BUY | F17: 4,000 | G17: 25.25 | H17: BSE
A18: 2019-11-20 | B18: 542727 | C18: CPML | D18: VIJETA BROKING INDIA PRIVATE LIMITED | E18: SELL | F18: 56,000 | G18: 21.24 | H18: BSE
A19: 2019-11-20 | B19: 538432 | C19: DIVINUS | D19: PRADIP HANUMANT KADAM | E19: SELL | F19: 22,301 | G19: 27.00 | H19: BSE
A20: 2019-11-20 | B20: 538432 | C20: DIVINUS | D20: MANOJKUMAR GUNVANTRAI SOMANI | E20: BUY | F20: 22,300 | G20: 27 | H20: BSE
A21: 2019-11-20 | B21: 508918 | C21: GREYCELLS | D21: LTS INVESTMENT FUND LTD | E21: SELL | F21: 180,000 | G21: 27.00 | H21: BSE
A22: 2019-11-20 | B22: 508918 | C22: GREYCELLS | D22: KRISMA INVESTMENTS PRIVATE LIMITED | E22: BUY | F22: 181,000 | G22: 27.00 | H22: BSE
A23: 2019-11-20 | B23: 540938 | C23: GUJHYSPIN | D23: KEDAR DILIP KOTHARI | E23: BUY | F23: 160,000 | G23: 4.93 | H23: BSE
A24: 2019-11-20 | B24: 540565 | C24: INDIGRID | D24: SEB ASIENFOND EXKL JAPAN | E24: BUY | F24: 2,838,969 | G24: 96.00 | H24: BSE
A25: 2019-11-20 | B25: 540565 | C25: INDIGRID | D25: D B FUND MAURITIUS LIMITED | E25: SELL | F25: 2,838,969 | G25: 96 | H25: BSE
A26: 2019-11-20 | B26: 509709 | C26: INTLCONV | D26: I G E ( INDIA ) PRIVATE LIMITED | E26: BUY | F26: 385,000 | G26: 26.92 | H26: BSE
A27: 2019-11-20 | B27: 540809 | C27: MRCEXIM | D27: PATEL ANJANI RAMESH | E27: SELL | F27: 88,000 | G27: 5.83 | H27: BSE
A28: 2019-11-20 | B28: 540809 | C28: MRCEXIM | D28: ESPS FINSERVE PRIVATE LIMITED | E28: BUY | F28: 88,000 | G28: 5.83 | H28: BSE
A29: 2019-11-20 | B29: 540198 | C29: OSIAJEE | D29: SONU SHARMA | E29: SELL | F29: 30,000 | G29: 33.5 | H29: BSE
A30: 2019-11-20 | B30: 532748 | C30: PFOCUS | D30: AUGUSTA INVESTMENTS I PTE LTD | E30: BUY | F30: 29,241,817 | G30: 48.5 | H30: BSE
A31: 2019-11-20 | B31: 532748 | C31: PFOCUS | D31: STANDARD CHARTERED PRIVATE EQUITY (MAURITIUS) LIMITED | E31: SELL | F31: 29,241,817 | G31: 48.5 | H31: BSE
A32: 2019-11-20 | B32: 512217 | C32: PRISMMEDI | D32: YASH NARENDRA CHITALIA | E32: SELL | F32: 33,289 | G32: 25.42 | H32: BSE
A33: 2019-11-20 | B33: 512217 | C33: PRISMMEDI | D33: BHAVESH H SHAH | E33: BUY | F33: 31,553 | G33: 25.16 | H33: BSE
A34: 2019-11-20 | B34: 512217 | C34: PRISMMEDI | D34: BHAVESH H SHAH | E34: SELL | F34: 31,640 | G34: 25.05 | H34: BSE
A35: 2019-11-20 | B35: 512217 | C35: PRISMMEDI | D35: RACHNA JAISWAL | E35: BUY | F35: 50,000 | G35: 25.12 | H35: BSE
A36: 2019-11-20 | B36: 538452 | C36: QUASAR | D36: KAILASH CHAND MITTAL | E36: SELL | F36: 30,000 | G36: 9.5 | H36: BSE
A37: 2019-11-20 | B37: 539814 | C37: RADHEY | D37: AMAR D SHAH | E37: SELL | F37: 23,261 | G37: 20 | H37: BSE
A38: 2019-11-20 | B38: 526544 | C38: SCANPGEOM | D38: UPSILON TRADING LLP | E38: BUY | F38: 248,095 | G38: 24.1 | H38: BSE
A39: 2019-11-20 | B39: 539026 | C39: SSPNFIN | D39: ASTOR JOHN DMELLO | E39: BUY | F39: 12,000 | G39: 85.8 | H39: BSE
A40: 2019-11-20 | B40: 532070 | C40: SUPRBPA | D40: MUKESHKUMAR MAVJIBHAI PARMAR | E40: SELL | F40: 30,000 | G40: 9.9 | H40: BSE
A41: 2019-11-20 | B41: 532070 | C41: SUPRBPA | D41: NAVIN SHANKARLAL TANK | E41: BUY | F41: 30,000 | G41: 9.9 | H41: BSE
A42: 2019-11-20 | B42: 534755 | C42: TRIOMERC | D42: MASOOD HASAN DARIWALA | E42: BUY | F42: 145,000 | G42: 23 | H42: BSE
A43: 2019-11-20 | B43: 539402 | C43: VAL | D43: RAMESH SHIRALKAR | E43: BUY | F43: 304,000 | G43: 14.75 | H43: BSE
A44: 2019-11-20 | B44: 539402 | C44: VAL | D44: SHAH REKHABEN MUKESHKUMAR | E44: SELL | F44: 56,000 | G44: 14.75 | H44: BSE
A45: 2019-11-20 | B45: 539402 | C45: VAL | D45: SHAH AMAR MUKESHKUMAR HUF | E45: SELL | F45: 80,000 | G45: 14.75 | H45: BSE
A46: 2019-11-20 | B46: 539402 | C46: VAL | D46: HIRAL AMARKUMAR SHAH | E46: SELL | F46: 164,000 | G46: 14.75 | H46: BSE
A47: 2019-11-20 | B47: 542046 | C47: VIVIDM | D47: VISHNUPRASAD SOMABHAI PATEL | E47: SELL | F47: 48,000 | G47: 12.5 | H47: BSE
A48: 2019-11-20 | B48: 542046 | C48: VIVIDM | D48: DARSHAN ORNA LIMITED | E48: BUY | F48: 40,000 | G48: 12.5 | H48: BSE
A49: 2019-11-20 | B49: DISHTV | C49: Dish TV India Limited | D49: TOWER RESEARCH CAPITAL MARKETS INDIA PRIVATE LIMITED | E49: BUY | F49: 25,572,621 | G49: 16.6 | H49: BSE
A50: 2019-11-20 | B50: DREDGECORP | C50: Dredging Corporation of I | D50: N.K.SECURITIES | E50: BUY | F50: 166,822 | G50: 369.92 | H50: NSE
A51: 2019-11-20 | B51: IBULHSGFIN | C51: Indiabulls Hsg Fin Ltd | D51: TOWER RESEARCH CAPITAL MARKETS INDIA PRIVATE LIMITED | E51: BUY | F51: 2,223,898 | G51: 211.44 | H51: NSE
A52: 2019-11-20 | B52: IDEA | C52: Vodafone Idea Limited | D52: ADROIT FINANCIAL SERVICES PVT LTD | E52: BUY | F52: 203,660,270 | G52: 7.28 | H52: NSE
A53: 2019-11-20 | B53: INGERRAND | C53: Ingersoll Rand Ltd. | D53: INGERSOLL - RAND INDUSTRIAL US INC | E53: BUY | F53: 23,360,000 | G53: 621.3 | H53: NSE
A54: 2019-11-20 | B54: NCC | C54: NCC Limited | D54: TOWER RESEARCH CAPITAL MARKETS INDIA PRIVATE LIMITED | E54: BUY | F54: 4,163,239 | G54: 59.34 | H54: NSE
A55: 2019-11-20 | B55: SANCO | C55: Sanco Industries Ltd. | D55: RESOURCE OPZIONE CONSULTANCY PRIVATE LIMITED | E55: BUY | F55: 212,589 | G55: 15.96 | H55: NSE
A56: 2019-11-20 | B56: SEPOWER | C56: S.E. Power Limited | D56: FORESIGHT BUILDCON PRIVATE LIMITED | E56: BUY | F56: 511,848 | G56: 2.96 | H56: NSE
A57: 2019-11-20 | B57: TCIFINANCE | C57: TCI Finance Limited | D57: BADJATE PRITI ANUJ | E57: BUY | F57: 99,017 | G57: 8.1 | H57: NSE
A58: 2019-11-20 | B58: YESBANK | C58: Yes Bank Limited | D58: TOWER RESEARCH CAPITAL MARKETS INDIA PRIVATE LIMITED | E58: BUY | F58: 21,119,063 | G58: 64.47 | H58: NSE
A59: 2019-11-20 | B59: DISHTV | C59: Dish TV India Limited | D59: TOWER RESEARCH CAPITAL MARKETS INDIA PRIVATE LIMITED | E59: SELL | F59: 25,572,621 | G59: 16.64 | H59: NSE
A60: 2019-11-20 | B60: DREDGECORP | C60: Dredging Corporation of I | D60: N.K.SECURITIES | E60: SELL | F60: 166,942 | G60: 370.15 | H60: NSE
A61: 2019-11-20 | B61: GRPLTD | C61: GRP Limited | D61: CHOLERA CHETAN GOPALDAS | E61: SELL | F61: 7,079 | G61: 850 | H61: NSE
A62: 2019-11-20 | B62: IBULHSGFIN | C62: Indiabulls Hsg Fin Ltd | D62: TOWER RESEARCH CAPITAL MARKETS INDIA PRIVATE LIMITED | E62: SELL | F62: 2,205,177 | G62: 211.23 | H62: NSE
A63: 2019-11-20 | B63: IDEA | C63: Vodafone Idea Limited | D63: ADROIT FINANCIAL SERVICES PVT LTD | E63: SELL | F63: 191,673,679 | G63: 7.32 | H63: NSE
A64: 2019-11-20 | B64: INGERRAND | C64: Ingersoll Rand Ltd. | D64: INGERSOLL RAND COMPANY | E64: SELL | F64: 23360000 | G64: 621.3 | H64: NSE
A65: 2019-11-20 | B65: NCC | C65: NCC Limited | D65: TOWER RESEARCH CAPITAL MARKETS INDIA PRIVATE LIMITED | E65: SELL | F65: 4340771 | G65: 59.56 | H65: NSE
A66: 2019-11-20 | B66: RCOM | C66: Reliance Comm. Ltd. | D66: AXIS TRUSTEE SERVICES LIMITED | E66: SELL | F66: 41017329 | G66: 0.57 | H66: NSE
A67: 2019-11-20 | B67: SANCO | C67: Sanco Industries Ltd. | D67: EURO PLUS CAPITAL LIMITED | E67: SELL | F67: 127000 | G67: 15.95 | H67: NSE
A68: 2019-11-20 | B68: SEPOWER | C68: S.E. Power Limited | D68: AUCTOR INVESTMENTS LIMITED | E68: SELL | F68: 709004 | G68: 2.95 | H68: NSE
A69: 2019-11-20 | B69: TCIFINANCE | C69: TCI Finance Limited | D69: ANUJ SHANTILAL BADJATE | E69: SELL | F69: 99017 | G69: 8.1 | H69: NSE
A70: 2019-11-20 | B70: YESBANK | C70: Yes Bank Limited | D70: TOWER RESEARCH CAPITAL MARKETS INDIA PRIVATE LIMITED | E70: SELL | F70: 21798207 | G70: 64.54 | H70: NSE

Sheet Call Tracker (Equity & F&O)
M5: Back To Main Page
A6: Retail Research Technical Calls & Fundamental Performance Report for the month of November-2019
M7: =Main!B10 -> 2019-11-21
B8: Positional Call
A9: Sr.no | B9: Date | D9: Company | E9: Rec | F9: Rec Price | G9: Stop Loss*** | H9: Call Closed At | I9: Target | J9: Remark | K9: Profit / Loss per Share | L9: Gain / Loss % | M9: Status | N9: Closed Date | O9: NSE Closed Price
A10: 1 | B10: 2019-09-26 | D10: HDFC | E10: Buy | F10: 2070 | G10: 1940 | H10: 2165 | I10: 2250-2300 | J10: Profit of Rs.95/- | K10: =H10-F10 -> 95 | L10: =K10/F10 -> 4.59% | M10: Successful | N10: 2019-11-01 | R10: H
A11: 2 | B11: 2019-10-01 | D11: UPL | E11: Buy{} | F11: 595 | G11: 564 | H11: 599.5 | I11: 650-660 | J11: Profit of Rs.4.50/- | K11: 4.5 | L11: 0.76% | M11: Neutral | N11: 2019-11-07 | R11: R
A12: 3 | B12: 2019-10-07 | D12: PIDILITIND | E12: Buy{} | F12: 1367.5 | G12: 1297 | H12: 1413.5 | I12: 1500-1520 | J12: Part Profit of Rs.46/- | K12: =H12-F12 -> 46 | L12: =K12/F12 -> 3.36% | M12: Successful | N12: 2019-10-31 | O12: =VLOOKUP(D12,Sheet2!A51:M1690,6,0) -> 1328.1 | R12: R
A13: 4 | B13: 2019-10-22 | D13: HEIDELBERG | E13: Buy | F13: 188.5 | G13: 178 | H13: 199 | I13: 205-210 | J13: Profit of Rs.10.50/- | K13: 10.5 | L13: 5.57% | M13: Successful | N13: 2019-11-05 | R13: H
A14: 5 | B14: 2019-10-27 | D14: AMBUJACEM | E14: Buy{} | F14: 197 | G14: 185.4 | H14: 203.5 | I14: 216-220 | J14: Part Profit of Rs.6.5/- | K14: =H14-F14 -> 6.5 | L14: =K14/F14 -> 3.30% | M14: Successful | N14: 2019-10-30 | O14: =VLOOKUP(D14,Sheet2!A60:M1699,6,0) -> 201.6 | R14: R
A15: 6 | B15: 2019-11-04 | D15: UBL | E15: Buy{} | F15: 1240 | G15: 1178 | H15: 1292.5 | I15: 1340-1360 | J15: Profit of Rs.52.5/- | K15: =H15-F15 -> 52.5 | L15: =K15/F15 -> 4.23% | M15: Successful | N15: 2019-11-08 | R15: H
A16: 7 | B16: 2019-11-05 | D16: TATAMOTORS | E16: Sell | F16: 173 | G16: 183.3 | H16: 166.5 | I16: 158-155 | J16: Part Profit of Rs.6.5/- | K16: =F16-H16 -> 6.5 | L16: 3.76% | M16: Successful | N16: 2019-11-14 | O16: =VLOOKUP(D16,Sheet2!A62:M1701,6,0) -> 167.4 | R16: R
A17: 8 | B17: 2019-11-06 | D17: BANDHANBNK | E17: Buy | F17: 572.5 | G17: 538 | H17: 547 | I17: 630-650 | J17: Loss of Rs.25.5/- | K17: -25.5 | L17: =K17/F17 -> -4.45% | M17: Unsuccessful | N17: 2019-11-11 | R17: H
A18: 9 | B18: 2019-11-07 | D18: PRESTIGE | E18: Buy | F18: 312 | G18: 288 | H18: 288.5 | I18: 340-360 | J18: Loss of Rs.23.5/- | K18: =H18-F18 -> -23.5 | L18: =K18/F18 -> -7.53% | M18: Unsuccessful | N18: 2019-11-15 | R18: H
A19: 10 | B19: 2019-11-07 | D19: JINDALSTEL | E19: Sell | F19: 138 | G19: 148.3 | H19: 143 | I19: 120-117 | J19: Loss of Rs.5/- | K19: =F19-H19 -> -5 | L19: =K19/F19 -> -3.62% | M19: Unsuccessful | N19: 2019-11-07 | R19: R
A20: 11 | B20: 2019-11-08 | D20: CIPLA | E20: Sell{} | F20: 465 | G20: 491.3 | H20: 440 | I20: 425-418 | J20: Profit of Rs.25/- | K20: =F20-H20 -> 25 | L20: 5.38% | M20: Successful | N20: 2019-11-15 | R20: R
A21: 12 | B21: 2019-11-11 | D21: TVSMOTOR | E21: Buy | F21: 441 | G21: 417 | H21: 455.5 | I21: 480-490 | J21: Part Profit of Rs.14.5/- | K21: =H21-F21 -> 14.5 | L21: 3.29% | M21: Successful | N21: 2019-11-13 | O21: =VLOOKUP(D21,Sheet2!A67:M1706,6,0) -> 448.05 | R21: H
A22: 13 | B22: 2019-11-11 | D22: POWERGRID | E22: Buy | F22: 191-193 | G22: 183 | I22: 208-212 | J22: Open | O22: =VLOOKUP(D22,Sheet2!A68:M1707,6,0) -> 196.1 | R22: R
A23: 14 | B23: 2019-11-13 | D23: DLF | E23: Sell | F23: 210 | G23: 222.2 | H23: 203.5 | I23: 189-185 | J23: Part Profit of Rs.6.5/- | K23: =F23-H23 -> 6.5 | L23: =K23/F23 -> 3.10% | M23: Successful | N23: 2019-11-13 | O23: =VLOOKUP(D23,Sheet2!A69:M1708,6,0) -> 212.1 | R23: R
A24: 15 | B24: 2019-11-14 | D24: TORNTPHARM | E24: Buy | F24: 1755-1775 | G24: 1640 | I24: 1950-2000 | J24: Open | O24: =VLOOKUP(D24,Sheet2!A70:M1709,6,0) -> 1742.2 | R24: H
A25: 16 | B25: 2019-11-14 | D25: HEIDELBERG | E25: Buy | F25: 186.5 | G25: 174 | H25: 194.5 | I25: 205-210 | J25: Part Profit of Rs.8/- | K25: =H25-F25 -> 8 | L25: =K25/F25 -> 4.29% | M25: Successful | N25: 2019-11-20 | O25: =VLOOKUP(D25,Sheet2!A71:M1710,6,0) -> 188.45 | R25: H
A26: 17 | B26: 2019-11-14 | D26: JMFINANCIL | E26: Sell | F26: 89-90 | G26: 98.8 | I26: 74-71 | J26: Open | O26: =VLOOKUP(D26,Sheet2!A72:M1711,6,0) -> 93.25 | R26: R
A27: 18 | B27: 2019-11-18 | D27: CUB | E27: Buy | F27: 210-212 | G27: 198.7 | I27: 230-235 | J27: Open | O27: =VLOOKUP(D27,Sheet2!A73:M1712,6,0) -> 214.65 | R27: R
A28: 19 | B28: 2019-11-18 | D28: BAJAJ-AUTO | E28: Sell | F28: 3180-3200 | G28: 3356.7 | I28: 2900-2850 | J28: Open | O28: =VLOOKUP(D28,Sheet2!A74:M1713,6,0) -> 3162.4 | R28: R
A29: 20 | B29: 2019-11-18 | D29: THERMAX | E29: Buy | F29: 1025-1035 | G29: 977 | I29: 1120-1140 | J29: Open | O29: =VLOOKUP(D29,Sheet2!A75:M1714,6,0) -> 1026.5 | R29: H
A30: 21 | B30: 2019-11-20 | D30: BRITANNIA | E30: Buy | F30: 3075-3100 | G30: 2930 | I30: 3380-3420 | J30: Open | O30: =VLOOKUP(D30,Sheet2!A76:M1715,6,0) -> 3116.3 | R30: H
A36: CLBS = Closing Basis ***
A37: Dividend adjusted <> | F37: Reinitiated $
A38: Part book {} | F38: Revised stoploss #
B40: Momentum Call
A41: Sr.no | B41: Date | D41: Company | E41: Rec | F41: Rec Price | G41: Stop Loss | H41: Call Closed At | I41: Target | J41: Remark | K41: Profit / Loss per Share/Lot | L41: Gain / Loss % | M41: Gain / Loss per Lot | N41: Lot | O41: Status | P41: Closed Date
A42: 1 | B42: 2019-10-29 | D42: INDUSINDBK | E42: Buy | F42: 1319 | G42: 1278 | H42: 1347.5 | I42: 1370-1390 | J42: Profit of Rs.28.5/- | K42: =H42-F42 -> 28.5 | L42: =K42/F42 -> 2.16% | O42: Successful | P42: 2019-11-01 | R42: H
A43: 2 | B43: 2019-10-30 | D43: POWERGRID | E43: Buy | F43: 199.5 | G43: 194.5 | H43: 194.5 | I43: 210 | J43: Loss of Rs.5/- | K43: -5 | L43: -2.51% | O43: Unsuccessful | P43: 2019-11-07 | R43: H
A44: 3 | B44: 2019-10-31 | D44: MFSL NOV FUT | E44: Buy | F44: 407 | G44: 396 | H44: 414 | I44: 425 | J44: Profit of Rs.7/- | K44: 7 | M44: =N44*K44 -> 8400 | N44: 1200 | O44: Successful | P44: 2019-11-04 | R44: N
A45: 4 | B45: 2019-10-31 | D45: HDFCBANK NOV FUT | E45: Buy | F45: 1239 | G45: 1215 | H45: 1251 | I45: 1280 | J45: Profit of Rs.12/- | K45: 12 | M45: =N45*K45 -> 6000 | N45: 500 | O45: Successful | P45: 2019-11-06 | R45: N
A46: 5 | B46: 2019-11-01 | D46: TORNTPOWER NOV FUT | E46: Sell | F46: 285 | G46: 289 | H46: 282 | I46: 276 | J46: Profit of Rs.3/- | K46: =F46-H46 -> 3 | M46: =N46*K46 -> 9000 | N46: 3000 | O46: Successful | P46: 2019-11-01 | R46: N
A47: 6 | B47: 2019-11-01 | D47: SBIN | E47: Sell | F47: 314 | G47: 322 | H47: 323 | I47: 300-395 | J47: Loss of Rs.9/- | K47: =F47-H47 -> -9 | L47: =K47/F47 -> -2.87% | O47: Unsuccessful | P47: 2019-11-07 | R47: R
A48: 7 | B48: 2019-11-04 | D48: AXISBANK NOV FUT | E48: Sell | F48: 749 | G48: 758.3 | H48: 742.5 | I48: 733 | J48: Profit of Rs.6.50/- | K48: =F48-H48 -> 6.5 | M48: =N48*K48 -> 7800 | N48: 1200 | O48: Successful | P48: 2019-11-04 | R48: R
A49: 8 | B49: 2019-11-04 | D49: COLPAL NOV FUT | E49: Buy | F49: 1527.5 | G49: 1510 | H49: 1539 | I49: 1560 | J49: Profit of Rs.11.50/- | K49: =H49-F49 -> 11.5 | M49: =N49*K49 -> 8050 | N49: 700 | O49: Successful | P49: 2019-11-04 | R49: N
A50: 9 | B50: 2019-11-04 | D50: LUPIN | E50: Buy | F50: 762.5 | G50: 747 | H50: 781 | I50: 790-800 | J50: Profit of Rs.18.50/- | K50: 18.5 | L50: =K50/F50 -> 2.43% | O50: Successful | P50: 2019-11-06 | R50: H
A51: 10 | B51: 2019-11-04 | D51: MARUTI | E51: Sell | F51: 7515 | G51: 7777.7 | H51: 7335 | I51: 7100-7000 | J51: Profit of Rs.180/- | K51: =F51-H51 -> 180 | L51: 2.40% | O51: Successful | P51: 2019-11-05 | R51: R
A52: 11 | B52: 2019-11-04 | D52: BANKBARODA | E52: Sell | F52: 101.5 | G52: 105 | H52: 99.6 | I52: 97-95 | J52: Profit of Rs.1.90/- | K52: =F52-H52 -> 1.9 | L52: 1.87% | O52: Successful | P52: 2019-11-06 | R52: H
A53: 12 | B53: 2019-11-04 | D53: COALINDIA | E53: Sell | F53: 211 | G53: 216.3 | H53: 207.25 | I53: 200-198 | J53: Profit of Rs.3.75/- | K53: =F53-H53 -> 3.75 | L53: =K53/F53 -> 1.78% | O53: Successful | P53: 2019-11-11 | R53: R
A54: 13 | B54: 2019-11-05 | D54: TCS | E54: Buy | F54: 2170 | G54: 2097 | H54: 2205 | I54: 2300-2330 | J54: Profit of Rs.35/- | K54: =H54-F54 -> 35 | L54: =K54/F54 -> 1.61% | O54: Successful | P54: 2019-11-05 | R54: R
A55: 14 | B55: 2019-11-05 | D55: COLPAL NOV FUT | E55: Buy | F55: 1527 | G55: 1509 | H55: 1540 | I55: 1560 | J55: Profit of Rs.13/- | K55: 13 | M55: =N55*K55 -> 9100 | N55: 700 | O55: Successful | P55: 2019-11-06 | R55: N
A56: 15 | B56: 2019-11-05 | D56: HDFCLIFE | E56: Buy | F56: 588.5 | G56: 569 | H56: 571.5 | I56: 620-630 | J56: Loss of Rs.17/- | K56: -17 | L56: =K56/F56 -> -2.89% | O56: Unsuccessful | P56: 2019-11-08 | R56: H
A57: 16 | B57: 2019-11-05 | D57: ICICIBANK NOV FUT | E57: Sell | F57: 470 | G57: 480.2 | H57: 480.2 | I57: 450 | J57: Loss of Rs.10.20/- | K57: =F57-H57 -> -10.2 | M57: =N57*K57 -> -14025 | N57: 1375 | O57: Unsuccessful | P57: 2019-11-06 | R57: R
A58: 17 | B58: 2019-11-06 | D58: HINDALCO | E58: Sell | F58: 202.35 | G58: 208.3 | H58: 199 | I58: 193-190 | J58: Profit of Rs.3.35/- | K58: =F58-H58 -> 3.35 | L58: =K58/F58 -> 1.66% | O58: Successful | P58: 2019-11-06 | R58: R
A59: 18 | B59: 2019-11-06 | D59: KOTAKBANK NOV FUT | E59: Buy | F59: 1568 | G59: 1544 | H59: 1588 | I59: 1600-1620 | J59: Profit of Rs.20/- | K59: =H59-F59 -> 20 | M59: =N59*K59 -> 8000 | N59: 400 | O59: Successful | P59: 2019-11-06 | R59: R
A60: 19 | B60: 2019-11-07 | D60: MGL NOV FUT | E60: Sell | F60: 979.5 | G60: 959 | H60: 960 | I60: 1020 | J60: Loss of Rs.19.50/- | K60: -19.5 | M60: =N60*K60 -> -11700 | N60: 600 | O60: Unsuccessful | P60: 2019-11-07 | R60: N
A61: 20 | B61: 2019-11-07 | D61: HINDALCO | E61: Sell | F61: 202.5 | G61: 208.3 | H61: 197.25 | I61: 193-190 | J61: Profit of Rs.5.25/- | K61: =F61-H61 -> 5.25 | L61: =K61/F61 -> 2.59% | O61: Successful | P61: 2019-11-13 | R61: R
A62: 21 | B62: 2019-11-07 | D62: AXISBANK NOV FUT | E62: Buy | F62: 739 | G62: 729 | H62: 729 | I62: 760 | J62: Loss of Rs.10/- | K62: =H62-F62 -> -10 | M62: =N62*K62 -> -12000 | N62: 1200 | O62: Unsuccessful | P62: 2019-11-08 | R62: N
A63: 22 | B63: 2019-11-08 | D63: HINDPETRO | E63: Buy | F63: 304.5 | G63: 296.3 | H63: 296.3 | I63: 317-320 | J63: Loss of Rs.8.2/- | K63: =H63-F63 -> -8.2 | L63: =K63/F63 -> -2.69% | O63: Unsuccessful | P63: 2019-11-08 | R63: R
A64: 23 | B64: 2019-11-08 | D64: COLPAL NOV FUT | E64: Buy | F64: 1578 | G64: 1560 | H64: 1591 | I64: 1600 | J64: Profit of Rs.13/- | K64: 13 | M64: =N64*K64 -> 9100 | N64: 700 | O64: Successful | P64: 2019-11-08 | R64: N
A65: 24 | B65: 2019-11-08 | D65: AXISBANK | E65: Buy | F65: 733 | G65: 715 | H65: 712.5 | I65: 760-765 | J65: Loss of Rs.20.50/- | K65: -20.5 | L65: =K65/F65 -> -2.80% | O65: Unsuccessful | P65: 2019-11-13 | R65: H
A66: 25 | B66: 2019-11-08 | D66: HINDUNILVR | E66: Buy | F66: 2085 | G66: 2035 | H66: 2025 | I66: 2160-2180 | J66: Loss of Rs.60/- | K66: -60 | L66: -2.88% | O66: Unsuccessful | P66: 2019-11-20 | R66: H
A67: 26 | B67: 2019-11-08 | D67: RELIANCE | E67: Sell | F67: 1447.5 | G67: 1505 | H67: 1490.5 | I67: 1380-1350 | J67: Loss of Rs.43/- | K67: =F67-H67 -> -43 | L67: =K67/F67 -> -2.97% | O67: Unsuccessful | P67: 2019-11-19 | R67: H
A68: 27 | B68: 2019-11-08 | D68: COLPAL NOV FUT | E68: Buy | F68: 1574 | G68: 1556 | H68: 1586.5 | I68: 1600-1620 | J68: Profit of Rs.12.50/- | K68: =H68-F68 -> 12.5 | M68: =N68*K68 -> 8750 | N68: 700 | O68: Successful | P68: 2019-11-11 | R68: N
A69: 28 | B69: 2019-11-11 | D69: TATAGLOBAL | E69: Buy | F69: 294 | G69: 284 | H69: 301 | I69: 305-310 | J69: Profit of Rs.7/- | K69: 7 | L69: =K69/F69 -> 2.38% | O69: Successful | P69: 2019-11-15 | R69: H
A70: 29 | B70: 2019-11-11 | D70: TVSMOTOR NOV FUT | E70: Buy | F70: 443.5 | G70: 433 | H70: 448.5 | I70: 462 | J70: Profit of Rs.5/- | K70: =H70-F70 -> 5 | M70: =N70*K70 -> 5500 | N70: 1100 | O70: Successful | P70: 2019-11-13 | R70: R
A71: 30 | B71: 2019-11-11 | D71: APOLLOTYRE | E71: Buy | F71: 166.5 | G71: 162.2 | H71: 170 | I71: 173-176 | J71: Profit of Rs.3.50/- | K71: 3.5 | L71: =K71/F71 -> 2.10% | O71: Successful | P71: 2019-11-18 | R71: R
A72: 31 | B72: 2019-11-11 | D72: PIDILITIND NOV FUT | E72: Buy | F72: 1335 | G72: 1313 | H72: 1333 | I72: 1375 | J72: Loss of Rs.2/- | K72: =H72-F72 -> -2 | M72: =N72*K72 -> -1000 | N72: 500 | O72: Unsuccessful | P72: 2019-11-13 | R72: R
A73: 32 | B73: 2019-11-11 | D73: HAVELLS | E73: Buy | F73: 696.5 | G73: 677 | H73: 676.5 | I73: 725-735 | J73: Loss of Rs.20/- | K73: -20 | L73: =K73/F73 -> -2.87% | O73: Unsuccessful | P73: 2019-11-13 | R73: H
A74: 33 | B74: 2019-11-11 | D74: MFSL NOV FUT | E74: Buy | F74: 472 | G74: 461 | H74: 461.5 | I74: 493 | J74: Loss of Rs.10.50/- | K74: -10.5 | M74: =N74*K74 -> -12600 | N74: 1200 | O74: Unsuccessful | P74: 2019-11-13 | R74: N
A75: 34 | B75: 2019-11-11 | D75: TORNTPOWER NOV FUT | E75: Sell | F75: 298.5 | G75: 303 | H75: 303.5 | I75: 290 | J75: Loss of Rs.5/- | K75: =F75-H75 -> -5 | M75: =N75*K75 -> -15000 | N75: 3000 | O75: Unsuccessful | P75: 2019-11-13 | R75: N
A76: 35 | B76: 2019-11-13 | D76: CUMMINSIND NOV FUT | E76: Sell | F76: 569 | G76: 583.3 | H76: 559.5 | I76: 548 | J76: Profit of Rs.9.5/- | K76: =F76-H76 -> 9.5 | M76: =N76*K76 -> 6650 | N76: 700 | O76: Successful | P76: 2019-11-14 | R76: R
A77: 36 | B77: 2019-11-13 | D77: COLPAL NOV FUT | E77: Buy | F77: 1563 | G77: 1545 | H77: 1545 | I77: 1600 | J77: Loss of Rs.18/- | K77: =F77-H77 -> 18 | M77: =N77*K77 -> 12600 | N77: 700 | O77: Unsuccessful | P77: 2019-11-14 | R77: N
A78: 37 | B78: 2019-11-13 | D78: POWERGRID | E78: Buy | F78: 189.5 | G78: 184 | H78: 194.5 | I78: 200-205 | J78: Profit of Rs.5/- | K78: =H78-F78 -> 5 | L78: =K78/F78 -> 2.64% | O78: Successful | P78: 2019-11-19 | R78: H
A79: 38 | B79: 2019-11-13 | D79: SBIN | E79: Sell | F79: 313.5 | G79: 324.4 | H79: 306.5 | I79: 294-290 | J79: Profit of Rs.7/- | K79: =F79-H79 -> 7 | L79: =K79/F79 -> 2.23% | O79: Successful | P79: 2019-11-13 | R79: R
A80: 39 | B80: 2019-11-14 | D80: HINDPETRO | E80: Buy | F80: 291 | G80: 281.7 | H80: 297 | I80: 305-310 | J80: Profit of Rs.6/- | K80: =H80-F80 -> 6 | L80: 2.06% | O80: Successful | P80: 2019-11-20 | R80: R
A81: 40 | B81: 2019-11-14 | D81: SUNPHARMA | E81: Buy | F81: 413.5 | G81: 401 | H81: 423 | I81: 435-440 | J81: Profit of Rs.9.50/- | K81: =H81-F81 -> 9.5 | L81: =K81/F81 -> 2.30% | O81: Successful | P81: 2019-11-18 | R81: R
A82: 41 | B82: 2019-11-15 | D82: MCDOWELL-N NOV FUT | E82: Buy | F82: 623.5 | G82: 613 | H82: 613 | I82: 640 | J82: Loss of Rs.10.50/- | K82: =H82-F82 -> -10.5 | M82: =N82*K82 -> -13125 | N82: 1250 | O82: Unsuccessful | P82: 2019-11-19 | R82: R
A83: 42 | B83: 2019-11-15 | D83: GRASIM NOV FUT | E83: Buy | F83: 749.5 | G83: 733 | H83: 761 | I83: 775 | J83: Profit of Rs.11.5/- | K83: 11.5 | M83: =N83*K83 -> 8625 | N83: 750 | O83: Successful | P83: 2019-11-15 | R83: N
A84: 43 | B84: 2019-11-15 | D84: CESC NOV FUT | E84: Buy | F84: 754 | G84: 738 | H84: 764 | I84: 780 | J84: Profit of Rs.10/- | K84: =H84-F84 -> 10 | M84: =N84*K84 -> 8000 | N84: 800 | O84: Successful | P84: 2019-11-18 | R84: N
A85: 44 | B85: 2019-11-15 | D85: DLF | E85: Sell | F85: 215 | G85: 222.2 | H85: 211.25 | I85: 202-205 | J85: Profit of Rs.3.75/- | K85: =F85-H85 -> 3.75 | L85: =K85/F85 -> 1.74% | O85: Successful | P85: 2019-11-15 | R85: R
A86: 45 | B86: 2019-11-18 | D86: ICICIBANK | E86: Sell | F86: 497-500 | G86: 513 | I86: 480-470 | J86: Open | R86: H
A87: 46 | B87: 2019-11-18 | D87: TATAELXSI NOV FUT | E87: Buy | F87: 790 | G87: 766.6 | H87: 804.5 | I87: 825-830 | J87: Profit of Rs.14.50/- | K87: =H87-F87 -> 14.5 | M87: =N87*K87 -> 8700 | N87: 600 | O87: Successful | P87: 2019-11-19 | R87: R
A88: 47 | B88: 2019-11-18 | D88: DLF | E88: Sell | F88: 216.5 | G88: 223.2 | H88: 212.25 | I88: 205 | J88: Profit of Rs.4.25/- | K88: =F88-H88 -> 4.25 | L88: =K88/F88 -> 1.96% | O88: Successful | P88: 2019-11-19 | R88: R
A89: 48 | B89: 2019-11-19 | D89: GRASIM | E89: Sell | F89: 781-784 | G89: 803.3 | I89: 745-735 | J89: Open | R89: R
A90: 49 | B90: 2019-11-19 | D90: RADICO | E90: Buy | F90: 300 | G90: 291 | H90: 306.5 | I90: 315-318 | J90: Profit of Rs.5/- | K90: =H90-F90 -> 6.5 | L90: =K90/F90 -> 2.17% | O90: Successful | P90: 2019-11-19 | R90: R
A91: 50 | B91: 2019-11-19 | D91: AXISBANK NOV FUT | E91: Sell | F91: 737 | G91: 748.3 | H91: 748.3 | I91: 720 | J91: Loss of Rs.11.30/- | K91: =F91-H91 -> -11.3 | M91: =N91*K91 -> -13560 | N91: 1200 | O91: Unsuccessful | P91: 2019-11-19 | R91: R
A92: 51 | B92: 2019-11-19 | D92: MARICO | E92: Buy | F92: 355-357 | G92: 344.4 | I92: 375-380 | J92: Open | R92: R
A93: 52 | B93: 2019-11-19 | D93: DMART | E93: Buy | F93: 1850-1860 | G93: 1794 | I93: 1945-1965 | J93: Open | R93: R
A94: 53 | B94: 2019-11-19 | D94: AMBUJACEM NOV FUT | E94: Buy | F94: 200-201 | G94: 195 | I94: 210-212 | J94: Open | R94: N
A95: 54 | B95: 2019-11-19 | D95: CENTURYTEX NOV FUT | E95: Buy | F95: 439.5 | G95: 420 | H95: 449.5 | I95: 470 | J95: Profit of Rs.10/- | K95: =H95-F95 -> 10 | M95: =N95*K95 -> 6000 | N95: 600 | O95: Successful | P95: 2019-11-19 | R95: N
A96: 55 | B96: 2019-11-19 | D96: APOLLOHOSP NOV FUT | E96: Buy | F96: 1404.5 | G96: 1383.3 | H96: 1426 | I96: 1440-1445 | J96: Profit of Rs.21.50/- | K96: 21.5 | M96: =N96*K96 -> 10750 | N96: 500 | O96: Successful | P96: 2019-11-20 | R96: R
A97: 56 | B97: 2019-11-19 | D97: DABUR | E97: Buy | F97: 454 | G97: 439 | H97: 465.5 | I97: 475-480 | J97: Profit of Rs.11.5/- | K97: 11.5 | L97: =K97/F97 -> 2.53% | O97: Successful | P97: 2019-11-20 | R97: H
A98: 57 | B98: 2019-11-19 | D98: CESC NOV FUT | E98: Buy | F98: 747 | G98: 732 | H98: 757 | I98: 770 | J98: Profit of Rs.10/- | K98: =H98-F98 -> 10 | M98: =N98*K98 -> 8000 | N98: 800 | O98: Successful | P98: 2019-11-19 | R98: N
A99: 58 | B99: 2019-11-19 | D99: COLPAL NOV FUT | E99: Buy | F99: 1542 | G99: 1525 | H99: 1550 | I99: 1580 | J99: Profit of Rs.8/- | K99: 8 | M99: =N99*K99 -> 5600 | N99: 700 | O99: Successful | P99: 2019-11-20 | R99: N
A100: 59 | B100: 2019-11-20 | D100: DLF | E100: Sell | F100: 218.5 | G100: 222.2 | H100: 214 | I100: 210-207 | J100: Profit of Rs.4.5/- | K100: =F100-H100 -> 4.5 | L100: =K100/F100 -> 2.06% | O100: Successful | P100: 2019-11-20 | R100: R
A101: 60 | B101: 2019-11-20 | D101: HCLTECH | E101: Buy | F101: 1126-1132 | G101: 1095 | I101: 1170-1190 | J101: Open | R101: H
A102: 61 | B102: 2019-11-20 | D102: BATAINDIA NOV FUT | E102: Buy | F102: 1702-1704 | G102: 1678 | I102: 1740 | J102: Open | R102: N
A103: 62
A104: 63
A105: 64
A107: CLBS = Closing Basis ***
A108: Dividend adjusted <> | F108: Reinitiated $
F109: Revised stoploss #
A111: Master Trade High Risk
A112: Sr.no | B112: Date | D112: Company | E112: Rec | F112: Rec Price | G112: Stop Loss | H112: Call Closed At | I112: Target | J112: Remark | K112: Profit / Loss per share | L112: Gain / Loss per Lot | M112: Lot | N112: Status | O112: Closed Date
A113: 1 | B113: 2019-10-30 | D113: BAJAJ-AUTO NOV FUT | E113: Sell | F113: 3240 | G113: 3360 | H113: 3205 | I113: 3040 | J113: Profit of Rs.36.50/- | K113: =F113-H113 -> 35 | L113: =M113*36.5 -> 9125 | M113: 250 | N113: Successful | O113: 2019-11-04 | R113: H
D114: BAJAJ-AUTO 3100 PE NOV | E114: Sell | F114: 49.50 | H114: 48 | K114: =F114-H114 -> 1.5 | R114: H
A115: 2 | B115: 2019-10-30 | D115: LT NOV FUT | E115: Buy | F115: 1476.5 | G115: 1418 | H115: 1427.5 | I115: 1550 | J115: Loss of Rs.28/- | K115: =H115-F115 -> -49 | L115: =M115*-28 -> -10500 | M115: 375 | N115: Unsuccessful | O115: 2019-11-08 | R115: H
D116: LT 1520 CE NOV | E116: Sell | F116: 28 | H116: 7 | K116: =F116-H116 -> 21 | R116: H
A117: 3 | B117: 2019-10-30 | D117: HEROMOTOCO NOV FUT | E117: Buy | F117: 2715 | G117: 2640 | H117: 2747.5 | I117: 2900 | J117: Profit of Rs.27.50/- | K117: =H117-F117 -> 32.5 | L117: =M117*27.5 -> 5500 | M117: 200 | N117: Successful | O117: 2019-11-01 | R117: N
D118: HEROMOTOCO 2850 CE NOV | E118: Sell | F118: 55 | H118: 60 | K118: =F118-H118 -> -5 | R118: N
A119: 4 | B119: 2019-10-31 | D119: AXISBANK NOV FUT | E119: Buy | F119: 738 | G119: 718 | H119: 743.5 | I119: 760 | J119: Profit of Rs.5/- | K119: =H119-F119 -> 5.5 | L119: =M119*5 -> 6000 | M119: 1200 | N119: Successful | O119: 2019-11-01 | R119: H
D120: AXISBANK 760 CE NOV | E120: Sell | F120: 17.50 | H120: 18 | K120: =F120-H120 -> -0.5 | R120: H
A121: 5 | B121: 2019-11-01 | D121: NIFTY NOV FUT | E121: Sell | F121: 11907.5 | G121: 12060 | H121: 12060 | I121: 11700 | J121: Loss of Rs.82.50/- | K121: =F121-H121 -> -152.5 | L121: =M121*-82.5 -> -6187.5 | M121: 75 | N121: Unsuccessful | O121: 2019-11-08 | R121: H
D122: Nifty 11750 PE 14-NOV | E122: Sell | F122: 78 | H122: 8 | K122: =F122-H122 -> 70 | R122: H
A123: 6 | B123: 2019-11-05 | D123: HAVELLS NOV FUT | E123: Buy | F123: 687 | G123: 670 | H123: 696 | I123: 720-730 | J123: Profit of Rs.8.50/- | K123: =H123-F123 -> 9 | L123: =M123*8.5 -> 8500 | M123: 1000 | N123: Successful | O123: 2019-11-06 | R123: N
D124: HAVELLS 710 CE NOV | E124: Sell | F124: 13.50 | H124: 14 | K124: =F124-H124 -> -0.5 | R124: N
A125: 7 | B125: 2019-11-05 | D125: BATAINDIA NOV FUT | E125: Buy | F125: 1735 | G125: 1701 | H125: 1701 | I125: 1820 | J125: Loss of Rs.22.50/- | K125: =H125-F125 -> -34 | L125: =M125*-22.5 -> -12375 | M125: 550 | N125: Unsuccessful | O125: 2019-11-06 | R125: N
D126: BATAINDIA 1800 CE NOV | E126: Sell | F126: 35 | H126: 23.5 | K126: =F126-H126 -> 11.5 | R126: N
A127: 8 | B127: 2019-11-06 | D127: GRASIM NOV FUT | E127: Buy | F127: 775 | G127: 754 | H127: 788 | I127: 820 | J127: Profit of Rs.11/- | K127: =H127-F127 -> 13 | L127: =M127*11 -> 8250 | M127: 750 | N127: Successful | O127: 2019-11-08 | R127: N
D128: GRASIM 820 CE NOV | E128: Sell | F128: 15.5 | H128: 17.5 | K128: =F128-H128 -> -2 | R128: N
A129: 9 | B129: 2019-11-06 | D129: ULTRACEMCO NOV FUT | E129: Buy | F129: 4150 | G129: 4070 | H129: 4195 | I129: 4350 | J129: Profit of Rs.37.50/- | K129: =H129-F129 -> 45 | L129: =M129*37.5 -> 7500 | M129: 200 | N129: Successful | O129: 2019-11-07 | R129: N
D130: ULTRACEMCO 4300 CE NOV | E130: Sell | F130: 70 | H130: 77.5 | K130: =F130-H130 -> -7.5 | R130: N
A131: 10 | B131: 2019-11-07 | D131: BAJAJ-AUTO NOV FUT | E131: Sell | F131: 3240 | G131: 3355 | H131: 3212.5 | I131: 3100 | J131: Profit of Rs.32.50/- | K131: =F131-H131 -> 27.5 | L131: =M131*32.5 -> 8125 | M131: 250 | N131: Successful | O131: 2019-11-13 | R131: H
D132: BAJAJ-AUTO 3150 PE NOV | E132: Sell | F132: 47.50 | H132: 42.5 | K132: =F132-H132 -> 5 | R132: H
A133: 11 | B133: 2019-11-11 | D133: KOTAKBANK NOV FUT | E133: Buy | F133: 1600 | G133: 1560 | H133: 1617 | I133: 1660-1680 | J133: Profit of Rs.19/- | K133: =H133-F133 -> 17 | L133: =M133*19 -> 7600 | M133: 400 | N133: Successful | O133: 2019-11-15 | R133: N
D134: KOTAKBANK 1640 CE NOV | E134: Sell | F134: 22 | H134: 20 | K134: =F134-H134 -> 2 | R134: N
A135: 12 | B135: 2019-11-11 | D135: ULTRACEMCO NOV FUT | E135: Buy | F135: 4160 | G135: 4070 | H135: 4080 | I135: 4350 | J135: Loss of Rs.50/- | K135: =H135-F135 -> -80 | L135: =M135*-50 -> -10000 | M135: 200 | N135: Unsuccessful | O135: 2019-11-14 | R135: N
D136: ULTRACEMCO 4300 CE NOV | E136: Sell | F136: 62.50 | H136: 32.5 | K136: =F136-H136 -> 30 | R136: N
A137: 13 | B137: 2019-11-13 | D137: NIFTY NOV FUT | E137: Sell | F137: 11930 | G137: 12070 | H137: 11850 | I137: 11700 | J137: Profit of Rs.67.50/- | K137: =F137-H137 -> 80 | L137: =M137*67.5 -> 5062.5 | M137: 75 | N137: Successful | O137: 2019-11-14 | R137: H
D138: Nifty 11750 PE NOV | E138: Sell | F138: 80 | H138: 92.5 | K138: =F138-H138 -> -12.5 | R138: H
A139: 14 | B139: 2019-11-14 | D139: M&M NOV FUT | E139: Buy | F139: 577.5 | G139: 559 | H139: 589.25 | I139: 600 | J139: Profit of Rs.8.25/- | K139: =H139-F139 -> 11.75 | L139: =M139*8.25 -> 8250 | M139: 1000 | N139: Successful | O139: 2019-11-15 | R139: H
D140: M&M Nov 590 CE | E140: Sell | F140: 9.5 | H140: 13 | K140: =F140-H140 -> -3.5 | R140: H
A141: 15 | B141: 2019-11-14 | D141: ICICIBANK NOV FUT | E141: Sell | F141: 494.5 | G141: 507 | H141: 505.5 | I141: 480 | J141: Loss of Rs.8.5/- | K141: =F141-H141 -> -11 | L141: =M141*-8.5 -> -11687.5 | M141: 1375 | N141: Unsuccessful | O141: 2019-11-15 | R141: H
D142: ICICIBANK 480 PE NOV | E142: Sell | F142: 6.5 | H142: 4 | K142: =F142-H142 -> 2.5 | R142: H
A143: 16 | B143: 2019-11-15 | D143: HEROMOTOCO NOV FUT | E143: Buy | F143: 2592.5 | G143: 2518 | H143: 2515 | I143: 2700-2750 | J143: Loss of Rs.50.5/- | K143: =H143-F143 -> -77.5 | L143: =+-50.5*M143 -> -10100 | M143: 200 | N143: Unsuccessful | O143: 2019-11-18 | R143: H
D144: HEROMOTOCO Nov 2650 CE | E144: Sell | F144: 47.50 | H144: 20.5 | K144: =F144-H144 -> 27 | R144: H
A145: 17 | B145: 2019-11-18 | D145: HAVELLS NOV FUT | E145: Buy | F145: 665.5 | G145: 647 | H145: 675 | I145: 690 | J145: Profit of Rs.7.50/- | K145: =H145-F145 -> 9.5 | L145: =M145*7.5 -> 7500 | M145: 1000 | N145: Successful | O145: 2019-11-19 | R145: H
D146: HAVELLS NOV 680 CE | E146: Sell | F146: 9.50 | H146: 11.5 | K146: =F146-H146 -> -2 | R146: H
A147: 18 | B147: 2019-11-19 | D147: NIFTY NOV FUT | E147: Sell | F147: 11940-11950 | G147: 12070 | I147: 11750-11700 | J147: Open | R147: H
A148: 19 | B148: 2019-11-19 | D148: HAVELLS OCT FUT | E148: Buy | F148: 666-668 | G148: 649 | I148: 690 | J148: Open | R148: H
D149: HAVELLS 680 CE OCT | E149: Sell | F149: 8.50-9.50 | R149: H
A150: 20 | B150: 2019-11-20 | D150: ASIANPAINT NOV FUT | E150: Buy | F150: 1740-1742 | G150: 1708 | I150: 1780 | J150: Open | R150: H
D151: ASIANPAINT 1760 CE NOV | E151: Sell | F151: 16-17 | R151: H
A159: Master Trade Medium Risk
A160: Sr.no | B160: Date | D160: Company | E160: Rec | F160: Rec Price | G160: Stop Loss | H160: Call Closed At | I160: Target | J160: Remark | K160: Profit/ Loss per lot | L160: Gain / Loss per Lot | M160: Lot | N160: Status | O160: Closed Date
A161: 1 | B161: 2019-11-01 | D161: INFRATEL NOV 200 CE | E161: Buy | F161: 16.50 | H161: 21.5 | J161: Profit of Rs.2/- | K161: =H161-F161 -> 5 | L161: =2000*2 -> 4000 | M161: 2000 | N161: Successful | O161: 2019-11-04 | R161: H
D162: INFRATEL NOV 210 CE | E162: Sell | F162: 12.50 | H162: 15.5 | K162: =F162-H162 -> -3 | R162: H
A163: 2 | B163: 2019-11-01 | D163: MARUTI NOV 7500 PE | E163: Buy | F163: 200 | H163: 270 | J163: Profit of Rs.30/- | K163: =H163-F163 -> 70 | L163: =30*M163 -> 2250 | M163: 75 | N163: Successful | O163: 2019-11-05 | R163: N
D164: MARUTI NOV 7300 PE | E164: Sell | F164: 132.50 | H164: 172.5 | K164: =F164-H164 -> -40 | R164: N
A165: 3 | B165: 2019-11-01 | D165: BANKNIFTY 30000 PE 7-NOV | E165: Buy | F165: 250 | G165: 130 | H165: 130 | I165: 450-500 | J165: Loss of Rs.120/- | K165: =H165-F165 -> -120 | L165: =M165*K165 -> -2400 | M165: 20 | N165: Unsuccessful | O165: 2019-11-04 | R165: H
A166: 4 | B166: 2019-11-04 | D166: BANKNIFTY 14 NOV 30400 PE | E166: Buy | F166: 410 | H166: 0 | J166: Loss of Rs.110/- | K166: =H166-F166 -> -410 | L166: =M166*-110 -> -2200 | M166: 20 | N166: Unsuccessful | O166: 2019-11-15 | R166: H
D167: BANKNIFTY 14 NOV 30100 PE | E167: Sell | F167: 300 | H167: 0 | K167: =F167-H167 -> 300 | R167: H
A168: 5 | B168: 2019-11-04 | D168: MOTHERSUMI NOV 120 PE | E168: Buy | F168: 5.50-6.00 | J168: Open | R168: H
D169: MOTHERSUMI 115 PE | E169: Sell | F169: 4.00-4.20 | R169: H
A170: 6 | B170: 2019-11-13 | D170: ICICIBANK NOV 490 PE | E170: Buy | F170: 11.50 | H170: 14.5 | J170: Profit of Rs.2.10/- | K170: =H170-F170 -> 3 | L170: =2.1*M170 -> 2887.5 | M170: 1375 | N170: Successful | O170: 2019-11-14 | R170: H
D171: ICICIBANK NOV 475 PE | E171: Sell | F171: 6.50 | H171: 7.4 | K171: =F171-H171 -> -0.9 | R171: H
A172: 7 | B172: 2019-11-14 | D172: BANKBARODA NOV 95 CE | E172: Buy | F172: 1.9 | H172: 3 | J172: Profit of Rs.0.60/- | K172: =H172-F172 -> 1.1 | L172: =0.6*M172 -> 2700 | M172: 4500 | N172: Successful | O172: 2019-11-15 | R172: H
D173: BANKBARODA NOV 100 CE | E173: Sell | F173: 1 | H173: 1.5 | K173: =F173-H173 -> -0.5 | R173: H
A174: 8 | B174: 2019-11-14 | D174: HINDUNILVR NOV 2100 CE | E174: Buy | F174: 25-27 | J174: Open | R174: N
D175: HINDUNILVR NOV 2140 CE | E175: Sell | F175: 13-15 | R175: N
A176: 9 | B176: 2019-11-18 | D176: LT NOV 1380 PE | E176: Buy | F176: 18 | G176: 5 | H176: 24 | I176: 40 | J176: Profit of Rs.6/- | K176: =H176-F176 -> 6 | L176: =M176*K176 -> 2250 | M176: 375 | N176: Successful | O176: 2019-11-18 | R176: H
A177: 10 | B177: 2019-11-18 | D177: UPL NOV 530 PE | E177: Buy | F177: 11-13 | J177: Open | R177: N
D178: UPL 510 PE | E178: Sell | F178: 5.50-6.50 | R178: N
A179: 11 | B179: 2019-11-18 | D179: LT NOV 1380 PE | E179: Buy | F179: 25 | H179: 31.5 | J179: Profit of Rs.4/- | K179: =H179-F179 -> 6.5 | L179: =4*M179 -> 1500 | M179: 375 | N179: Successful | O179: 2019-11-18 | R179: H
D180: LT NOV 1340 PE | E180: Sell | F180: 11 | H180: 13.5 | K180: =F180-H180 -> -2.5 | R180: H
A181: 12 | B181: 2019-11-18 | D181: BHARTIARTL NOV 410 PE | E181: Buy | F181: 12-13 | J181: Open | R181: H
D182: BHARTIARTL NOV 395 PE | E182: Sell | F182: 7.50-8.50 | R182: H
A183: 13 | B183: 2019-11-18 | D183: AXISBANK NOV 730 CE | E183: Buy | F183: 11.25 | G183: 6 | H183: 13 | I183: 16-18 | J183: Profit of Rs.1.75/- | K183: =H183-F183 -> 1.75 | L183: =M183*K183 -> 2100 | M183: 1200 | N183: Successful | O183: 2019-11-18 | R183: N
A184: 14 | B184: 2019-11-19 | D184: KOTAKBANK NOV 1620 CE | E184: Buy | F184: 25 | G184: 14 | H184: 29.5 | I184: 35-40 | J184: Profit of Rs.4.50/- | K184: =H184-F184 -> 4.5 | L184: =M184*K184 -> 1800 | M184: 400 | N184: Successful | O184: 2019-11-19 | R184: N
A185: 15 | B185: 2019-11-19 | D185: LT NOV 1380 PE | E185: Buy | F185: 23-25 | J185: Open | R185: H
D186: LT NOV 1340 PE | E186: Sell | F186: 9-11 | R186: H
A187: 16 | B187: 2019-11-19 | D187: BHARATFORG NOV 440 PE | E187: Buy | F187: 8-8.50 | J187: Open | R187: N
D188: BHARATFORG NOV 430 PE | E188: Sell | F188: 5-5.50 | R188: N
A189: 17 | B189: 2019-11-19 | D189: M&M NOV 570 CE | E189: Buy | F189: 9.50-10.50 | J189: Open | R189: H
D190: M&M NOV 580 C | E190: Sell | F190: 6.50-7.50 | R190: H
A191: 18 | B191: 2019-11-20 | D191: KOTAKBANK NOV 1620 CE | E191: Buy | F191: 21-23 | G191: 13 | I191: 35-40 | J191: Open | R191: N
A192: 19 | B192: 2019-11-20 | D192: NIFTY 21-NOV 12000 PE | E192: Buy | F192: 36 | H192: 48 | I192: 80 | J192: Profit of Rs.12/- | K192: =H192-F192 -> 12 | L192: =M192*K192 -> 900 | M192: 75 | N192: Successful | O192: 2019-11-20 | R192: R
A193: 20 | B193: 2019-11-20 | D193: ITC NOV 255 CE | E193: Buy | F193: 2-2.5 | I193: 5.00-6.00 | R193: H
A196: Techno -Funda (positional)
A197: Sr.no | B197: Date | D197: Company | E197: Rec | F197: Rec Price | G197: Stop Loss*** | H197: Call Closed At | I197: Target | J197: Remark | K197: Profit / Loss per Share | L197: Gain / Loss % | M197: Status | N197: Closed Date | O197: NSE Closed Price
A198: 1 | B198: 2019-08-13 | D198: ITC | E198: Buy | F198: 247 | G198: 228 | H198: 262.5 | I198: 290-300 | J198: Part Profit of Rs.15.5/- | K198: =H198-F198 -> 15.5 | L198: =K198/F198 -> 6.28% | M198: Successful | N198: 2019-10-01 | O198: =VLOOKUP(D198,Sheet2!A131:M1770,6,0) -> 250.7 | R198: H
A202: CLBS = Closing Basis *** | F202: Reinitiated $
A203: Dividend adjusted <> | F203: Revised stoploss #
B208: Investment Idea
A209: Sr.no | B209: Date | D209: Company | E209: Rec | F209: Rec Price | G209: Point of Review | H209: Close Rate | I209: Target | J209: Remark | K209: Profit / Loss per Share | L209: Gain / Loss % | M209: Status | N209: Closed Date
A210: 1 | B210: 2013-11-01 | D210: L&T Finance Holding | E210: Accu | F210: 82.00 | G210: - | H210: 100 | I210: 100.00 | J210: Target Achieved | K210: =H210-F210 -> 18.00 | L210: =K210/F210 -> 21.95% | M210: Successful | N210: 2016-10-14
A211: 2 | B211: 2014-06-04 | D211: Finolex Inds | E211: Buy | F211: 257.00 | G211: - | H211: 300 | I211: 300.00 | J211: Target Achieved | K211: 43.00 | L211: 16.73% | M211: Successful | N211: 2014-07-02
A212: 3 | B212: 2014-07-08 | D212: JK Cement | E212: Buy | F212: 393.00 | G212: - | H212: 468 | I212: 468.00 | J212: Target Achieved | K212: 75.00 | L212: 19.08% | M212: Successful | N212: 2014-08-12
A213: 4 | B213: 2014-08-06 | D213: Finolex Cables | E213: Buy | F213: 205.00 | G213: - | H213: 275 | I213: 250.00 | J213: Target Achieved | K213: 70.00 | L213: 34.15% | M213: Successful | N213: 2014-11-19
A214: 5 | B214: 2014-09-04 | D214: Exide Inds | E214: Buy | F214: 162.00 | G214: - | H214: 190 | I214: 190.00 | J214: Target Achieved | K214: 28.00 | L214: 17.28% | M214: Successful | N214: 2015-01-02
A215: 6 | B215: 2014-09-04 | D215: Deepak Nitrite | E215: Buy | F215: 75.00 | G215: - | H215: 91.5 | I215: 95-100 | J215: Profit of Rs.16.50/- | K215: 16.50 | L215: 22.00% | M215: Successful | N215: 2014-11-11
A216: 7 | B216: 2014-10-01 | D216: Mercks | E216: Buy | F216: 850.00 | G216: - | H216: 982.5 | I216: 1050.00 | J216: Profit of Rs.132.50/- | K216: 132.50 | L216: 15.59% | M216: Successful | N216: 2015-02-04
A217: 8 | B217: 2014-10-01 | D217: Grindwell Norton | E217: Buy | F217: 475.00 | G217: - | H217: 515 | I217: 600.00 | J217: Profit of Rs.40/- | K217: 40.00 | L217: 8.42% | M217: Successful | N217: 2014-10-27
A218: 9 | B218: 2014-10-01 | D218: Snowman Logistics | E218: Buy | F218: 86.00 | G218: - | H218: 99 | I218: 140.00 | J218: Profit of Rs.13.00/- | K218: 13.00 | L218: 15.12% | M218: Successful | N218: 2014-10-27
A219: 10 | B219: 2014-10-14 | D219: Birla Corp | E219: Buy | F219: 496.60 | G219: - | H219: 621 | I219: 580.00 | J219: Target Achieved | K219: 124.40 | L219: 25.05% | M219: Successful | N219: 2016-08-23
A220: 11 | B220: 2014-10-14 | D220: Ultratech Cem | E220: Buy | F220: 2481.90 | G220: - | H220: 2840 | I220: 2870.00 | J220: Profit of Rs.358.10/- | K220: 358.10 | L220: 14.43% | M220: Successful | N220: 2015-01-13
A221: 12 | B221: 2014-10-16 | D221: Sintex Inds | E221: Buy | F221: 84.50 | G221: - | H221: 93 | I221: 110.00 | J221: Profit of Rs.8.50/- | K221: 8.50 | L221: 10.06% | M221: Successful | N221: 2014-10-27
A222: 13 | B222: 2014-10-16 | D222: HSIL | E222: Buy | F222: 401.00 | G222: - | H222: 428 | I222: 450.00 | J222: Profit of Rs.27.00/- | K222: 27.00 | L222: 6.73% | M222: Successful | N222: 2015-01-16
A223: 14 | B223: 2014-10-16 | D223: Eveready Inds | E223: Buy | F223: 101.00 | G223: - | H223: 112 | I223: 120.00 | J223: Profit of Rs.11.00/- | K223: 11.00 | L223: 10.89% | M223: Successful | N223: 2014-10-27
A224: 15 | B224: 2014-11-11 | D224: Pennar Inds | E224: Buy | F224: 59.00 | G224: - | H224: 76 | I224: 76.00 | J224: Target Achieved | K224: 17.00 | L224: 28.81% | M224: Successful | N224: 2017-10-24
A225: 16 | B225: 2014-11-11 | D225: Snowman Logistics | E225: Buy | F225: 99.00 | G225: - | H225: 120 | I225: 120.00 | J225: Profit of Rs.21/- | K225: 21.00 | L225: 21.21% | M225: Successful | N225: 2014-11-17
A226: 17 | B226: 2014-11-13 | D226: Dharamsi Morarji Chem | E226: Buy | F226: 22.00 | G226: - | H226: 33.55 | I226: 32.00 | J226: Profit of Rs 11.55/- | K226: 11.55 | L226: 52.50% | M226: Successful | N226: 2015-07-03
A227: 18 | B227: 2014-12-03 | D227: Tatachem | E227: Buy | F227: 440.00 | G227: - | H227: 520 | I227: 520.00 | J227: Profit of Rs 80.00/- | K227: 80.00 | L227: 18.18% | M227: Successful | N227: 2015-07-23
A228: 19 | B228: 2014-12-03 | D228: Advanta | E228: Buy | F228: 360.00 | G228: - | H228: 427 | I228: 425.00 | J228: Profit of Rs.67.00/- | K228: 67.00 | L228: 18.61% | M228: Successful | N228: 2015-02-23
... 134 more rows

Sheet Sheet2 (hidden)
A1: SYMBOL | B1: SERIES | C1: OPEN | D1: HIGH | E1: LOW | F1: CLOSE | G1: LAST | H1: PREVCLOSE | I1: TOTTRDQTY | J1: TOTTRDVAL | K1: TIMESTAMP | L1: TOTALTRADES | M1: ISIN | N1: ISIN
A2: 20MICRONS | B2: EQ | C2: 34.05 | D2: 35 | E2: 34.05 | F2: 34.9 | G2: 35 | H2: 34.05 | I2: 15616 | J2: 541869.8 | K2: 2019-11-20 | L2: 298 | M2: INE144J01027
A3: 21STCENMGM | B3: EQ | C3: 13.75 | D3: 14.2 | E3: 13.75 | F3: 14.1 | G3: 13.9 | H3: 13.95 | I3: 1111 | J3: 15762.65 | K3: 2019-11-20 | L3: 12 | M3: INE253B01015
A4: 3IINFOTECH | B4: EQ | C4: 1.95 | D4: 2 | E4: 1.9 | F4: 1.95 | G4: 2 | H4: 1.95 | I4: 1502581 | J4: 2950041.85 | K4: 2019-11-20 | L4: 907 | M4: INE748C01020
A5: 3MINDIA | B5: EQ | C5: 22275 | D5: 22479.95 | E5: 22275 | F5: 22372.85 | G5: 22377 | H5: 22310.05 | I5: 624 | J5: 13965895.85 | K5: 2019-11-20 | L5: 408 | M5: INE470A01017
A6: 3PLAND | B6: EQ | C6: 6.2 | D6: 6.2 | E6: 6.2 | F6: 6.2 | G6: 6.2 | H6: 6.2 | I6: 1011 | J6: 6268.2 | K6: 2019-11-20 | L6: 3 | M6: INE105C01023
A7: 5PAISA | B7: EQ | C7: 156 | D7: 156.05 | E7: 150 | F7: 154.05 | G7: 154.05 | H7: 154.9 | I7: 10551 | J7: 1613671.8 | K7: 2019-11-20 | L7: 534 | M7: INE618L01018
A8: 63MOONS | B8: EQ | C8: 104.25 | D8: 105.4 | E8: 99.8 | F8: 101.9 | G8: 102.4 | H8: 104.2 | I8: 134765 | J8: 13785005.5 | K8: 2019-11-20 | L8: 2272 | M8: INE111B01023
A9: A2ZINFRA | B9: EQ | C9: 8.85 | D9: 9.05 | E9: 8.8 | F9: 8.85 | G9: 8.9 | H9: 8.85 | I9: 144655 | J9: 1290259.55 | K9: 2019-11-20 | L9: 318 | M9: INE619I01012
A10: AARTIDRUGS | B10: EQ | C10: 524 | D10: 527 | E10: 520 | F10: 525.25 | G10: 525 | H10: 520.9 | I10: 8356 | J10: 4384880.8 | K10: 2019-11-20 | L10: 732 | M10: INE767A01016
A11: AARTIIND | B11: EQ | C11: 848.9 | D11: 857.5 | E11: 833.1 | F11: 847.75 | G11: 851 | H11: 841.5 | I11: 94048 | J11: 79715991.7 | K11: 2019-11-20 | L11: 4803 | M11: INE769A01020
A12: AARVEEDEN | B12: EQ | C12: 12.95 | D12: 12.95 | E12: 12.4 | F12: 12.6 | G12: 12.5 | H12: 12.35 | I12: 6814 | J12: 85958.55 | K12: 2019-11-20 | L12: 83 | M12: INE273D01019
A13: AAVAS | B13: EQ | C13: 1705 | D13: 1719.8 | E13: 1690.05 | F13: 1695.3 | G13: 1695 | H13: 1688.95 | I13: 16187 | J13: 27542513.85 | K13: 2019-11-20 | L13: 2827 | M13: INE216P01012
A14: ABAN | B14: BE | C14: 28.15 | D14: 28.45 | E14: 27 | F14: 28.1 | G14: 28.4 | H14: 27.55 | I14: 24069 | J14: 669203 | K14: 2019-11-20 | L14: 249 | M14: INE421A01028
A15: ABB | B15: EQ | C15: 1471.5 | D15: 1475 | E15: 1439.25 | F15: 1449.65 | G15: 1441 | H15: 1474.55 | I15: 637863 | J15: 937384740.2 | K15: 2019-11-20 | L15: 3291 | M15: INE117A01022
A16: ABBOTINDIA | B16: EQ | C16: 12898 | D16: 12898 | E16: 12490.7 | F16: 12578.95 | G16: 12521 | H16: 12785.15 | I16: 8890 | J16: 113083279.2 | K16: 2019-11-20 | L16: 2366 | M16: INE358A01014
A17: ABCAPITAL | B17: EQ | C17: 84.2 | D17: 85.9 | E17: 84 | F17: 85.6 | G17: 85.5 | H17: 83.65 | I17: 2269017 | J17: 193245289.2 | K17: 2019-11-20 | L17: 18024 | M17: INE674K01013
A18: ABFRL | B18: EQ | C18: 217.65 | D18: 219.05 | E18: 213.4 | F18: 216.05 | G18: 216.2 | H18: 217.65 | I18: 400831 | J18: 86803852.6 | K18: 2019-11-20 | L18: 12442 | M18: INE647O01011
A19: ABSLBANETF | B19: EQ | C19: 315 | D19: 316.2 | E19: 315 | F19: 315.72 | G19: 315.72 | H19: 314.5 | I19: 120 | J19: 37819.2 | K19: 2019-11-20 | L19: 3 | M19: INF209KB1O58
A20: ABSLNN50ET | B20: EQ | C20: 284.01 | D20: 284.01 | E20: 284.01 | F20: 284.01 | G20: 284.01 | H20: 282.7 | I20: 26 | J20: 7384.26 | K20: 2019-11-20 | L20: 1 | M20: INF209KB1B87
A21: ACC | B21: EQ | C21: 1497 | D21: 1504.55 | E21: 1481 | F21: 1483.75 | G21: 1484 | H21: 1491.15 | I21: 536347 | J21: 800240226.9 | K21: 2019-11-20 | L21: 13578 | M21: INE012A01025
A22: ACCELYA | B22: EQ | C22: 1130.1 | D22: 1166 | E22: 976.05 | F22: 986.05 | G22: 983 | H22: 1194.7 | I22: 135558 | J22: 139423149.6 | K22: 2019-11-20 | L22: 11485 | M22: INE793A01012
A23: ACE | B23: EQ | C23: 81.4 | D23: 82.2 | E23: 79.75 | F23: 79.8 | G23: 79.75 | H23: 80.55 | I23: 114359 | J23: 9193900.45 | K23: 2019-11-20 | L23: 885 | M23: INE731H01025
A24: ADANIENT | B24: EQ | C24: 198.5 | D24: 207.45 | E24: 198.1 | F24: 205.7 | G24: 204.4 | H24: 199.7 | I24: 3488019 | J24: 710357907.8 | K24: 2019-11-20 | L24: 21164 | M24: INE423A01024
A25: ADANIGAS | B25: EQ | C25: 146.15 | D25: 148.4 | E25: 146.15 | F25: 146.55 | G25: 146.55 | H25: 146.45 | I25: 527163 | J25: 77554626.65 | K25: 2019-11-20 | L25: 3247 | M25: INE399L01023
A26: ADANIGREEN | B26: EQ | C26: 96.8 | D26: 100.9 | E26: 95.6 | F26: 98.75 | G26: 98.25 | H26: 96.2 | I26: 2279188 | J26: 224804667.4 | K26: 2019-11-20 | L26: 12887 | M26: INE364U01010
A27: ADANIPORTS | B27: EQ | C27: 364.5 | D27: 377.1 | E27: 364 | F27: 366.7 | G27: 366.7 | H27: 364.05 | I27: 6385953 | J27: 2367740896 | K27: 2019-11-20 | L27: 60278 | M27: INE742F01042
A28: ADANIPOWER | B28: EQ | C28: 60.3 | D28: 61.45 | E28: 59.3 | F28: 60.35 | G28: 60.5 | H28: 60.25 | I28: 9165116 | J28: 554414246.5 | K28: 2019-11-20 | L28: 21783 | M28: INE814H01011
A29: ADANITRANS | B29: EQ | C29: 269.8 | D29: 277 | E29: 265.15 | F29: 267.1 | G29: 269.5 | H29: 268.1 | I29: 246911 | J29: 66708766.85 | K29: 2019-11-20 | L29: 4462 | M29: INE931S01010
A30: ADFFOODS | B30: EQ | C30: 300.05 | D30: 303.55 | E30: 297 | F30: 298.35 | G30: 299.7 | H30: 300.15 | I30: 28173 | J30: 8422393.05 | K30: 2019-11-20 | L30: 847 | M30: INE982B01019
A31: ADHUNIKIND | B31: EQ | C31: 102.9 | D31: 108.7 | E31: 102.9 | F31: 107.95 | G31: 108.5 | H31: 102.9 | I31: 60968 | J31: 6457565.6 | K31: 2019-11-20 | L31: 1074 | M31: INE452L01012
A32: ADLABS | B32: BE | C32: 3.15 | D32: 3.15 | E32: 3.15 | F32: 3.15 | G32: 3.15 | H32: 3.3 | I32: 40457 | J32: 127439.55 | K32: 2019-11-20 | L32: 105 | M32: INE172N01012
A33: ADORWELD | B33: EQ | C33: 315.75 | D33: 317 | E33: 310.25 | F33: 313.75 | G33: 313.65 | H33: 311.1 | I33: 5866 | J33: 1840634.2 | K33: 2019-11-20 | L33: 430 | M33: INE045A01017
A34: ADROITINFO | B34: EQ | C34: 9.5 | D34: 9.5 | E34: 9.05 | F34: 9.05 | G34: 9.05 | H34: 9.5 | I34: 8228 | J34: 74485.25 | K34: 2019-11-20 | L34: 8 | M34: INE737B01033
A35: ADSL | B35: EQ | C35: 17.65 | D35: 17.65 | E35: 16.1 | F35: 16.3 | G35: 16.35 | H35: 17.5 | I35: 114037 | J35: 1897816.5 | K35: 2019-11-20 | L35: 543 | M35: INE102I01027
A36: ADVANIHOTR | B36: EQ | C36: 56.1 | D36: 57.1 | E36: 55 | F36: 56.4 | G36: 56.35 | H36: 56.85 | I36: 5581 | J36: 310381.05 | K36: 2019-11-20 | L36: 144 | M36: INE199C01026
A37: ADVENZYMES | B37: EQ | C37: 162.8 | D37: 183.7 | E37: 162 | F37: 178.2 | G37: 178.8 | H37: 161.55 | I37: 454270 | J37: 80125770.45 | K37: 2019-11-20 | L37: 9688 | M37: INE837H01020
A38: AEGISCHEM | B38: EQ | C38: 177.95 | D38: 182.4 | E38: 175.1 | F38: 179.35 | G38: 180.2 | H38: 175.55 | I38: 145915 | J38: 26134022.65 | K38: 2019-11-20 | L38: 3055 | M38: INE208C01025
A39: AFFLE | B39: EQ | C39: 1629.95 | D39: 1648 | E39: 1620 | F39: 1633.75 | G39: 1631 | H39: 1624.95 | I39: 83129 | J39: 135779186.7 | K39: 2019-11-20 | L39: 7537 | M39: INE00WC01019
A40: AGARIND | B40: EQ | C40: 106.65 | D40: 107.9 | E40: 105 | F40: 106.1 | G40: 107.65 | H40: 107.85 | I40: 1704 | J40: 181411.55 | K40: 2019-11-20 | L40: 44 | M40: INE204E01012
A41: AGCNET | B41: BE | C41: 129.9 | D41: 129.9 | E41: 123 | F41: 123.7 | G41: 123 | H41: 127.95 | I41: 1805 | J41: 224945.3 | K41: 2019-11-20 | L41: 23 | M41: INE676A01019
A42: AGRITECH | B42: EQ | C42: 43.15 | D42: 44.45 | E42: 42.2 | F42: 43.1 | G42: 43.05 | H42: 43.35 | I42: 5238 | J42: 226772.15 | K42: 2019-11-20 | L42: 149 | M42: INE449G01018
A43: AGROPHOS | B43: EQ | C43: 125.2 | D43: 126.4 | E43: 125.2 | F43: 126.2 | G43: 126.05 | H43: 125.05 | I43: 666193 | J43: 83860590.25 | K43: 2019-11-20 | L43: 11266 | M43: INE740V01019
A44: AHLEAST | B44: EQ | C44: 186 | D44: 186 | E44: 171.25 | F44: 173.75 | G44: 171.4 | H44: 179.1 | I44: 1044 | J44: 182970.9 | K44: 2019-11-20 | L44: 60 | M44: INE926K01017
A45: AHLUCONT | B45: EQ | C45: 269.95 | D45: 280 | E45: 269.35 | F45: 274 | G45: 275.3 | H45: 270 | I45: 3172 | J45: 871960.55 | K45: 2019-11-20 | L45: 280 | M45: INE758C01029
A46: AHLWEST | B46: EQ | C46: 327 | D46: 329.75 | E46: 301.75 | F46: 309.9 | G46: 320 | H46: 325.6 | I46: 4801 | J46: 1519337.75 | K46: 2019-11-20 | L46: 828 | M46: INE915K01010
A47: AIAENG | B47: EQ | C47: 1645 | D47: 1665 | E47: 1632 | F47: 1648.75 | G47: 1636.45 | H47: 1649.05 | I47: 7453 | J47: 12292805.35 | K47: 2019-11-20 | L47: 1466 | M47: INE212H01026
A48: AIONJSW | B48: EQ | C48: 9.95 | D48: 10.1 | E48: 9.9 | F48: 10.05 | G48: 10.05 | H48: 10 | I48: 85222 | J48: 856081.35 | K48: 2019-11-20 | L48: 241 | M48: INE743C01021
A49: AIRAN | B49: EQ | C49: 11.25 | D49: 11.25 | E49: 11 | F49: 11.25 | G49: 11.25 | H49: 11 | I49: 4952 | J49: 55230.45 | K49: 2019-11-20 | L49: 42 | M49: INE645W01026
A50: AJANTPHARM | B50: EQ | C50: 974 | D50: 1007.95 | E50: 972.15 | F50: 1004 | G50: 1007 | H50: 972.15 | I50: 246468 | J50: 246082656.3 | K50: 2019-11-20 | L50: 8128 | M50: INE031B01049
A51: AJMERA | B51: EQ | C51: 120.5 | D51: 120.85 | E51: 117 | F51: 117.7 | G51: 117.4 | H51: 120.5 | I51: 58390 | J51: 6908783.5 | K51: 2019-11-20 | L51: 1402 | M51: INE298G01027
A52: AKASH | B52: EQ | C52: 62.5 | D52: 64.5 | E52: 61 | F52: 64.5 | G52: 64.5 | H52: 62.45 | I52: 2001 | J52: 125911 | K52: 2019-11-20 | L52: 8 | M52: INE737W01013
A53: AKSHARCHEM | B53: EQ | C53: 205.4 | D53: 216.5 | E53: 200 | F53: 207.85 | G53: 206 | H53: 203.3 | I53: 2644 | J53: 547999.6 | K53: 2019-11-20 | L53: 250 | M53: INE542B01011
A54: AKSHOPTFBR | B54: EQ | C54: 6.5 | D54: 6.5 | E54: 6.2 | F54: 6.2 | G54: 6.2 | H54: 6.5 | I54: 346404 | J54: 2174769.7 | K54: 2019-11-20 | L54: 577 | M54: INE523B01011
A55: AKZOINDIA | B55: EQ | C55: 1944 | D55: 1960 | E55: 1902.7 | F55: 1936.1 | G55: 1944 | H55: 1911 | I55: 20883 | J55: 40393790.65 | K55: 2019-11-20 | L55: 1899 | M55: INE133A01011
A56: ALANKIT | B56: EQ | C56: 15.75 | D56: 15.75 | E56: 15.25 | F56: 15.35 | G56: 15.55 | H56: 15.1 | I56: 32141 | J56: 495756.7 | K56: 2019-11-20 | L56: 178 | M56: INE914E01040
A57: ALBERTDAVD | B57: EQ | C57: 422.65 | D57: 422.65 | E57: 403.45 | F57: 410 | G57: 411 | H57: 414.45 | I57: 6829 | J57: 2787288.25 | K57: 2019-11-20 | L57: 615 | M57: INE155C01010
A58: ALBK | B58: EQ | C58: 26.15 | D58: 26.25 | E58: 24.7 | F58: 24.85 | G58: 24.8 | H58: 25.8 | I58: 7155982 | J58: 182516333.6 | K58: 2019-11-20 | L58: 15879 | M58: INE428A01015
A59: ALCHEM | B59: BE | C59: 0.85 | D59: 0.9 | E59: 0.85 | F59: 0.9 | G59: 0.9 | H59: 0.85 | I59: 35235 | J59: 31706.7 | K59: 2019-11-20 | L59: 21 | M59: INE964B01033
A60: ALEMBICLTD | B60: EQ | C60: 51.5 | D60: 55 | E60: 51.05 | F60: 52.85 | G60: 52.85 | H60: 51.95 | I60: 300839 | J60: 16018689.05 | K60: 2019-11-20 | L60: 4056 | M60: INE426A01027
A61: ALICON | B61: EQ | C61: 388.1 | D61: 404.95 | E61: 373.75 | F61: 375.85 | G61: 375 | H61: 391.05 | I61: 2413 | J61: 922413.75 | K61: 2019-11-20 | L61: 548 | M61: INE062D01024
A62: ALKALI | B62: EQ | C62: 40.1 | D62: 41.95 | E62: 38.1 | F62: 39.85 | G62: 40.45 | H62: 39.95 | I62: 24226 | J62: 974365.8 | K62: 2019-11-20 | L62: 626 | M62: INE773I01017
A63: ALKEM | B63: EQ | C63: 2120.25 | D63: 2120.25 | E63: 2061.55 | F63: 2083.55 | G63: 2094 | H63: 2117.05 | I63: 26567 | J63: 55410259 | K63: 2019-11-20 | L63: 3707 | M63: INE540L01014
A64: ALKYLAMINE | B64: EQ | C64: 1019.95 | D64: 1038.45 | E64: 985.1 | F64: 1014.9 | G64: 1008.3 | H64: 1017.05 | I64: 12858 | J64: 13043777.8 | K64: 2019-11-20 | L64: 1530 | M64: INE150B01021
A65: ALLCARGO | B65: EQ | C65: 94.45 | D65: 94.95 | E65: 92.65 | F65: 93.3 | G65: 93.5 | H65: 94.3 | I65: 150265 | J65: 14115308.05 | K65: 2019-11-20 | L65: 3701 | M65: INE418H01029
A66: ALLSEC | B66: EQ | C66: 276.7 | D66: 284.4 | E66: 276.65 | F66: 279.25 | G66: 279.8 | H66: 279.15 | I66: 3208 | J66: 897010.3 | K66: 2019-11-20 | L66: 259 | M66: INE835G01018
A67: ALMONDZ | B67: EQ | C67: 9.05 | D67: 9.55 | E67: 9.05 | F67: 9.45 | G67: 9.45 | H67: 9.15 | I67: 289 | J67: 2628.7 | K67: 2019-11-20 | L67: 5 | M67: INE326B01027
A68: ALOKTEXT | B68: EQ | C68: 2.3 | D68: 2.3 | E68: 2.3 | F68: 2.3 | G68: 2.3 | H68: 2.2 | I68: 208636 | J68: 479862.8 | K68: 2019-11-20 | L68: 133 | M68: INE270A01011
A69: ALPA | B69: EQ | C69: 16.7 | D69: 16.7 | E69: 15.65 | F69: 15.75 | G69: 15.95 | H69: 16.25 | I69: 14293 | J69: 227464.2 | K69: 2019-11-20 | L69: 127 | M69: INE385I01010
A70: ALPHAGEO | B70: EQ | C70: 162.85 | D70: 162.9 | E70: 156.9 | F70: 158.45 | G70: 158.55 | H70: 160.85 | I70: 6235 | J70: 988899.4 | K70: 2019-11-20 | L70: 399 | M70: INE137C01018
A71: ALPSINDUS | B71: BE | C71: 0.85 | D71: 0.85 | E71: 0.85 | F71: 0.85 | G71: 0.85 | H71: 0.8 | I71: 836 | J71: 710.6 | K71: 2019-11-20 | L71: 6 | M71: INE093B01015
A72: AMARAJABAT | B72: EQ | C72: 753.8 | D72: 763.25 | E72: 747 | F72: 753 | G72: 752.9 | H72: 754.9 | I72: 426255 | J72: 320922962.4 | K72: 2019-11-20 | L72: 13373 | M72: INE885A01032
A73: AMBER | B73: EQ | C73: 985 | D73: 1005.95 | E73: 980.15 | F73: 997.35 | G73: 990 | H73: 987.4 | I73: 22704 | J73: 22695434.85 | K73: 2019-11-20 | L73: 2680 | M73: INE371P01015
A74: AMBIKCO | B74: EQ | C74: 880.3 | D74: 886.9 | E74: 860 | F74: 869 | G74: 865.55 | H74: 879.75 | I74: 3755 | J74: 3260451.4 | K74: 2019-11-20 | L74: 819 | M74: INE540G01014
A75: AMBUJACEM | B75: EQ | C75: 201.65 | D75: 203 | E75: 201 | F75: 201.6 | G75: 201.6 | H75: 201.4 | I75: 1906946 | J75: 384975065.7 | K75: 2019-11-20 | L75: 13147 | M75: INE079A01024
A76: AMDIND | B76: EQ | C76: 16.6 | D76: 17.1 | E76: 15 | F76: 16 | G76: 16 | H76: 16.7 | I76: 7940 | J76: 127883.1 | K76: 2019-11-20 | L76: 137 | M76: INE005I01014
A77: AMJLAND | B77: EQ | C77: 19.1 | D77: 19.35 | E77: 18.5 | F77: 19.2 | G77: 19.3 | H77: 19.05 | I77: 7697 | J77: 147234.45 | K77: 2019-11-20 | L77: 58 | M77: INE606A01024
A78: AMRUTANJAN | B78: EQ | C78: 449.3 | D78: 450.7 | E78: 441.1 | F78: 445 | G78: 442 | H78: 447.95 | I78: 33219 | J78: 14807925.85 | K78: 2019-11-20 | L78: 2896 | M78: INE098F01031
A79: ANANTRAJ | B79: EQ | C79: 33.8 | D79: 34 | E79: 33.35 | F79: 33.8 | G79: 33.75 | H79: 33.6 | I79: 105769 | J79: 3567240.55 | K79: 2019-11-20 | L79: 468 | M79: INE242C01024
A80: ANDHRABANK | B80: EQ | C80: 20.35 | D80: 20.85 | E80: 19.5 | F80: 19.65 | G80: 19.55 | H80: 20.2 | I80: 5287165 | J80: 106645475.6 | K80: 2019-11-20 | L80: 10364 | M80: INE434A01013
A81: ANDHRACEMT | B81: BE | C81: 2.6 | D81: 2.65 | E81: 2.6 | F81: 2.6 | G81: 2.6 | H81: 2.7 | I81: 38163 | J81: 99224.05 | K81: 2019-11-20 | L81: 72 | M81: INE666E01012
A82: ANDHRSUGAR | B82: EQ | C82: 287.65 | D82: 295.65 | E82: 287.65 | F82: 290.75 | G82: 290.8 | H82: 290 | I82: 16021 | J82: 4686310.45 | K82: 2019-11-20 | L82: 622 | M82: INE715B01013
A83: ANIKINDS | B83: BE | C83: 8.6 | D83: 8.6 | E83: 8.2 | F83: 8.2 | G83: 8.2 | H83: 8.6 | I83: 1405 | J83: 11654.7 | K83: 2019-11-20 | L83: 18 | M83: INE087B01017
A84: ANKITMETAL | B84: BE | C84: 0.75 | D84: 0.75 | E84: 0.75 | F84: 0.75 | G84: 0.75 | H84: 0.7 | I84: 51304 | J84: 38478 | K84: 2019-11-20 | L84: 80 | M84: INE106I01010
A85: ANSALAPI | B85: EQ | C85: 5.25 | D85: 5.25 | E85: 4.8 | F85: 4.9 | G85: 5 | H85: 5 | I85: 108066 | J85: 556126.3 | K85: 2019-11-20 | L85: 183 | M85: INE436A01026
A86: ANSALHSG | B86: EQ | C86: 6.6 | D86: 6.7 | E86: 6.3 | F86: 6.6 | G86: 6.65 | H86: 6.4 | I86: 144323 | J86: 955201.45 | K86: 2019-11-20 | L86: 341 | M86: INE880B01015
A87: ANTGRAPHIC | B87: BE | C87: 0.55 | D87: 0.65 | E87: 0.55 | F87: 0.55 | G87: 0.55 | H87: 0.6 | I87: 35182 | J87: 20300 | K87: 2019-11-20 | L87: 29 | M87: INE414B01021
A88: ANUP | B88: EQ | C88: 469.1 | D88: 476.4 | E88: 454 | F88: 459.85 | G88: 460 | H88: 474.65 | I88: 46436 | J88: 21431801.6 | K88: 2019-11-20 | L88: 1022 | M88: INE294Z01018
A89: APARINDS | B89: EQ | C89: 450 | D89: 454.15 | E89: 439.9 | F89: 444.45 | G89: 445.95 | H89: 447.6 | I89: 11893 | J89: 5272830.95 | K89: 2019-11-20 | L89: 832 | M89: INE372A01015
A90: APCL | B90: EQ | C90: 152 | D90: 154.4 | E90: 148 | F90: 148.5 | G90: 148 | H90: 150.15 | I90: 4592 | J90: 699643.15 | K90: 2019-11-20 | L90: 359 | M90: INE071F01012
A91: APCOTEXIND | B91: EQ | C91: 161.95 | D91: 166 | E91: 161 | F91: 164.9 | G91: 165.45 | H91: 161.45 | I91: 13515 | J91: 2217524.65 | K91: 2019-11-20 | L91: 533 | M91: INE116A01032
A92: APEX | B92: EQ | C92: 290.7 | D92: 304.05 | E92: 288.4 | F92: 294.65 | G92: 297.1 | H92: 290.9 | I92: 243211 | J92: 72152901.2 | K92: 2019-11-20 | L92: 5256 | M92: INE346W01013
A93: APLAPOLLO | B93: EQ | C93: 1525 | D93: 1550 | E93: 1510.05 | F93: 1542.5 | G93: 1532.55 | H93: 1525.75 | I93: 18906 | J93: 28982122.65 | K93: 2019-11-20 | L93: 1422 | M93: INE702C01019
A94: APLLTD | B94: EQ | C94: 546 | D94: 556 | E94: 542.15 | F94: 547.85 | G94: 547 | H94: 549.5 | I94: 28179 | J94: 15459126.15 | K94: 2019-11-20 | L94: 2073 | M94: INE901L01018
A95: APOLLO | B95: EQ | C95: 77.05 | D95: 77.9 | E95: 69.7 | F95: 71.9 | G95: 72.45 | H95: 76.55 | I95: 85671 | J95: 6288420.45 | K95: 2019-11-20 | L95: 2980 | M95: INE713T01010
A96: APOLLOHOSP | B96: EQ | C96: 1422 | D96: 1437.1 | E96: 1415 | F96: 1421.55 | G96: 1422.7 | H96: 1410.95 | I96: 660964 | J96: 941852555.4 | K96: 2019-11-20 | L96: 23840 | M96: INE437A01024
A97: APOLLOPIPE | B97: EQ | C97: 371.9 | D97: 371.95 | E97: 356.05 | F97: 361.7 | G97: 360.6 | H97: 365.8 | I97: 8948 | J97: 3237250.4 | K97: 2019-11-20 | L97: 522 | M97: INE126J01016
A98: APOLLOTYRE | B98: EQ | C98: 167.95 | D98: 170.75 | E98: 166.5 | F98: 167.65 | G98: 167.35 | H98: 167.9 | I98: 2212021 | J98: 373877172.6 | K98: 2019-11-20 | L98: 22928 | M98: INE438A01022
A99: APOLSINHOT | B99: EQ | C99: 732.05 | D99: 748.95 | E99: 720 | F99: 725.1 | G99: 725 | H99: 732.05 | I99: 1300 | J99: 944696.05 | K99: 2019-11-20 | L99: 111 | M99: INE451F01024
A100: APTECHT | B100: EQ | C100: 163 | D100: 166.25 | E100: 162.15 | F100: 163.05 | G100: 163.25 | H100: 162.15 | I100: 196966 | J100: 32343931.7 | K100: 2019-11-20 | L100: 3925 | M100: INE266F01018
A101: ARCHIDPLY | B101: EQ | C101: 27.05 | D101: 27.05 | E101: 25.5 | F101: 26.1 | G101: 26.1 | H101: 26.2 | I101: 5800 | J101: 152044.75 | K101: 2019-11-20 | L101: 104 | M101: INE877I01016
A102: ARCHIES | B102: BE | C102: 19.9 | D102: 20 | E102: 19.15 | F102: 19.25 | G102: 19.65 | H102: 19.6 | I102: 47618 | J102: 928618.85 | K102: 2019-11-20 | L102: 138 | M102: INE731A01020
A103: ARCOTECH | B103: BE | C103: 2.8 | D103: 2.8 | E103: 2.8 | F103: 2.8 | G103: 2.8 | H103: 2.7 | I103: 8315 | J103: 23282 | K103: 2019-11-20 | L103: 26 | M103: INE574I01035
A104: ARENTERP | B104: EQ | C104: 9.3 | D104: 9.3 | E104: 9.3 | F104: 9.3 | G104: 9.3 | H104: 9.5 | I104: 6800 | J104: 63240 | K104: 2019-11-20 | L104: 2 | M104: INE610C01014
A105: ARIES | B105: EQ | C105: 65.75 | D105: 66.5 | E105: 63 | F105: 65.05 | G105: 64.8 | H105: 66.1 | I105: 39610 | J105: 2564880.1 | K105: 2019-11-20 | L105: 939 | M105: INE298I01015
A106: ARIHANT | B106: EQ | C106: 28.5 | D106: 28.5 | E106: 24 | F106: 24.55 | G106: 24 | H106: 26.55 | I106: 15201 | J106: 382895.05 | K106: 2019-11-20 | L106: 259 | M106: INE413D01011
A107: ARIHANTSUP | B107: BE | C107: 24.55 | D107: 26.4 | E107: 24.55 | F107: 25.55 | G107: 25.55 | H107: 25.15 | I107: 695 | J107: 18196.6 | K107: 2019-11-20 | L107: 12 | M107: INE643K01018
A108: ARMANFIN | B108: EQ | C108: 543.5 | D108: 553.95 | E108: 535.4 | F108: 540.85 | G108: 548.65 | H108: 542.55 | I108: 3508 | J108: 1908706.1 | K108: 2019-11-20 | L108: 511 | M108: INE109C01017
A109: AROGRANITE | B109: EQ | C109: 39.95 | D109: 40 | E109: 36.3 | F109: 37.55 | G109: 37.5 | H109: 38.05 | I109: 6027 | J109: 225160.05 | K109: 2019-11-20 | L109: 170 | M109: INE210C01013
A110: ARROWGREEN | B110: EQ | C110: 55.85 | D110: 55.85 | E110: 51.5 | F110: 52.15 | G110: 52.1 | H110: 53.25 | I110: 4079 | J110: 213495.4 | K110: 2019-11-20 | L110: 211 | M110: INE570D01018
A111: ARROWTEX | B111: EQ | C111: 9.5 | D111: 10 | E111: 9.4 | F111: 9.55 | G111: 9.4 | H111: 9.6 | I111: 20100 | J111: 192498.1 | K111: 2019-11-20 | L111: 114 | M111: INE933J01015
A112: ARSHIYA | B112: EQ | C112: 16.2 | D112: 16.6 | E112: 15.95 | F112: 16 | G112: 16 | H112: 16.1 | I112: 32274 | J112: 523356.15 | K112: 2019-11-20 | L112: 85 | M112: INE968D01022
A113: ARSSINFRA | B113: EQ | C113: 24.05 | D113: 24.9 | E113: 23.1 | F113: 23.7 | G113: 23.65 | H113: 23.75 | I113: 14103 | J113: 339292.85 | K113: 2019-11-20 | L113: 91 | M113: INE267I01010
A114: ARVIND | B114: EQ | C114: 47.5 | D114: 51.25 | E114: 47.3 | F114: 48.75 | G114: 48.95 | H114: 47.25 | I114: 3027627 | J114: 150203954.6 | K114: 2019-11-20 | L114: 14365 | M114: INE034A01011
A115: ARVINDFASN | B115: EQ | C115: 359.55 | D115: 362.35 | E115: 350 | F115: 355.5 | G115: 356.5 | H115: 359.5 | I115: 105616 | J115: 37621038.7 | K115: 2019-11-20 | L115: 28733 | M115: INE955V01021
A116: ARVSMART | B116: EQ | C116: 89 | D116: 91.9 | E116: 86.15 | F116: 89.05 | G116: 89 | H116: 89.3 | I116: 16320 | J116: 1454550.4 | K116: 2019-11-20 | L116: 520 | M116: INE034S01021
A117: ASAHIINDIA | B117: EQ | C117: 200.45 | D117: 204.85 | E117: 199.9 | F117: 200.4 | G117: 200.95 | H117: 200.4 | I117: 20790 | J117: 4174914.35 | K117: 2019-11-20 | L117: 485 | M117: INE439A01020
A118: ASAHISONG | B118: EQ | C118: 148.9 | D118: 148.9 | E118: 142.2 | F118: 143.15 | G118: 143 | H118: 144.65 | I118: 2042 | J118: 292334 | K118: 2019-11-20 | L118: 57 | M118: INE228I01012
A119: ASAL | B119: EQ | C119: 32.1 | D119: 32.3 | E119: 30.35 | F119: 31.45 | G119: 31 | H119: 31.8 | I119: 4432 | J119: 137983.15 | K119: 2019-11-20 | L119: 109 | M119: INE900C01027
A120: ASHAPURMIN | B120: BE | C120: 26.1 | D120: 27.95 | E120: 25.65 | F120: 25.65 | G120: 25.65 | H120: 26.95 | I120: 28328 | J120: 732272.05 | K120: 2019-11-20 | L120: 112 | M120: INE348A01023
A121: ASHIANA | B121: EQ | C121: 98.05 | D121: 99.65 | E121: 95.05 | F121: 96.65 | G121: 96.55 | H121: 98.05 | I121: 62563 | J121: 6100802.15 | K121: 2019-11-20 | L121: 2985 | M121: INE365D01021
A122: ASHIMASYN | B122: EQ | C122: 7.1 | D122: 7.25 | E122: 6.95 | F122: 7.1 | G122: 7.15 | H122: 7.05 | I122: 14004 | J122: 99498.95 | K122: 2019-11-20 | L122: 94 | M122: INE440A01010
A123: ASHOKA | B123: EQ | C123: 95 | D123: 95.5 | E123: 92.2 | F123: 92.65 | G123: 92.3 | H123: 94.5 | I123: 429066 | J123: 40188745.9 | K123: 2019-11-20 | L123: 6941 | M123: INE442H01029
A124: ASHOKLEY | B124: EQ | C124: 81.8 | D124: 84.7 | E124: 81 | F124: 83 | G124: 83.15 | H124: 82 | I124: 32259341 | J124: 2681539957 | K124: 2019-11-20 | L124: 101268 | M124: INE208A01029
A125: ASIANHOTNR | B125: EQ | C125: 95.05 | D125: 102 | E125: 95.05 | F125: 101.75 | G125: 100 | H125: 97 | I125: 960 | J125: 95395.15 | K125: 2019-11-20 | L125: 207 | M125: INE363A01022
A126: ASIANPAINT | B126: EQ | C126: 1729.9 | D126: 1748.85 | E126: 1715.45 | F126: 1723.5 | G126: 1723 | H126: 1721.35 | I126: 1374382 | J126: 2375207490 | K126: 2019-11-20 | L126: 56776 | M126: INE021A01026
A127: ASIANTILES | B127: EQ | C127: 227.5 | D127: 242.8 | E127: 227.5 | F127: 235.15 | G127: 236 | H127: 229.35 | I127: 188224 | J127: 44646877.45 | K127: 2019-11-20 | L127: 2654 | M127: INE022I01019
A128: ASPINWALL | B128: EQ | C128: 144.55 | D128: 144.55 | E128: 135.7 | F128: 139.85 | G128: 140 | H128: 144.35 | I128: 1331 | J128: 186403.8 | K128: 2019-11-20 | L128: 43 | M128: INE991I01015
A129: ASTEC | B129: EQ | C129: 359.35 | D129: 385.95 | E129: 359.35 | F129: 378.75 | G129: 373 | H129: 364.15 | I129: 7874 | J129: 2909583.8 | K129: 2019-11-20 | L129: 502 | M129: INE563J01010
A130: ASTERDM | B130: EQ | C130: 154.9 | D130: 154.9 | E130: 148 | F130: 149.3 | G130: 150 | H130: 152.95 | I130: 277413 | J130: 42385478 | K130: 2019-11-20 | L130: 5672 | M130: INE914M01019
A131: ASTRAL | B131: EQ | C131: 1085 | D131: 1086.95 | E131: 1065.7 | F131: 1084.3 | G131: 1080.1 | H131: 1071.05 | I131: 84108 | J131: 90943145.75 | K131: 2019-11-20 | L131: 6019 | M131: INE006I01046
A132: ASTRAMICRO | B132: EQ | C132: 83.9 | D132: 89.75 | E132: 82.35 | F132: 87.2 | G132: 86.75 | H132: 83.65 | I132: 1093710 | J132: 95289335.85 | K132: 2019-11-20 | L132: 6232 | M132: INE386C01029
A133: ASTRAZEN | B133: EQ | C133: 2619 | D133: 2700 | E133: 2582.05 | F133: 2675.55 | G133: 2685.05 | H133: 2600.65 | I133: 72123 | J133: 190219113.7 | K133: 2019-11-20 | L133: 4700 | M133: INE203A01020
A134: ASTRON | B134: EQ | C134: 40.9 | D134: 40.9 | E134: 38.3 | F134: 39.1 | G134: 39 | H134: 40 | I134: 183899 | J134: 7318700.95 | K134: 2019-11-20 | L134: 1041 | M134: INE646X01014
A135: ATFL | B135: EQ | C135: 615.8 | D135: 618.8 | E135: 592.3 | F135: 600.4 | G135: 604.4 | H135: 603.25 | I135: 9011 | J135: 5489949.35 | K135: 2019-11-20 | L135: 1042 | M135: INE209A01019
A136: ATLANTA | B136: BE | C136: 6.8 | D136: 7.15 | E136: 6.75 | F136: 7.15 | G136: 7.15 | H136: 7.1 | I136: 6630 | J136: 45151.55 | K136: 2019-11-20 | L136: 41 | M136: INE285H01022
A137: ATLASCYCLE | B137: BE | C137: 55.5 | D137: 55.5 | E137: 52.1 | F137: 52.6 | G137: 52.6 | H137: 53.55 | I137: 1816 | J137: 95939.25 | K137: 2019-11-20 | L137: 34 | M137: INE446A01025
A138: ATUL | B138: EQ | C138: 4079 | D138: 4184.5 | E138: 4036.95 | F138: 4132.95 | G138: 4175 | H138: 4050.55 | I138: 9402 | J138: 38581233.85 | K138: 2019-11-20 | L138: 1845 | M138: INE100A01010
A139: ATULAUTO | B139: EQ | C139: 215.05 | D139: 226 | E139: 215.05 | F139: 222.85 | G139: 222.8 | H139: 217 | I139: 18003 | J139: 3978882.5 | K139: 2019-11-20 | L139: 846 | M139: INE951D01028
A140: AUBANK | B140: EQ | C140: 830 | D140: 830 | E140: 796.1 | F140: 816.4 | G140: 810 | H140: 817.55 | I140: 242179 | J140: 196667818.1 | K140: 2019-11-20 | L140: 8679 | M140: INE949L01017
A141: AURIONPRO | B141: EQ | C141: 73.25 | D141: 76 | E141: 71.15 | F141: 75.35 | G141: 75.8 | H141: 74.2 | I141: 11604 | J141: 852113.6 | K141: 2019-11-20 | L141: 256 | M141: INE132H01018
A142: AUROPHARMA | B142: EQ | C142: 432 | D142: 449 | E142: 432 | F142: 444.8 | G142: 445.9 | H142: 431.2 | I142: 5009429 | J142: 2216167587 | K142: 2019-11-20 | L142: 66003 | M142: INE406A01037
A143: AUSOMENT | B143: EQ | C143: 48.45 | D143: 48.45 | E143: 40 | F143: 42.95 | G143: 43 | H143: 44.05 | I143: 83102 | J143: 3669068.75 | K143: 2019-11-20 | L143: 1100 | M143: INE218C01016
A144: AUTOAXLES | B144: EQ | C144: 797 | D144: 812 | E144: 791.05 | F144: 799.4 | G144: 795.5 | H144: 796.75 | I144: 6030 | J144: 4807090.3 | K144: 2019-11-20 | L144: 507 | M144: INE449A01011
A145: AUTOIND | B145: EQ | C145: 25.2 | D145: 26 | E145: 24.6 | F145: 25.65 | G145: 25.85 | H145: 25.7 | I145: 8948 | J145: 225626.6 | K145: 2019-11-20 | L145: 135 | M145: INE718H01014
A146: AUTOLITIND | B146: EQ | C146: 21.1 | D146: 21.55 | E146: 20.35 | F146: 20.4 | G146: 20.9 | H146: 21.15 | I146: 1961 | J146: 40966.25 | K146: 2019-11-20 | L146: 113 | M146: INE448A01013
A147: AVADHSUGAR | B147: EQ | C147: 245.95 | D147: 248 | E147: 241.1 | F147: 246.05 | G147: 244.35 | H147: 244.65 | I147: 44285 | J147: 10844870.8 | K147: 2019-11-20 | L147: 1209 | M147: INE349W01017
A148: AVANTIFEED | B148: EQ | C148: 512 | D148: 528.85 | E148: 509.75 | F148: 524.05 | G148: 522.8 | H148: 508.85 | I148: 483193 | J148: 252927546.1 | K148: 2019-11-20 | L148: 14863 | M148: INE871C01038
A149: AVTNPL | B149: EQ | C149: 32.7 | D149: 32.9 | E149: 30.05 | F149: 30.35 | G149: 30.8 | H149: 31.85 | I149: 209879 | J149: 6639594.35 | K149: 2019-11-20 | L149: 1742 | M149: INE488D01021
A150: AXISBANK | B150: EQ | C150: 748 | D150: 753.85 | E150: 741.25 | F150: 748.75 | G150: 748.4 | H150: 747.8 | I150: 8798051 | J150: 6585093761 | K150: 2019-11-20 | L150: 150418 | M150: INE238A01034
A151: AXISCADES | B151: EQ | C151: 68.5 | D151: 69.5 | E151: 62.6 | F151: 66.95 | G151: 67 | H151: 68.8 | I151: 144442 | J151: 9661988.35 | K151: 2019-11-20 | L151: 2054 | M151: INE555B01013
A152: AXISGOLD | B152: EQ | C152: 3397 | D152: 3398.5 | E152: 3352.25 | F152: 3364.55 | G152: 3362 | H152: 3375.45 | I152: 155 | J152: 522147.85 | K152: 2019-11-20 | L152: 64 | M152: INF846K01347
A153: AXISNIFTY | B153: EQ | C153: 1230.9 | D153: 1245.75 | E153: 1230.9 | F153: 1241.6 | G153: 1241.36 | H153: 1236.77 | I153: 66 | J153: 81751.84 | K153: 2019-11-20 | L153: 21 | M153: INF846K01ZL0
A154: AYMSYNTEX | B154: EQ | C154: 31.25 | D154: 31.25 | E154: 29.7 | F154: 30.6 | G154: 30.3 | H154: 30.1 | I154: 6080 | J154: 186002.9 | K154: 2019-11-20 | L154: 75 | M154: INE193B01039
A155: BAGFILMS | B155: EQ | C155: 2 | D155: 2.05 | E155: 1.95 | F155: 1.95 | G155: 2 | H155: 2 | I155: 208753 | J155: 412700.95 | K155: 2019-11-20 | L155: 195 | M155: INE116D01028
A156: BAJAJ-AUTO | B156: EQ | C156: 3145.55 | D156: 3168.9 | E156: 3130.5 | F156: 3162.4 | G156: 3165 | H156: 3161.05 | I156: 238889 | J156: 753078232.7 | K156: 2019-11-20 | L156: 16746 | M156: INE917I01010
A157: BAJAJCON | B157: EQ | C157: 238.5 | D157: 241.8 | E157: 236.05 | F157: 240.55 | G157: 241 | H157: 238.5 | I157: 84700 | J157: 20257609.9 | K157: 2019-11-20 | L157: 2523 | M157: INE933K01021
A158: BAJAJELEC | B158: EQ | C158: 306.7 | D158: 312.65 | E158: 306.7 | F158: 310.6 | G158: 311 | H158: 309.65 | I158: 158387 | J158: 49121779.3 | K158: 2019-11-20 | L158: 3048 | M158: INE193E01025
A159: BAJAJFINSV | B159: EQ | C159: 9135 | D159: 9185 | E159: 9060 | F159: 9079.25 | G159: 9074.55 | H159: 9152.8 | I159: 243993 | J159: 2228420208 | K159: 2019-11-20 | L159: 24747 | M159: INE918I01018
A160: BAJAJHIND | B160: EQ | C160: 7 | D160: 7.05 | E160: 6.55 | F160: 6.85 | G160: 6.85 | H160: 7 | I160: 1627461 | J160: 11152170.75 | K160: 2019-11-20 | L160: 1830 | M160: INE306A01021
A161: BAJAJHLDNG | B161: EQ | C161: 3757 | D161: 3757 | E161: 3692 | F161: 3702.05 | G161: 3696 | H161: 3730.4 | I161: 11041 | J161: 41012019.75 | K161: 2019-11-20 | L161: 2149 | M161: INE118A01012
A162: BAJFINANCE | B162: EQ | C162: 4140 | D162: 4182 | E162: 4127.4 | F162: 4138.55 | G162: 4130.4 | H162: 4135.75 | I162: 813879 | J162: 3382014838 | K162: 2019-11-20 | L162: 50079 | M162: INE296A01024
A163: BALAJITELE | B163: EQ | C163: 55.3 | D163: 55.45 | E163: 53.75 | F163: 54.15 | G163: 54 | H163: 55.35 | I163: 26612 | J163: 1449406.9 | K163: 2019-11-20 | L163: 408 | M163: INE794B01026
A164: BALAMINES | B164: EQ | C164: 336.9 | D164: 336.9 | E164: 323.95 | F164: 324.6 | G164: 324.75 | H164: 336.7 | I164: 26305 | J164: 8612990.05 | K164: 2019-11-20 | L164: 1064 | M164: INE050E01027
A165: BALAXI | B165: EQ | C165: 67.75 | D165: 74 | E165: 67.75 | F165: 67.85 | G165: 67.85 | H165: 71.25 | I165: 75 | J165: 5206.75 | K165: 2019-11-20 | L165: 5 | M165: INE618N01014
A166: BALKRISHNA | B166: BE | C166: 16.15 | D166: 17 | E166: 16.15 | F166: 16.6 | G166: 16.55 | H166: 16.45 | I166: 6413 | J166: 107402.15 | K166: 2019-11-20 | L166: 45 | M166: INE875R01011
A167: BALKRISIND | B167: EQ | C167: 834.7 | D167: 843.45 | E167: 830.25 | F167: 840.6 | G167: 840.5 | H167: 834.7 | I167: 517114 | J167: 433140327.3 | K167: 2019-11-20 | L167: 15985 | M167: INE787D01026
A168: BALLARPUR | B168: EQ | C168: 0.5 | D168: 0.55 | E168: 0.45 | F168: 0.5 | G168: 0.5 | H168: 0.5 | I168: 1376900 | J168: 681263.05 | K168: 2019-11-20 | L168: 344 | M168: INE294A01037
A169: BALMLAWRIE | B169: EQ | C169: 191.1 | D169: 199 | E169: 191.1 | F169: 197.3 | G169: 197 | H169: 190.45 | I169: 255164 | J169: 50081702.35 | K169: 2019-11-20 | L169: 4282 | M169: INE164A01016
A170: BALPHARMA | B170: EQ | C170: 40.5 | D170: 41.25 | E170: 38.5 | F170: 39.55 | G170: 39.8 | H170: 40.85 | I170: 14251 | J170: 559933.55 | K170: 2019-11-20 | L170: 333 | M170: INE083D01012
A171: BALRAMCHIN | B171: EQ | C171: 146.4 | D171: 147.9 | E171: 144.6 | F171: 146.8 | G171: 147.3 | H171: 145.6 | I171: 453088 | J171: 66428592.25 | K171: 2019-11-20 | L171: 5516 | M171: INE119A01028
A172: BANARBEADS | B172: EQ | C172: 30.1 | D172: 32.5 | E172: 30 | F172: 30.15 | G172: 30.15 | H172: 31.1 | I172: 3054 | J172: 94261.65 | K172: 2019-11-20 | L172: 37 | M172: INE655B01011
A173: BANARISUG | B173: EQ | C173: 1200.05 | D173: 1220 | E173: 1181.5 | F173: 1189 | G173: 1183.05 | H173: 1220.3 | I173: 953 | J173: 1139845.6 | K173: 2019-11-20 | L173: 169 | M173: INE459A01010
A174: BANCOINDIA | B174: EQ | C174: 95.8 | D174: 96.5 | E174: 93.3 | F174: 95 | G174: 96.5 | H174: 95.8 | I174: 61913 | J174: 5875593.85 | K174: 2019-11-20 | L174: 1667 | M174: INE213C01025
A175: BANDHANBNK | B175: EQ | C175: 537 | D175: 543.5 | E175: 505.05 | F175: 525.7 | G175: 523.55 | H175: 536.25 | I175: 5287905 | J175: 2766726425 | K175: 2019-11-20 | L175: 68223 | M175: INE545U01014
A176: BANG | B176: EQ | C176: 16.1 | D176: 17 | E176: 16.1 | F176: 16.8 | G176: 16.9 | H176: 16.55 | I176: 4286 | J176: 71357.45 | K176: 2019-11-20 | L176: 24 | M176: INE863I01016
A177: BANKBARODA | B177: EQ | C177: 100 | D177: 101.35 | E177: 98.05 | F177: 98.9 | G177: 98.45 | H177: 99 | I177: 34325824 | J177: 3416856443 | K177: 2019-11-20 | L177: 81229 | M177: INE028A01039
A178: BANKBEES | B178: EQ | C178: 3126.12 | D178: 3204.9 | E178: 3086.3 | F178: 3145.04 | G178: 3149.99 | H178: 3186.1 | I178: 32140 | J178: 101277743.1 | K178: 2019-11-20 | L178: 600 | M178: INF732E01078
A179: BANKINDIA | B179: EQ | C179: 74.95 | D179: 76.15 | E179: 72.8 | F179: 73.6 | G179: 73.45 | H179: 74.1 | I179: 16356384 | J179: 1217920406 | K179: 2019-11-20 | L179: 36691 | M179: INE084A01016
A180: BANSWRAS | B180: EQ | C180: 94 | D180: 94 | E180: 88.3 | F180: 89.7 | G180: 90 | H180: 92.05 | I180: 56153 | J180: 5045579 | K180: 2019-11-20 | L180: 446 | M180: INE629D01012
A181: BARTRONICS | B181: BE | C181: 1.6 | D181: 1.65 | E181: 1.55 | F181: 1.55 | G181: 1.55 | H181: 1.6 | I181: 7358 | J181: 11497.45 | K181: 2019-11-20 | L181: 25 | M181: INE855F01034
A182: BASF | B182: EQ | C182: 957.15 | D182: 964 | E182: 940.7 | F182: 945.75 | G182: 944 | H182: 956.5 | I182: 12508 | J182: 11870270.35 | K182: 2019-11-20 | L182: 1201 | M182: INE373A01013
A183: BASML | B183: EQ | C183: 130 | D183: 130 | E183: 123 | F183: 123 | G183: 123 | H183: 125 | I183: 5945 | J183: 744613.9 | K183: 2019-11-20 | L183: 70 | M183: INE186H01014
A184: BATAINDIA | B184: EQ | C184: 1687.1 | D184: 1701.2 | E184: 1677.2 | F184: 1683.95 | G184: 1684 | H184: 1686 | I184: 399565 | J184: 674135869.8 | K184: 2019-11-20 | L184: 17918 | M184: INE176A01028
A185: BAYERCROP | B185: EQ | C185: 3720 | D185: 3800 | E185: 3692.15 | F185: 3760.85 | G185: 3781 | H185: 3709.25 | I185: 8997 | J185: 33556439.5 | K185: 2019-11-20 | L185: 1642 | M185: INE462A01022
A186: BBL | B186: EQ | C186: 835.7 | D186: 845.05 | E186: 830 | F186: 831.3 | G186: 832 | H186: 835.7 | I186: 8576 | J186: 7163728.05 | K186: 2019-11-20 | L186: 471 | M186: INE464A01028
A187: BBTC | B187: EQ | C187: 1119.7 | D187: 1138.65 | E187: 1088.1 | F187: 1113.65 | G187: 1113.8 | H187: 1114.35 | I187: 150941 | J187: 167704173.9 | K187: 2019-11-20 | L187: 8618 | M187: INE050A01025
A188: BCG | B188: EQ | C188: 3.85 | D188: 3.85 | E188: 3.85 | F188: 3.85 | G188: 3.85 | H188: 3.5 | I188: 277002 | J188: 1066457.7 | K188: 2019-11-20 | L188: 72 | M188: INE425B01027
A189: BCP | B189: EQ | C189: 9.4 | D189: 9.5 | E189: 9.35 | F189: 9.5 | G189: 9.5 | H189: 9.35 | I189: 322852 | J189: 3065918.15 | K189: 2019-11-20 | L189: 124 | M189: INE905P01028
A190: BDL | B190: EQ | C190: 336.65 | D190: 354.45 | E190: 330 | F190: 342.75 | G190: 343.7 | H190: 328.95 | I190: 286593 | J190: 97967808.85 | K190: 2019-11-20 | L190: 9093 | M190: INE171Z01018
A191: BEARDSELL | B191: EQ | C191: 10 | D191: 10 | E191: 9.65 | F191: 9.85 | G191: 10 | H191: 10 | I191: 610 | J191: 6046.35 | K191: 2019-11-20 | L191: 32 | M191: INE520H01022
A192: BEDMUTHA | B192: EQ | C192: 12.9 | D192: 14.4 | E192: 12 | F192: 12.5 | G192: 12.5 | H192: 13.25 | I192: 18707 | J192: 240467.05 | K192: 2019-11-20 | L192: 176 | M192: INE844K01012
A193: BEL | B193: EQ | C193: 111.95 | D193: 112.75 | E193: 110.4 | F193: 110.8 | G193: 110.85 | H193: 111.45 | I193: 6944846 | J193: 774124079.9 | K193: 2019-11-20 | L193: 22946 | M193: INE263A01024
A194: BEML | B194: EQ | C194: 949.9 | D194: 1011.35 | E194: 949.45 | F194: 997.9 | G194: 993 | H194: 936.1 | I194: 2406763 | J194: 2385379416 | K194: 2019-11-20 | L194: 68992 | M194: INE258A01016
A195: BEPL | B195: EQ | C195: 48 | D195: 48.7 | E195: 47.2 | F195: 47.4 | G195: 47.45 | H195: 47.7 | I195: 333644 | J195: 15922168.2 | K195: 2019-11-20 | L195: 1788 | M195: INE922A01025
A196: BERGEPAINT | B196: EQ | C196: 486.15 | D196: 491.35 | E196: 483 | F196: 485.2 | G196: 484.95 | H196: 485.05 | I196: 1009511 | J196: 491179981.7 | K196: 2019-11-20 | L196: 27648 | M196: INE463A01038
A197: BFINVEST | B197: EQ | C197: 328.2 | D197: 343.95 | E197: 328.1 | F197: 335.3 | G197: 336.9 | H197: 328.15 | I197: 146628 | J197: 49329580.75 | K197: 2019-11-20 | L197: 4842 | M197: INE878K01010
A198: BFUTILITIE | B198: EQ | C198: 265.5 | D198: 277.5 | E198: 264.5 | F198: 277.5 | G198: 277.5 | H198: 264.3 | I198: 239438 | J198: 65552834.45 | K198: 2019-11-20 | L198: 2828 | M198: INE243D01012
A199: BGLOBAL | B199: BE | C199: 1.95 | D199: 1.95 | E199: 1.85 | F199: 1.9 | G199: 1.9 | H199: 1.9 | I199: 1200 | J199: 2275 | K199: 2019-11-20 | L199: 6 | M199: INE224M01013
A200: BGRENERGY | B200: EQ | C200: 29.15 | D200: 29.8 | E200: 28.3 | F200: 28.55 | G200: 28.45 | H200: 29.15 | I200: 48783 | J200: 1415164.4 | K200: 2019-11-20 | L200: 677 | M200: INE661I01014
... 1491 more rows

Sheet Sheet1 (hidden)

Sheet Sheet3 (hidden)

Sheet Sheet4 (hidden)

Sheet Sheet5 (hidden)
